{"text_format":"1","workbook":"xlsx","n_sheets":44,"sheets":["Portal","Forside","Betalingsvillighed","Gødningsprodukter","Forklaring","Udskrift","Gødningsoversigt","Opslagstabeller","Forudsætninger","Postnummer","Services","XRumvægt","Øgro 10-3-1","Øgro 9-3-4 +2S","Øgro N15","Øgro granulat 9-3-4+2S","Protamylasse","K-2","Kartoffelfrugtsaft","Kartoffelkondensat","Kalium vinasse","Vinasse","Vinasse-kali","Kaliumvinasse ekstrakt K25","Binadan 4-1-3","DLG Kombigødning 4-1-3","Økogødning 6-1-1","Økogødning 5-1-1","Økohønsegødning 2-1-2","Økohønsegødning 3-1-2","Monterra 13","Monterra-Malt","PHC","Tang","Ågrøde","Have - parkaffald","Patentkali","Kiserit","Magnesia-kainit","Kaliumsulfat 41","Træaske","Naturgips","Frit svovl","Grøngødning"],"not_rendered":{"charts":0,"images":115,"macros":1,"external_links":1,"defined_names":30,"comments":0,"pivot_tables":0},"unopened":[],"bounds":{"document_bytes":16777216,"sheet_cells":100000,"rows_first":2000,"rows_last":500,"rows_between":2000,"halvings":0,"cell_chars":16384,"cell_head_chars":4096},"cells_cut":0,"cells_raw":0,"read":"whole","date_system":"1900"}

{"sheet":"Portal","index":0,"n_rows":22,"n_cols":7,"rows_kept":22,"cut":false,"hidden":false,"merged":[[4,1,4,11]]}
[]
[]
[null,""]
[]
[null,"Det er kompliceret at lave gødningsplan for de økologiske marker. Det skyldes, at de tilladte gødninger er sammensatte, at afgrødernes behov for N, P, K og S er forskellig, at markernes jordbundstal varierer, at priserne på gødningerne er forskellige, og transport, opbevaring og udbringning er forskellig. Det hele har betydning for dit valg.\n\nAnvend dette program både som opslagsværk hvor du finder detailierede oplysninger om de gødninger, der er tilladt i den økologiske markdrift, og som et værktøj, der hjælper dig med at foretage det mest optimale valg blandt de gødninger der kan være aktuelle for dig.\n\nBrug de grønne trykknapper for at komme rundt i mulighederne:\n"]
[]
[]
[]
[]
[]
[]
[]
[]
[]
[]
[]
[null,null,null,null,null,null,"Version 2.0"]
[null,null,null,null,null,null,"Januar 2017"]
[]
[]
[]
[null,"\n"]

{"sheet":"Forside","index":1,"n_rows":27,"n_cols":19,"rows_kept":27,"cut":false,"hidden":false,"merged":[[18,3,18,4],[18,9,18,10],[21,3,21,4],[7,1,10,11],[14,3,14,4],[14,9,14,10],[15,3,15,4],[15,9,15,10],[16,3,16,4],[16,9,16,10]]}
[]
[]
[]
[]
[]
[null,"Værktøj til valg af gødning"]
[]
[null,"Her kan du sammenligne den relle værdi af gødningsprodukter der er tilladt til økologisk brug. \nI beregningerne indgår værdien af næringsstofferne som du vurderer den og omkostninger til indkøb, transport, lagring og udbringning. "]
[]
[]
[]
[]
[null,"Beregningen er foretaget for:",null,null,null,null,null,"Beregningen af foretaget af:"]
[]
[null,"Gårdnavn",null,null,null,null,null,"Forening"]
[null,"Landmand",null,null,null,null,null,"Konsulent",null,null,null,null,null,null,null,"Landmand",null,"Konsulent"]
[null,"Adresse",null,null,null,null,null,"Adresse ",null,null,null,null,null,null,null,"Tom?","Postnr","Tom?","Postnr"]
[null,"Postnummer",null,null,{"$f":"IF(P18=FALSE,VLOOKUP(Q18,Postnr,2,FALSE),\"\")","v":""},null,null,"Postnummer",null,null,{"$f":"IF(R18=FALSE,VLOOKUP(S18,Postnr,2,FALSE),\"\")","v":""},null,null,null,null,{"$f":"ISBLANK(D18)","v":true},{"$f":"VALUE(LEFT(D18,4))","v":{"$error":"#VALUE!"}},{"$f":"ISBLANK(J18)","v":true},{"$f":"VALUE(LEFT(J18,4))","v":{"$error":"#VALUE!"}}]
[null,"E-mail",null,null,null,null,null,"E-mail"]
[]
[]
[null,"Scenarienavn:"]
[]
[]
[null,"Fremgangsmåde:"]
[]
[null,null,null,null,null,null," "]

{"sheet":"Betalingsvillighed","index":2,"n_rows":21,"n_cols":21,"rows_kept":21,"cut":false,"hidden":false,"merged":[[3,1,7,11]]}
[]
[null,"Næringsstofpriser og næringsstofprioritering"]
[]
[null,"Anfør de næringsstoffer, som du har behov for i en given mark eller afgrøde - og som du derfor er villig til at betale for. \nSom udgangspunkt (standard) er der anført næringsstofpriser i konventionel handelsgødning. "]
[]
[]
[]
[]
[]
[]
[]
[null,null,null,null,null,null,"Næringsstof"]
[null,null,"Næringsstof","Vælg","Pris","Vælg","prioriteret,"]
[null,null,null,null,null,null,"Kg pr. ha",null,null,null,null,null,null,null,null,null,"Indregnet pris",null,null,"Max. Mængde"]
[null,null,"Kvælstof, udnyttet",null,{"$f":"Forudsætninger!$C6","v":8},null,50,null,null,null,null,null,null,{"$f":"Forudsætninger!$C6","v":8},50,false,{"$f":"IF(P15=TRUE,E15,0)","v":0},null,true,{"$f":"IF(S15=TRUE,G15,0)","v":50},{"$f":"IF(S15,\"Kvælstof\",\"\")","v":"Kvælstof"}]
[null,null,"Fosfor",null,{"$f":"Forudsætninger!$C7","v":10},null,20,null,null,null,null,null,null,{"$f":"Forudsætninger!$C7","v":10},20,false,{"$f":"IF(P16=TRUE,E16,0)","v":0},null,false,{"$f":"IF(S16=TRUE,G16,0)","v":0},{"$f":"IF(S16,\"Fosfor\",\"\")","v":""}]
[null,null,"Kalium",null,{"$f":"Forudsætninger!$C8","v":6},null,50,null,null,null,null,null,null,{"$f":"Forudsætninger!$C8","v":6},50,false,0,null,false,{"$f":"IF(S17=TRUE,G17,0)","v":0},{"$f":"IF(S17,\"Kalium\",\"\")","v":""}]
[null,null,"Svovl",null,{"$f":"Forudsætninger!$C9","v":2},null,15,null,null,null,null,null,null,{"$f":"Forudsætninger!$C9","v":2},15,false,0,null,false,{"$f":"IF(S18=TRUE,G18,0)","v":0},{"$f":"IF(S18,\"Svovl\",\"\")","v":""}]
[null,null,"Magnesium",null,{"$f":"Forudsætninger!$C10","v":4},null,"-",null,null,null,null,null,null,{"$f":"Forudsætninger!$C10","v":4},null,false,0]
[null,null,null,null,null,null,null,null,null,null,null,null,null,null,null,null,null,null,{"$f":"IF(S15=TRUE,CONCATENATE(T15,\" kg udn. N/ha\"),IF(S16=TRUE,CONCATENATE(T16,\" kg P/ha\"),IF(S17=TRUE,CONCATENATE(T17,\" kg K/ha\"))))","v":"50 kg udn. N/ha"},null,{"$f":"CONCATENATE(U15,U16,U17)","v":"Kvælstof"}]
[null,null,null,null,null,null,"  Videre til"]

{"sheet":"Gødningsprodukter","index":3,"n_rows":21,"n_cols":52,"rows_kept":21,"cut":false,"hidden":false,"merged":[[7,9,9,9],[7,3,8,8],[7,46,9,46],[7,13,7,16],[7,17,7,18],[7,19,7,20],[7,25,7,29],[8,25,8,29],[7,23,7,24],[8,23,8,24]]}
[]
[null,"Sammenligning af gødninger"]
[]
[null,"Vælg de gødningstyper, du ønsker at sammenligne og tilret med egne værdier."]
[null,null,null,null,null,null,null,null,null,null,null,null,null,null,null,null,null,null,null,null,null,null,null,null,null,null,null,null,null,null,null,null,null,null,null,null,null,null,null,null,null,null,null,null,null,null,null,null,null,null,null," "]
[]
[]
[null,null,null,"Standard næringsstofindhold, kg pr. ton (før fortyndingingsfaktor)",null,null,null,null,null,"For-tyn-dings-faktor",null,null,null,"Transport",null,null,null,"Lagring",null,"Udbringning",null,"Omkost.","Værdi ÷","Ved:",null,"Medfølgende næringsstoffer, ",null,null,null,null,null,null,null,null,null,null,null,null,null,null,null,null,null,null,null,null,"For-tyn-dings-faktor"]
[null,"Gødningsprodukt",null,null,null,null,null,null,null,null,"N-udn.","Værdi,","Indkøb,","Betal-","Transport-","Afstand,","Omkost.","Betal-",null,"Nedfæld-","Omkost.","i alt","omkost.",{"$f":"Betalingsvillighed!S20","v":"50 kg udn. N/ha"},null,"kg pr. ha",null,null,null,null,"Transport-","Tilstand",null,"Betaling for:",null,"Nedfæld.-","Tillæg for",null,null,null,"Næringsstofindhold, kg pr. ton",null,null,null,null,null,null,"N-udn.","Værdi,","Indkøb,"]
[null,null,"Nr.","Tot-N","NH4-N","P","K","S","Mg",null,"pct.","kr./ton","kr./ton","ing","form","km","kr./ton","ing","kr./ton","ning","kr./ton","kr./ton","kr./ton","Ton/ha","Kr./ha","Udn. N","P","K","S","Mg","form",null,null,"Transport","Lagring","ning","nedfældning",null,null,null,"Tot-N","NH4-N","P","K","S","Mg",null,"pct.","kr./ton","kr./ton"]
[null,null,1,{"$f":"IF($C11>1,INDEX(Produkttabel,C11,4),\"\")","v":""},{"$f":"IF($C11>1,INDEX(Produkttabel,C11,5),\"\")","v":""},{"$f":"IF($C11>1,INDEX(Produkttabel,C11,6),\"\")","v":""},{"$f":"IF($C11>1,INDEX(Produkttabel,C11,7),\"\")","v":""},{"$f":"IF($C11>1,INDEX(Produkttabel,C11,8),\"\")","v":""},{"$f":"IF($C11>1,INDEX(Produkttabel,$C11,9),\"\")","v":""},{"$f":"IF(C11>1,1,\"\")","v":""},{"$f":"IF($C11>1,INDEX(Produkttabel,$C11,11),\"\")","v":""},{"$f":"IF(C11>1,(D11*K11%*Npris+F11*Ppris*Pudnyttelse%+G11*Kpris*Kudnyttelse%+H11*Spris*Sudnyttelse%+I11*Mgpris*MgUdnyttelse%)/J11,\"\")","v":""},{"$f":"IF($C11>1,INDEX(Produkttabel,$C11,13),\"\")","v":""},null,null,25,{"$f":"IF(C11>1,IF(AND(AH11=TRUE,AE11<>\"\"),(((VLOOKUP(AG11,Transportomkostninger,4)/60+((P11*2)/VLOOKUP(AG11,Transportomkostninger,5)))*VLOOKUP(AG11,Transportomkostninger,2)+VLOOKUP(AG11,Transportomkostninger,3))/VLOOKUP(AG11,Transportomkostninger,6)),0),\"\")","v":""},null,{"$f":"IF(C11>1,IF(AI11=TRUE,IF($C11>1,INDEX(Produkttabel,C11,14),\"\"),0),\"\")","v":""},null,{"$f":"IF($C11>1,((INDEX(Produkttabel,$C11,15)+AK11)),\"\")","v":""},{"$f":"IF(C11>1,M11+Q11+S11+U11,\"\")","v":""},{"$f":"IF(C11>1,L11-V11,\"\")","v":""},{"$f":"IF(C11>1,(IF(Betalingsvillighed!$S$15=TRUE,Betalingsvillighed!$T$15/(D11*K11%/J11),IF(Betalingsvillighed!$S$16=TRUE,Betalingsvillighed!$T$16/(F11/J11),IF(Betalingsvillighed!$S$17=TRUE,Betalingsvillighed!$T$17/(G11/J11),IF(Betalingsvillighed!$S$18=TRUE,Betalingsvillighed!$T$18/(H11/J11)))))),\"\")","v":""},{"$f":"IF(C11>1,X11*W11,\"\")","v":""},{"$f":"IF(C11>1,X11*K11%*D11,\"\")","v":""},{"$f":"IF(C11>1,X11*F11,\"\")","v":""},{"$f":"IF(C11>1,X11*G11,\"\")","v":""},{"$f":"IF(C11>1,X11*H11,\"\")","v":""},{"$f":"IF(C11>1,X11*I11,\"\")","v":""},"Lastbil",{"$f":"IF($C11>1,INDEX(Produkttabel,$C11,12),\"\")","v":""},{"$f":"CONCATENATE(AE11,AF11)","v":"Lastbil"},false,false,false,{"$f":"IF(AJ11=TRUE,TillægForNedfældning,0)","v":0},null,null,null,{"$f":"IF($C11>1,INDEX(Produkttabel,AN11,4),\"\")","v":""},{"$f":"IF($C11>1,INDEX(Produkttabel,AN11,5),\"\")","v":""},{"$f":"IF($C11>1,INDEX(Produkttabel,AN11,6),\"\")","v":""},{"$f":"IF($C11>1,INDEX(Produkttabel,AN11,7),\"\")","v":""},{"$f":"IF($C11>1,INDEX(Produkttabel,AN11,8),\"\")","v":""},{"$f":"IF($C11>1,INDEX(Produkttabel,$C11,9),\"\")","v":""},{"$f":"IF(AN11>1,1,\"\")","v":""},{"$f":"IF($C11>1,INDEX(Produkttabel,$C11,11),\"\")","v":""},{"$f":"IF(AN11>1,AO11*AV11%*Npris+AQ11*Ppris+AR11*Kpris+AS11*Spris+AT11*Mgpris,\"\")","v":""},{"$f":"IF($C11>1,INDEX(Produkttabel,$C11,13),\"\")","v":""}]
[null,null,1,"","","","","","",{"$f":"IF(C12>1,1,\"\")","v":""},"","","",null,null,5,"",null,"",null,"","","",{"$f":"IF(C12>1,(IF(Betalingsvillighed!$S$15=TRUE,Betalingsvillighed!$T$15/(D12*K12%/J12),IF(Betalingsvillighed!$S$16=TRUE,Betalingsvillighed!$T$16/(F12/J12),IF(Betalingsvillighed!$S$17=TRUE,Betalingsvillighed!$T$17/(G12/J12),IF(Betalingsvillighed!$S$18=TRUE,Betalingsvillighed!$T$18/(H12/J12)))))),\"\")","v":""},"","","","","","","Traktor","",{"$f":"CONCATENATE(AE12,AF12)","v":"Traktor"},false,false,false,0,null,null,null,"","","","","","",{"$f":"IF(AN12>1,1,\"\")","v":""},"","",""]
[null,null,1,"","","","","","","","","","",null,null,null,"",null,"",null,"","","",{"$f":"IF(C13>1,(IF(Betalingsvillighed!$S$15=TRUE,Betalingsvillighed!$T$15/(D13*K13%/J13),IF(Betalingsvillighed!$S$16=TRUE,Betalingsvillighed!$T$16/(F13/J13),IF(Betalingsvillighed!$S$17=TRUE,Betalingsvillighed!$T$17/(G13/J13),IF(Betalingsvillighed!$S$18=TRUE,Betalingsvillighed!$T$18/(H13/J13)))))),\"\")","v":""},"","","","","","","Lastbil","",{"$f":"CONCATENATE(AE13,AF13)","v":"Lastbil"},false,false,false,0,null,null,null,"","","","","","","","","",""]
[null,null,1,"","","","","","","","","","",null,null,null,"",null,"",null,"","","",{"$f":"IF(C14>1,(IF(Betalingsvillighed!$S$15=TRUE,Betalingsvillighed!$T$15/(D14*K14%/J14),IF(Betalingsvillighed!$S$16=TRUE,Betalingsvillighed!$T$16/(F14/J14),IF(Betalingsvillighed!$S$17=TRUE,Betalingsvillighed!$T$17/(G14/J14),IF(Betalingsvillighed!$S$18=TRUE,Betalingsvillighed!$T$18/(H14/J14)))))),\"\")","v":""},"","","","","","","Traktor","",{"$f":"CONCATENATE(AE14,AF14)","v":"Traktor"},false,false,false,0,null,null,null,"","","","","","","","","",""]
[null,null,1,"","","","","","","","","","",null,null,null,"",null,"",null,"","","",{"$f":"IF(C15>1,(IF(Betalingsvillighed!$S$15=TRUE,Betalingsvillighed!$T$15/(D15*K15%/J15),IF(Betalingsvillighed!$S$16=TRUE,Betalingsvillighed!$T$16/(F15/J15),IF(Betalingsvillighed!$S$17=TRUE,Betalingsvillighed!$T$17/(G15/J15),IF(Betalingsvillighed!$S$18=TRUE,Betalingsvillighed!$T$18/(H15/J15)))))),\"\")","v":""},"","","","","","",null,"",{"$f":"CONCATENATE(AE15,AF15)","v":""},false,false,false,0,null,null,null,"","","","","","","","","",""]
[null,null,1,"","","","","","","","","","",null,null,null,"",null,"",null,"","","",{"$f":"IF(C16>1,(IF(Betalingsvillighed!$S$15=TRUE,Betalingsvillighed!$T$15/(D16*K16%/J16),IF(Betalingsvillighed!$S$16=TRUE,Betalingsvillighed!$T$16/(F16/J16),IF(Betalingsvillighed!$S$17=TRUE,Betalingsvillighed!$T$17/(G16/J16),IF(Betalingsvillighed!$S$18=TRUE,Betalingsvillighed!$T$18/(H16/J16)))))),\"\")","v":""},"","","","","","",null,"","",false,false,false,0,null,null,null,"","","","","","","","","",""]
[null,null,1,"","","","","","","","","","",null,null,null,"",null,"",null,"","","",{"$f":"IF(C17>1,(IF(Betalingsvillighed!$S$15=TRUE,Betalingsvillighed!$T$15/(D17*K17%/J17),IF(Betalingsvillighed!$S$16=TRUE,Betalingsvillighed!$T$16/(F17/J17),IF(Betalingsvillighed!$S$17=TRUE,Betalingsvillighed!$T$17/(G17/J17),IF(Betalingsvillighed!$S$18=TRUE,Betalingsvillighed!$T$18/(H17/J17)))))),\"\")","v":""},"","","","","","",null,"","",false,false,false,0,null,null,null,"","","","","","","","","",""]
[null,null,1,"","","","","","","","","","",null,null,null,"",null,"",null,"","","",{"$f":"IF(C18>1,(IF(Betalingsvillighed!$S$15=TRUE,Betalingsvillighed!$T$15/(D18*K18%/J18),IF(Betalingsvillighed!$S$16=TRUE,Betalingsvillighed!$T$16/(F18/J18),IF(Betalingsvillighed!$S$17=TRUE,Betalingsvillighed!$T$17/(G18/J18),IF(Betalingsvillighed!$S$18=TRUE,Betalingsvillighed!$T$18/(H18/J18)))))),\"\")","v":""},"","","","","","",null,"","",false,false,false,0,null,null,null,"","","","","","","","","",""]
[null,null,1,"","","","","","","","","","",null,null,null,"",null,"",null,"","","",{"$f":"IF(C19>1,(IF(Betalingsvillighed!$S$15=TRUE,Betalingsvillighed!$T$15/(D19*K19%/J19),IF(Betalingsvillighed!$S$16=TRUE,Betalingsvillighed!$T$16/(F19/J19),IF(Betalingsvillighed!$S$17=TRUE,Betalingsvillighed!$T$17/(G19/J19),IF(Betalingsvillighed!$S$18=TRUE,Betalingsvillighed!$T$18/(H19/J19)))))),\"\")","v":""},"","","","","","",null,"",{"$f":"CONCATENATE(AE19,AF19)","v":""},false,false,false,0,null,null,null,"","","","","","","","","",""]
[null,null,1,"","","","","","","","","","",null,null,null,"",null,"",null,"","","",{"$f":"IF(C20>1,(IF(Betalingsvillighed!$S$15=TRUE,Betalingsvillighed!$T$15/(D20*K20%/J20),IF(Betalingsvillighed!$S$16=TRUE,Betalingsvillighed!$T$16/(F20/J20),IF(Betalingsvillighed!$S$17=TRUE,Betalingsvillighed!$T$17/(G20/J20),IF(Betalingsvillighed!$S$18=TRUE,Betalingsvillighed!$T$18/(H20/J20)))))),\"\")","v":""},"","","","","","",null,"","",false,false,false,0,null,null,null,"","","","","","","","","",""]
[null,null,null,{"$f":"IF($C21>1,INDEX(Produkttabel,C21,4),\"\")","v":""},null,{"$f":"IF($C21>1,INDEX(Produkttabel,D21,5),\"\")","v":""},{"$f":"IF($C21>1,INDEX(Produkttabel,F21,6),\"\")","v":""},{"$f":"IF($C21>1,INDEX(Produkttabel,G21,7),\"\")","v":""},{"$f":"IF($C21>1,INDEX(Produkttabel,H21,8),\"\")","v":""}]

{"sheet":"Forklaring","index":4,"n_rows":16,"n_cols":29,"rows_kept":16,"cut":false,"hidden":false,"merged":[[13,24,13,28],[14,22,14,23],[14,24,14,28],[13,16,13,17],[13,2,14,7],[13,8,15,8],[13,12,13,15],[13,18,13,19],[13,22,13,23]]}
[]
[]
[]
[]
[]
[]
[]
[]
[]
[]
[]
[]
[]
[null,null,"Standard næringsstofindhold, kg pr. ton (før fortyndingingsfaktor)",null,null,null,null,null,"For-tyn-dings-faktor",null,null,null,"Transport",null,null,null,"Lagring",null,"Udbringning",null,"Omkost.","Værdi ÷","Ved:",null,"Medfølgende næringsstoffer, "]
[null,"Gødningsprodukt",null,null,null,null,null,null,null,"N-udn.","Værdi,","Indkøb,","Betal-","Transport-","Afstand,","Omkost.","Betal-",null,"Nedfæld-","Omkost.","i alt","omkost.",{"$f":"Betalingsvillighed!S26","v":0},null,"kg pr. ha"]
[null,null,"Tot-N","NH4-N","P","K","S","Mg",null,"pct.","kr./ton","kr./ton","ing","form","km","kr./ton","ing","kr./ton","ning","kr./ton","kr./ton","kr./ton","Ton/ha","Kr./ha","Udn. N","P","K","S","Mg"]

{"sheet":"Udskrift","index":5,"n_rows":101,"n_cols":17,"rows_kept":101,"cut":false,"hidden":false,"merged":[[31,10,31,11],[28,8,28,11],[29,8,29,11],[32,4,32,5],[32,6,32,7],[32,8,32,9],[32,10,32,11],[31,4,31,5],[31,6,31,7],[31,8,31,9],[33,10,33,11],[34,4,34,5],[34,6,34,7],[34,8,34,9],[34,10,34,11],[35,4,35,5],[35,6,35,7],[35,8,35,9],[35,10,35,11],[33,4,33,5],[33,6,33,7],[33,8,33,9],[38,10,38,11],[39,4,39,5],[39,6,39,7],[39,8,39,9],[39,10,39,11],[36,4,36,5],[36,6,36,7],[36,8,36,9],[36,10,36,11],[37,4,37,5],[37,6,37,7],[37,8,37,9],[37,10,37,11],[22,4,22,6],[23,4,23,6],[50,10,50,13],[30,8,30,9],[30,10,30,11],[57,6,57,11],[17,4,17,6],[18,4,18,6],[19,4,19,6],[20,4,20,6],[21,4,21,6],[28,6,28,7],[29,6,29,7],[30,6,30,7],[28,4,28,5],[29,4,29,5],[30,4,30,5],[40,4,40,5],[40,6,40,7],[40,8,40,9],[40,10,40,11],[38,4,38,5],[38,6,38,7],[38,8,38,9],[67,13,67,14],[67,15,67,16],[62,13,62,14],[62,15,62,16],[63,13,63,14],[63,15,63,16],[64,13,64,14],[64,15,64,16],[59,13,59,14],[59,15,59,16],[60,13,60,14],[60,15,60,16],[61,13,61,14],[61,15,61,16],[56,13,56,14],[57,13,57,14],[58,13,58,14],[56,15,56,16],[57,15,57,16],[58,15,58,16],[65,13,65,14],[65,15,65,16],[66,13,66,14],[66,15,66,16],[80,9,80,10],[75,7,75,8],[75,9,75,10],[76,7,76,8],[76,9,76,10],[77,7,77,8],[77,9,77,10],[68,13,68,14],[68,15,68,16],[80,13,80,14],[72,5,72,10],[73,5,73,6],[73,7,73,8],[74,7,74,8],[73,9,73,10],[74,9,74,10],[72,13,72,16],[75,15,75,16],[76,15,76,16],[76,13,76,14],[77,15,77,16],[78,15,78,16],[79,15,79,16],[72,11,72,12],[81,13,81,14],[82,13,82,14],[84,7,84,8],[84,9,84,10],[75,11,75,12],[76,11,76,12],[77,11,77,12],[78,11,78,12],[79,11,79,12],[80,11,80,12],[81,11,81,12],[82,11,82,12],[81,7,81,8],[81,9,81,10],[82,7,82,8],[82,9,82,10],[83,7,83,8],[83,9,83,10],[78,7,78,8],[78,9,78,10],[79,7,79,8],[79,9,79,10],[80,7,80,8],[75,13,75,14],[100,10,100,13],[89,9,89,10],[90,9,90,10],[91,9,91,10],[89,11,89,12],[80,15,80,16],[81,15,81,16],[82,15,82,16],[83,15,83,16],[84,15,84,16],[83,13,83,14],[84,13,84,14],[83,11,83,12],[84,11,84,12],[88,11,88,12],[89,13,89,14],[90,13,90,14],[91,13,91,14],[88,13,88,14],[89,15,89,16],[90,15,90,16],[91,15,91,16],[92,9,92,10],[92,11,92,12],[73,11,73,12],[74,11,74,12],[73,13,73,14],[74,13,74,14],[73,15,73,16],[74,15,74,16],[77,13,77,14],[78,13,78,14],[79,13,79,14],[92,13,92,14],[92,15,92,16],[90,11,90,12],[91,11,91,12],[95,9,95,10],[95,11,95,12],[95,13,95,14],[95,15,95,16],[96,9,96,10],[96,11,96,12],[96,13,96,14],[96,15,96,16],[93,9,93,10],[93,11,93,12],[93,13,93,14],[93,15,93,16],[94,9,94,10],[94,11,94,12],[94,13,94,14],[94,15,94,16],[81,5,81,6],[82,5,82,6],[83,5,83,6],[84,5,84,6],[75,5,75,6],[76,5,76,6],[77,5,77,6],[78,5,78,6],[79,5,79,6],[80,5,80,6]]}
["Beregning af gødningsværdien af økologiske gødningsprodukter"]
[]
[]
[]
["Udarbejdet for",null,null,null,null,null,null,null,null,"Udarbejdet af"]
[{"$f":"IF(Forside!D15<>\"\",Forside!D15,\"\")","v":""},null,null,null,null,null,null,null,null,{"$f":"IF(Forside!J15<>\"\",Forside!J15,\"\")","v":""}]
[{"$f":"IF(Forside!D16<>\"\",Forside!D16,\"\")","v":""},null,null,null,null,null,null,null,null,{"$f":"IF(Forside!J16<>\"\",Forside!J16,\"\")","v":""}]
[{"$f":"IF(Forside!D17<>\"\",Forside!D17,\"\")","v":""},null,null,null,null,null,null,null,null,{"$f":"IF(Forside!J17<>\"\",Forside!J17,\"\")","v":""}]
[{"$f":"IF(Forside!D18<>\"\",CONCATENATE(Forside!D18,\" \",Forside!E18),\"\")","v":""},null,null,null,null,null,null,null,null,{"$f":"IF(Forside!J18<>\"\",CONCATENATE(Forside!J18,\" \",Forside!K18),\"\")","v":""}]
[{"$f":"IF(Forside!D19<>\"\",Forside!D19,\"\")","v":""},null,null,null,null,null,null,null,null,{"$f":"IF(Forside!J19<>\"\",Forside!J19,\"\")","v":""}]
[]
[{"$f":"IF(Forside!D22<>\"\",\"Scenarie:\",\"\")","v":""},null,null,{"$f":"IF(Forside!D22<>\"\",Forside!D22,\"\")","v":""}]
[]
[]
[]
[]
["Betalingsvillighed for næringsstoffer",null,null,null,null,null,null,null,null,"Prioritering af næringsstoffer"]
[null,null,null,null,"Maks. be-",null,null,null,null,"Prioriteret næringsstof:",null,null,null,null,{"$f":"Betalingsvillighed!U20","v":"Kvælstof"}]
[null,null,null,null,"taling, kr./kg",null,null,null,null,"Maksimum dosering:",null,null,null,null,{"$f":"Betalingsvillighed!S20","v":"50 kg udn. N/ha"}]
["Kvælstof, udnyttet",null,null,null,{"$f":"IF(Betalingsvillighed!P15=TRUE,Betalingsvillighed!E15,0)","v":0}]
["Fosfor",null,null,null,{"$f":"IF(Betalingsvillighed!P16=TRUE,Betalingsvillighed!E16,0)","v":0}]
["Kalium",null,null,null,{"$f":"IF(Betalingsvillighed!P17=TRUE,Betalingsvillighed!E17,0)","v":0}]
["Svovl",null,null,null,{"$f":"IF(Betalingsvillighed!P18=TRUE,Betalingsvillighed!E18,0)","v":0}]
["Magnesium",null,null,null,{"$f":"IF(Betalingsvillighed!P19=TRUE,Betalingsvillighed!E19,0)","v":0}]
[]
[]
[]
["Resultater"]
[null,null,null,null,"Omkost",null,"Værdi ÷",null,"Ved",null,null,null,"Medfølgende næringsstoffer, "]
["Gødningsprodukt",null,null,null,"I alt",null,"omkost.",null,{"$f":"Gødningsprodukter!X9","v":"50 kg udn. N/ha"},null,null,null,"kg pr. ha"]
[null,null,null,null,"kr./t",null,"kr./ton",null,"Ton/ha",null,"Kr./ha",null,"Nudn.","P","K","S","Mg"]
[{"$f":"IF(Gødningsprodukter!C11>1,VLOOKUP(Gødningsprodukter!C11,ProduktNavneTabel,2),\"\")","v":""},null,null,null,{"$f":"IF(Gødningsprodukter!V11<>0,Gødningsprodukter!V11,\"\")","v":""},null,{"$f":"IF(Gødningsprodukter!W11<>0,Gødningsprodukter!W11,\"\")","v":""},null,{"$f":"IF(Gødningsprodukter!X11<>0,Gødningsprodukter!X11,\"\")","v":""},null,{"$f":"IF(Gødningsprodukter!Y11<>0,Gødningsprodukter!Y11,\"\")","v":""},null,{"$f":"IF(Gødningsprodukter!Z11<>0,Gødningsprodukter!Z11,\"\")","v":""},{"$f":"IF(Gødningsprodukter!AA11<>0,Gødningsprodukter!AA11,\"\")","v":""},{"$f":"IF(Gødningsprodukter!AB11<>0,Gødningsprodukter!AB11,\"\")","v":""},{"$f":"IF(Gødningsprodukter!AC11<>0,Gødningsprodukter!AC11,\"\")","v":""},{"$f":"IF(Gødningsprodukter!AD11<>0,Gødningsprodukter!AD11,\"\")","v":""}]
[{"$f":"IF(Gødningsprodukter!C12>1,VLOOKUP(Gødningsprodukter!C12,ProduktNavneTabel,2),\"\")","v":""},null,null,null,{"$f":"IF(Gødningsprodukter!V12<>0,Gødningsprodukter!V12,\"\")","v":""},null,{"$f":"IF(Gødningsprodukter!W12<>0,Gødningsprodukter!W12,\"\")","v":""},null,{"$f":"IF(Gødningsprodukter!X12<>0,Gødningsprodukter!X12,\"\")","v":""},null,{"$f":"IF(Gødningsprodukter!Y12<>0,Gødningsprodukter!Y12,\"\")","v":""},null,{"$f":"IF(Gødningsprodukter!Z12<>0,Gødningsprodukter!Z12,\"\")","v":""},{"$f":"IF(Gødningsprodukter!AA12<>0,Gødningsprodukter!AA12,\"\")","v":""},{"$f":"IF(Gødningsprodukter!AB12<>0,Gødningsprodukter!AB12,\"\")","v":""},{"$f":"IF(Gødningsprodukter!AC12<>0,Gødningsprodukter!AC12,\"\")","v":""},{"$f":"IF(Gødningsprodukter!AD12<>0,Gødningsprodukter!AD12,\"\")","v":""}]
[{"$f":"IF(Gødningsprodukter!C13>1,VLOOKUP(Gødningsprodukter!C13,ProduktNavneTabel,2),\"\")","v":""},null,null,null,{"$f":"IF(Gødningsprodukter!V13<>0,Gødningsprodukter!V13,\"\")","v":""},null,{"$f":"IF(Gødningsprodukter!W13<>0,Gødningsprodukter!W13,\"\")","v":""},null,{"$f":"IF(Gødningsprodukter!X13<>0,Gødningsprodukter!X13,\"\")","v":""},null,{"$f":"IF(Gødningsprodukter!Y13<>0,Gødningsprodukter!Y13,\"\")","v":""},null,{"$f":"IF(Gødningsprodukter!Z13<>0,Gødningsprodukter!Z13,\"\")","v":""},{"$f":"IF(Gødningsprodukter!AA13<>0,Gødningsprodukter!AA13,\"\")","v":""},{"$f":"IF(Gødningsprodukter!AB13<>0,Gødningsprodukter!AB13,\"\")","v":""},{"$f":"IF(Gødningsprodukter!AC13<>0,Gødningsprodukter!AC13,\"\")","v":""},{"$f":"IF(Gødningsprodukter!AD13<>0,Gødningsprodukter!AD13,\"\")","v":""}]
[{"$f":"IF(Gødningsprodukter!C14>1,VLOOKUP(Gødningsprodukter!C14,ProduktNavneTabel,2),\"\")","v":""},null,null,null,{"$f":"IF(Gødningsprodukter!V14<>0,Gødningsprodukter!V14,\"\")","v":""},null,{"$f":"IF(Gødningsprodukter!W14<>0,Gødningsprodukter!W14,\"\")","v":""},null,{"$f":"IF(Gødningsprodukter!X14<>0,Gødningsprodukter!X14,\"\")","v":""},null,{"$f":"IF(Gødningsprodukter!Y14<>0,Gødningsprodukter!Y14,\"\")","v":""},null,{"$f":"IF(Gødningsprodukter!Z14<>0,Gødningsprodukter!Z14,\"\")","v":""},{"$f":"IF(Gødningsprodukter!AA14<>0,Gødningsprodukter!AA14,\"\")","v":""},{"$f":"IF(Gødningsprodukter!AB14<>0,Gødningsprodukter!AB14,\"\")","v":""},{"$f":"IF(Gødningsprodukter!AC14<>0,Gødningsprodukter!AC14,\"\")","v":""},{"$f":"IF(Gødningsprodukter!AD14<>0,Gødningsprodukter!AD14,\"\")","v":""}]
[{"$f":"IF(Gødningsprodukter!C15>1,VLOOKUP(Gødningsprodukter!C15,ProduktNavneTabel,2),\"\")","v":""},null,null,null,{"$f":"IF(Gødningsprodukter!V15<>0,Gødningsprodukter!V15,\"\")","v":""},null,{"$f":"IF(Gødningsprodukter!W15<>0,Gødningsprodukter!W15,\"\")","v":""},null,{"$f":"IF(Gødningsprodukter!X15<>0,Gødningsprodukter!X15,\"\")","v":""},null,{"$f":"IF(Gødningsprodukter!Y15<>0,Gødningsprodukter!Y15,\"\")","v":""},null,{"$f":"IF(Gødningsprodukter!Z15<>0,Gødningsprodukter!Z15,\"\")","v":""},{"$f":"IF(Gødningsprodukter!AA15<>0,Gødningsprodukter!AA15,\"\")","v":""},{"$f":"IF(Gødningsprodukter!AB15<>0,Gødningsprodukter!AB15,\"\")","v":""},{"$f":"IF(Gødningsprodukter!AC15<>0,Gødningsprodukter!AC15,\"\")","v":""},{"$f":"IF(Gødningsprodukter!AD15<>0,Gødningsprodukter!AD15,\"\")","v":""}]
[{"$f":"IF(Gødningsprodukter!C16>1,VLOOKUP(Gødningsprodukter!C16,ProduktNavneTabel,2),\"\")","v":""},null,null,null,{"$f":"IF(Gødningsprodukter!V16<>0,Gødningsprodukter!V16,\"\")","v":""},null,{"$f":"IF(Gødningsprodukter!W16<>0,Gødningsprodukter!W16,\"\")","v":""},null,{"$f":"IF(Gødningsprodukter!X16<>0,Gødningsprodukter!X16,\"\")","v":""},null,{"$f":"IF(Gødningsprodukter!Y16<>0,Gødningsprodukter!Y16,\"\")","v":""},null,{"$f":"IF(Gødningsprodukter!Z16<>0,Gødningsprodukter!Z16,\"\")","v":""},{"$f":"IF(Gødningsprodukter!AA16<>0,Gødningsprodukter!AA16,\"\")","v":""},{"$f":"IF(Gødningsprodukter!AB16<>0,Gødningsprodukter!AB16,\"\")","v":""},{"$f":"IF(Gødningsprodukter!AC16<>0,Gødningsprodukter!AC16,\"\")","v":""},{"$f":"IF(Gødningsprodukter!AD16<>0,Gødningsprodukter!AD16,\"\")","v":""}]
[{"$f":"IF(Gødningsprodukter!C17>1,VLOOKUP(Gødningsprodukter!C17,ProduktNavneTabel,2),\"\")","v":""},null,null,null,{"$f":"IF(Gødningsprodukter!V17<>0,Gødningsprodukter!V17,\"\")","v":""},null,{"$f":"IF(Gødningsprodukter!W17<>0,Gødningsprodukter!W17,\"\")","v":""},null,{"$f":"IF(Gødningsprodukter!X17<>0,Gødningsprodukter!X17,\"\")","v":""},null,{"$f":"IF(Gødningsprodukter!Y17<>0,Gødningsprodukter!Y17,\"\")","v":""},null,{"$f":"IF(Gødningsprodukter!Z17<>0,Gødningsprodukter!Z17,\"\")","v":""},{"$f":"IF(Gødningsprodukter!AA17<>0,Gødningsprodukter!AA17,\"\")","v":""},{"$f":"IF(Gødningsprodukter!AB17<>0,Gødningsprodukter!AB17,\"\")","v":""},{"$f":"IF(Gødningsprodukter!AC17<>0,Gødningsprodukter!AC17,\"\")","v":""},{"$f":"IF(Gødningsprodukter!AD17<>0,Gødningsprodukter!AD17,\"\")","v":""}]
[{"$f":"IF(Gødningsprodukter!C18>1,VLOOKUP(Gødningsprodukter!C18,ProduktNavneTabel,2),\"\")","v":""},null,null,null,{"$f":"IF(Gødningsprodukter!V18<>0,Gødningsprodukter!V18,\"\")","v":""},null,{"$f":"IF(Gødningsprodukter!W18<>0,Gødningsprodukter!W18,\"\")","v":""},null,{"$f":"IF(Gødningsprodukter!X18<>0,Gødningsprodukter!X18,\"\")","v":""},null,{"$f":"IF(Gødningsprodukter!Y18<>0,Gødningsprodukter!Y18,\"\")","v":""},null,{"$f":"IF(Gødningsprodukter!Z18<>0,Gødningsprodukter!Z18,\"\")","v":""},{"$f":"IF(Gødningsprodukter!AA18<>0,Gødningsprodukter!AA18,\"\")","v":""},{"$f":"IF(Gødningsprodukter!AB18<>0,Gødningsprodukter!AB18,\"\")","v":""},{"$f":"IF(Gødningsprodukter!AC18<>0,Gødningsprodukter!AC18,\"\")","v":""},{"$f":"IF(Gødningsprodukter!AD18<>0,Gødningsprodukter!AD18,\"\")","v":""}]
[{"$f":"IF(Gødningsprodukter!C19>1,VLOOKUP(Gødningsprodukter!C19,ProduktNavneTabel,2),\"\")","v":""},null,null,null,{"$f":"IF(Gødningsprodukter!V19<>0,Gødningsprodukter!V19,\"\")","v":""},null,{"$f":"IF(Gødningsprodukter!W19<>0,Gødningsprodukter!W19,\"\")","v":""},null,{"$f":"IF(Gødningsprodukter!X19<>0,Gødningsprodukter!X19,\"\")","v":""},null,{"$f":"IF(Gødningsprodukter!Y19<>0,Gødningsprodukter!Y19,\"\")","v":""},null,{"$f":"IF(Gødningsprodukter!Z19<>0,Gødningsprodukter!Z19,\"\")","v":""},{"$f":"IF(Gødningsprodukter!AA19<>0,Gødningsprodukter!AA19,\"\")","v":""},{"$f":"IF(Gødningsprodukter!AB19<>0,Gødningsprodukter!AB19,\"\")","v":""},{"$f":"IF(Gødningsprodukter!AC19<>0,Gødningsprodukter!AC19,\"\")","v":""},{"$f":"IF(Gødningsprodukter!AD19<>0,Gødningsprodukter!AD19,\"\")","v":""}]
[{"$f":"IF(Gødningsprodukter!C20>1,VLOOKUP(Gødningsprodukter!C20,ProduktNavneTabel,2),\"\")","v":""},null,null,null,{"$f":"IF(Gødningsprodukter!V20<>0,Gødningsprodukter!V20,\"\")","v":""},null,{"$f":"IF(Gødningsprodukter!W20<>0,Gødningsprodukter!W20,\"\")","v":""},null,{"$f":"IF(Gødningsprodukter!X20<>0,Gødningsprodukter!X20,\"\")","v":""},null,{"$f":"IF(Gødningsprodukter!Y20<>0,Gødningsprodukter!Y20,\"\")","v":""},null,{"$f":"IF(Gødningsprodukter!Z20<>0,Gødningsprodukter!Z20,\"\")","v":""},{"$f":"IF(Gødningsprodukter!AA20<>0,Gødningsprodukter!AA20,\"\")","v":""},{"$f":"IF(Gødningsprodukter!AB20<>0,Gødningsprodukter!AB20,\"\")","v":""},{"$f":"IF(Gødningsprodukter!AC20<>0,Gødningsprodukter!AC20,\"\")","v":""},{"$f":"IF(Gødningsprodukter!AD20<>0,Gødningsprodukter!AD20,\"\")","v":""}]
[]
[]
[]
[]
[]
[]
[]
[]
[]
[null,"Version:",null,{"$f":"Portal!G17","v":"Version 2.0"},null,null,null,"Udskriftsdato: ",null,null,{"$f":"TODAY()","v":"2017-12-07"},null,null,null,null,"Side 1"]
[]
["Beregningsforudsætninger"]
[]
[]
["Næringsstofindhold, gødningsværdi og indkøbspris"]
[]
["Gødningsprodukt",null,null,null,null,null,"Næringsstofindhold, kg pr. ton",null,null,null,null,null,"Nudn.","Værdi,",null,"Indkøb,"]
[null,null,null,null,null,null,"Ntot","NNH4","P","K","S","Mg","pct.","kr. pr. ton",null,"kr. pr. ton"]
[{"$f":"IF(Gødningsprodukter!C11>1,VLOOKUP(Gødningsprodukter!C11,ProduktNavneTabel,2),\"\")","v":""},null,null,null,null,null,{"$f":"IF(Gødningsprodukter!D11<>0,Gødningsprodukter!D11,\"\")","v":""},{"$f":"IF(Gødningsprodukter!E11<>0,Gødningsprodukter!E11,\"\")","v":""},{"$f":"IF(Gødningsprodukter!F11<>0,Gødningsprodukter!F11,\"\")","v":""},{"$f":"IF(Gødningsprodukter!G11<>0,Gødningsprodukter!G11,\"\")","v":""},{"$f":"IF(Gødningsprodukter!H11<>0,Gødningsprodukter!H11,\"\")","v":""},{"$f":"IF(Gødningsprodukter!I11<>0,Gødningsprodukter!I11,\"\")","v":""},{"$f":"IF(Gødningsprodukter!K11<>0,Gødningsprodukter!K11,\"\")","v":""},{"$f":"IF(Gødningsprodukter!L11<>0,Gødningsprodukter!L11,\"\")","v":""},null,{"$f":"IF(Gødningsprodukter!M11<>0,Gødningsprodukter!M11,\"\")","v":""}]
[{"$f":"IF(Gødningsprodukter!C12>1,VLOOKUP(Gødningsprodukter!C12,ProduktNavneTabel,2),\"\")","v":""},null,null,null,null,null,{"$f":"IF(Gødningsprodukter!D12<>0,Gødningsprodukter!D12,\"\")","v":""},{"$f":"IF(Gødningsprodukter!E12<>0,Gødningsprodukter!E12,\"\")","v":""},{"$f":"IF(Gødningsprodukter!F12<>0,Gødningsprodukter!F12,\"\")","v":""},{"$f":"IF(Gødningsprodukter!G12<>0,Gødningsprodukter!G12,\"\")","v":""},{"$f":"IF(Gødningsprodukter!H12<>0,Gødningsprodukter!H12,\"\")","v":""},{"$f":"IF(Gødningsprodukter!I12<>0,Gødningsprodukter!I12,\"\")","v":""},{"$f":"IF(Gødningsprodukter!K12<>0,Gødningsprodukter!K12,\"\")","v":""},{"$f":"IF(Gødningsprodukter!L12<>0,Gødningsprodukter!L12,\"\")","v":""},null,{"$f":"IF(Gødningsprodukter!M12<>0,Gødningsprodukter!M12,\"\")","v":""}]
[{"$f":"IF(Gødningsprodukter!C13>1,VLOOKUP(Gødningsprodukter!C13,ProduktNavneTabel,2),\"\")","v":""},null,null,null,null,null,{"$f":"IF(Gødningsprodukter!D13<>0,Gødningsprodukter!D13,\"\")","v":""},{"$f":"IF(Gødningsprodukter!E13<>0,Gødningsprodukter!E13,\"\")","v":""},{"$f":"IF(Gødningsprodukter!F13<>0,Gødningsprodukter!F13,\"\")","v":""},{"$f":"IF(Gødningsprodukter!G13<>0,Gødningsprodukter!G13,\"\")","v":""},{"$f":"IF(Gødningsprodukter!H13<>0,Gødningsprodukter!H13,\"\")","v":""},{"$f":"IF(Gødningsprodukter!I13<>0,Gødningsprodukter!I13,\"\")","v":""},{"$f":"IF(Gødningsprodukter!K13<>0,Gødningsprodukter!K13,\"\")","v":""},{"$f":"IF(Gødningsprodukter!L13<>0,Gødningsprodukter!L13,\"\")","v":""},null,{"$f":"IF(Gødningsprodukter!M13<>0,Gødningsprodukter!M13,\"\")","v":""}]
[{"$f":"IF(Gødningsprodukter!C14>1,VLOOKUP(Gødningsprodukter!C14,ProduktNavneTabel,2),\"\")","v":""},null,null,null,null,null,{"$f":"IF(Gødningsprodukter!D14<>0,Gødningsprodukter!D14,\"\")","v":""},{"$f":"IF(Gødningsprodukter!E14<>0,Gødningsprodukter!E14,\"\")","v":""},{"$f":"IF(Gødningsprodukter!F14<>0,Gødningsprodukter!F14,\"\")","v":""},{"$f":"IF(Gødningsprodukter!G14<>0,Gødningsprodukter!G14,\"\")","v":""},{"$f":"IF(Gødningsprodukter!H14<>0,Gødningsprodukter!H14,\"\")","v":""},{"$f":"IF(Gødningsprodukter!I14<>0,Gødningsprodukter!I14,\"\")","v":""},{"$f":"IF(Gødningsprodukter!K14<>0,Gødningsprodukter!K14,\"\")","v":""},{"$f":"IF(Gødningsprodukter!L14<>0,Gødningsprodukter!L14,\"\")","v":""},null,{"$f":"IF(Gødningsprodukter!M14<>0,Gødningsprodukter!M14,\"\")","v":""}]
[{"$f":"IF(Gødningsprodukter!C15>1,VLOOKUP(Gødningsprodukter!C15,ProduktNavneTabel,2),\"\")","v":""},null,null,null,null,null,{"$f":"IF(Gødningsprodukter!D15<>0,Gødningsprodukter!D15,\"\")","v":""},{"$f":"IF(Gødningsprodukter!E15<>0,Gødningsprodukter!E15,\"\")","v":""},{"$f":"IF(Gødningsprodukter!F15<>0,Gødningsprodukter!F15,\"\")","v":""},{"$f":"IF(Gødningsprodukter!G15<>0,Gødningsprodukter!G15,\"\")","v":""},{"$f":"IF(Gødningsprodukter!H15<>0,Gødningsprodukter!H15,\"\")","v":""},{"$f":"IF(Gødningsprodukter!I15<>0,Gødningsprodukter!I15,\"\")","v":""},{"$f":"IF(Gødningsprodukter!K15<>0,Gødningsprodukter!K15,\"\")","v":""},{"$f":"IF(Gødningsprodukter!L15<>0,Gødningsprodukter!L15,\"\")","v":""},null,{"$f":"IF(Gødningsprodukter!M15<>0,Gødningsprodukter!M15,\"\")","v":""}]
[{"$f":"IF(Gødningsprodukter!C16>1,VLOOKUP(Gødningsprodukter!C16,ProduktNavneTabel,2),\"\")","v":""},null,null,null,null,null,{"$f":"IF(Gødningsprodukter!D16<>0,Gødningsprodukter!D16,\"\")","v":""},{"$f":"IF(Gødningsprodukter!E16<>0,Gødningsprodukter!E16,\"\")","v":""},{"$f":"IF(Gødningsprodukter!F16<>0,Gødningsprodukter!F16,\"\")","v":""},{"$f":"IF(Gødningsprodukter!G16<>0,Gødningsprodukter!G16,\"\")","v":""},{"$f":"IF(Gødningsprodukter!H16<>0,Gødningsprodukter!H16,\"\")","v":""},{"$f":"IF(Gødningsprodukter!I16<>0,Gødningsprodukter!I16,\"\")","v":""},{"$f":"IF(Gødningsprodukter!K16<>0,Gødningsprodukter!K16,\"\")","v":""},{"$f":"IF(Gødningsprodukter!L16<>0,Gødningsprodukter!L16,\"\")","v":""},null,{"$f":"IF(Gødningsprodukter!M16<>0,Gødningsprodukter!M16,\"\")","v":""}]
[{"$f":"IF(Gødningsprodukter!C17>1,VLOOKUP(Gødningsprodukter!C17,ProduktNavneTabel,2),\"\")","v":""},null,null,null,null,null,{"$f":"IF(Gødningsprodukter!D17<>0,Gødningsprodukter!D17,\"\")","v":""},{"$f":"IF(Gødningsprodukter!E17<>0,Gødningsprodukter!E17,\"\")","v":""},{"$f":"IF(Gødningsprodukter!F17<>0,Gødningsprodukter!F17,\"\")","v":""},{"$f":"IF(Gødningsprodukter!G17<>0,Gødningsprodukter!G17,\"\")","v":""},{"$f":"IF(Gødningsprodukter!H17<>0,Gødningsprodukter!H17,\"\")","v":""},{"$f":"IF(Gødningsprodukter!I17<>0,Gødningsprodukter!I17,\"\")","v":""},{"$f":"IF(Gødningsprodukter!K17<>0,Gødningsprodukter!K17,\"\")","v":""},{"$f":"IF(Gødningsprodukter!L17<>0,Gødningsprodukter!L17,\"\")","v":""},null,{"$f":"IF(Gødningsprodukter!M17<>0,Gødningsprodukter!M17,\"\")","v":""}]
[{"$f":"IF(Gødningsprodukter!C18>1,VLOOKUP(Gødningsprodukter!C18,ProduktNavneTabel,2),\"\")","v":""},null,null,null,null,null,{"$f":"IF(Gødningsprodukter!D18<>0,Gødningsprodukter!D18,\"\")","v":""},{"$f":"IF(Gødningsprodukter!E18<>0,Gødningsprodukter!E18,\"\")","v":""},{"$f":"IF(Gødningsprodukter!F18<>0,Gødningsprodukter!F18,\"\")","v":""},{"$f":"IF(Gødningsprodukter!G18<>0,Gødningsprodukter!G18,\"\")","v":""},{"$f":"IF(Gødningsprodukter!H18<>0,Gødningsprodukter!H18,\"\")","v":""},{"$f":"IF(Gødningsprodukter!I18<>0,Gødningsprodukter!I18,\"\")","v":""},{"$f":"IF(Gødningsprodukter!K18<>0,Gødningsprodukter!K18,\"\")","v":""},{"$f":"IF(Gødningsprodukter!L18<>0,Gødningsprodukter!L18,\"\")","v":""},null,{"$f":"IF(Gødningsprodukter!M18<>0,Gødningsprodukter!M18,\"\")","v":""}]
[{"$f":"IF(Gødningsprodukter!C19>1,VLOOKUP(Gødningsprodukter!C19,ProduktNavneTabel,2),\"\")","v":""},null,null,null,null,null,{"$f":"IF(Gødningsprodukter!D19<>0,Gødningsprodukter!D19,\"\")","v":""},{"$f":"IF(Gødningsprodukter!E19<>0,Gødningsprodukter!E19,\"\")","v":""},{"$f":"IF(Gødningsprodukter!F19<>0,Gødningsprodukter!F19,\"\")","v":""},{"$f":"IF(Gødningsprodukter!G19<>0,Gødningsprodukter!G19,\"\")","v":""},{"$f":"IF(Gødningsprodukter!H19<>0,Gødningsprodukter!H19,\"\")","v":""},{"$f":"IF(Gødningsprodukter!I19<>0,Gødningsprodukter!I19,\"\")","v":""},{"$f":"IF(Gødningsprodukter!K19<>0,Gødningsprodukter!K19,\"\")","v":""},{"$f":"IF(Gødningsprodukter!L19<>0,Gødningsprodukter!L19,\"\")","v":""},null,{"$f":"IF(Gødningsprodukter!M19<>0,Gødningsprodukter!M19,\"\")","v":""}]
[{"$f":"IF(Gødningsprodukter!C20>1,VLOOKUP(Gødningsprodukter!C20,ProduktNavneTabel,2),\"\")","v":""},null,null,null,null,null,{"$f":"IF(Gødningsprodukter!D20<>0,Gødningsprodukter!D20,\"\")","v":""},{"$f":"IF(Gødningsprodukter!E20<>0,Gødningsprodukter!E20,\"\")","v":""},{"$f":"IF(Gødningsprodukter!F20<>0,Gødningsprodukter!F20,\"\")","v":""},{"$f":"IF(Gødningsprodukter!G20<>0,Gødningsprodukter!G20,\"\")","v":""},{"$f":"IF(Gødningsprodukter!H20<>0,Gødningsprodukter!H20,\"\")","v":""},{"$f":"IF(Gødningsprodukter!I20<>0,Gødningsprodukter!I20,\"\")","v":""},{"$f":"IF(Gødningsprodukter!K20<>0,Gødningsprodukter!K20,\"\")","v":""},{"$f":"IF(Gødningsprodukter!L20<>0,Gødningsprodukter!L20,\"\")","v":""},null,{"$f":"IF(Gødningsprodukter!M20<>0,Gødningsprodukter!M20,\"\")","v":""}]
[]
[]
["Transport, lagring og udbringning"]
[null,null,null,null,null,"Transport",null,null,null,null,null,"Lagring",null,"Udbringning"]
["Gødningsprodukt",null,null,null,null,"Form",null,"Afstand,",null,"Pris,",null,"Pris,",null,"Nedfæld-",null,"Pris,"]
[null,null,null,null,null,null,null,"km",null,"kr. pr. ton",null,"kr. pr. ton",null,"ning?",null,"kr. pr. ton"]
[{"$f":"IF(Gødningsprodukter!C11>1,VLOOKUP(Gødningsprodukter!C11,ProduktNavneTabel,2),\"\")","v":""},null,null,null,null,{"$f":"IF(Gødningsprodukter!C11>1,IF(Gødningsprodukter!AH11=TRUE,Gødningsprodukter!AE11,\"-\"),\"\")","v":""},null,{"$f":"IF(Gødningsprodukter!C11>1,IF(Gødningsprodukter!AH11=TRUE,Gødningsprodukter!P11,\"-\"),\"\")","v":""},null,{"$f":"IF(Gødningsprodukter!C11>1,IF(Gødningsprodukter!AH11=TRUE,Gødningsprodukter!Q11,\"-\"),\"\")","v":""},null,{"$f":"IF(Gødningsprodukter!C11>1,IF(Gødningsprodukter!AI11=TRUE,Gødningsprodukter!S11,\"-\"),\"\")","v":""},null,{"$f":"IF(Gødningsprodukter!C11>1,IF(Gødningsprodukter!AJ11=TRUE,\"Ja\",\"Nej\"),\"\")","v":""},null,{"$f":"IF(Gødningsprodukter!C11>1,Gødningsprodukter!U11,\"\")","v":""}]
[{"$f":"IF(Gødningsprodukter!C12>1,VLOOKUP(Gødningsprodukter!C12,ProduktNavneTabel,2),\"\")","v":""},null,null,null,null,{"$f":"IF(Gødningsprodukter!C12>1,IF(Gødningsprodukter!AH12=TRUE,Gødningsprodukter!AE12,\"-\"),\"\")","v":""},null,{"$f":"IF(Gødningsprodukter!C12>1,IF(Gødningsprodukter!AH12=TRUE,Gødningsprodukter!P12,\"-\"),\"\")","v":""},null,{"$f":"IF(Gødningsprodukter!C12>1,IF(Gødningsprodukter!AH12=TRUE,Gødningsprodukter!Q12,\"-\"),\"\")","v":""},null,{"$f":"IF(Gødningsprodukter!C12>1,IF(Gødningsprodukter!AI12=TRUE,Gødningsprodukter!S12,\"-\"),\"\")","v":""},null,{"$f":"IF(Gødningsprodukter!C12>1,IF(Gødningsprodukter!AJ12=TRUE,\"Ja\",\"Nej\"),\"\")","v":""},null,{"$f":"IF(Gødningsprodukter!C12>1,Gødningsprodukter!U12,\"\")","v":""}]
[{"$f":"IF(Gødningsprodukter!C13>1,VLOOKUP(Gødningsprodukter!C13,ProduktNavneTabel,2),\"\")","v":""},null,null,null,null,{"$f":"IF(Gødningsprodukter!C13>1,IF(Gødningsprodukter!AH13=TRUE,Gødningsprodukter!AE13,\"-\"),\"\")","v":""},null,{"$f":"IF(Gødningsprodukter!C13>1,IF(Gødningsprodukter!AH13=TRUE,Gødningsprodukter!P13,\"-\"),\"\")","v":""},null,{"$f":"IF(Gødningsprodukter!C13>1,IF(Gødningsprodukter!AH13=TRUE,Gødningsprodukter!Q13,\"-\"),\"\")","v":""},null,{"$f":"IF(Gødningsprodukter!C13>1,IF(Gødningsprodukter!AI13=TRUE,Gødningsprodukter!S13,\"-\"),\"\")","v":""},null,{"$f":"IF(Gødningsprodukter!C13>1,IF(Gødningsprodukter!AJ13=TRUE,\"Ja\",\"Nej\"),\"\")","v":""},null,{"$f":"IF(Gødningsprodukter!C13>1,Gødningsprodukter!U13,\"\")","v":""}]
[{"$f":"IF(Gødningsprodukter!C14>1,VLOOKUP(Gødningsprodukter!C14,ProduktNavneTabel,2),\"\")","v":""},null,null,null,null,{"$f":"IF(Gødningsprodukter!C14>1,IF(Gødningsprodukter!AH14=TRUE,Gødningsprodukter!AE14,\"-\"),\"\")","v":""},null,{"$f":"IF(Gødningsprodukter!C14>1,IF(Gødningsprodukter!AH14=TRUE,Gødningsprodukter!P14,\"-\"),\"\")","v":""},null,{"$f":"IF(Gødningsprodukter!C14>1,IF(Gødningsprodukter!AH14=TRUE,Gødningsprodukter!Q14,\"-\"),\"\")","v":""},null,{"$f":"IF(Gødningsprodukter!C14>1,IF(Gødningsprodukter!AI14=TRUE,Gødningsprodukter!S14,\"-\"),\"\")","v":""},null,{"$f":"IF(Gødningsprodukter!C14>1,IF(Gødningsprodukter!AJ14=TRUE,\"Ja\",\"Nej\"),\"\")","v":""},null,{"$f":"IF(Gødningsprodukter!C14>1,Gødningsprodukter!U14,\"\")","v":""}]
[{"$f":"IF(Gødningsprodukter!C15>1,VLOOKUP(Gødningsprodukter!C15,ProduktNavneTabel,2),\"\")","v":""},null,null,null,null,{"$f":"IF(Gødningsprodukter!C15>1,IF(Gødningsprodukter!AH15=TRUE,Gødningsprodukter!AE15,\"-\"),\"\")","v":""},null,{"$f":"IF(Gødningsprodukter!C15>1,IF(Gødningsprodukter!AH15=TRUE,Gødningsprodukter!P15,\"-\"),\"\")","v":""},null,{"$f":"IF(Gødningsprodukter!C15>1,IF(Gødningsprodukter!AH15=TRUE,Gødningsprodukter!Q15,\"-\"),\"\")","v":""},null,{"$f":"IF(Gødningsprodukter!C15>1,IF(Gødningsprodukter!AI15=TRUE,Gødningsprodukter!S15,\"-\"),\"\")","v":""},null,{"$f":"IF(Gødningsprodukter!C15>1,IF(Gødningsprodukter!AJ15=TRUE,\"Ja\",\"Nej\"),\"\")","v":""},null,{"$f":"IF(Gødningsprodukter!C15>1,Gødningsprodukter!U15,\"\")","v":""}]
[{"$f":"IF(Gødningsprodukter!C16>1,VLOOKUP(Gødningsprodukter!C16,ProduktNavneTabel,2),\"\")","v":""},null,null,null,null,{"$f":"IF(Gødningsprodukter!C16>1,IF(Gødningsprodukter!AH16=TRUE,Gødningsprodukter!AE16,\"-\"),\"\")","v":""},null,{"$f":"IF(Gødningsprodukter!C16>1,IF(Gødningsprodukter!AH16=TRUE,Gødningsprodukter!P16,\"-\"),\"\")","v":""},null,{"$f":"IF(Gødningsprodukter!C16>1,IF(Gødningsprodukter!AH16=TRUE,Gødningsprodukter!Q16,\"-\"),\"\")","v":""},null,{"$f":"IF(Gødningsprodukter!C16>1,IF(Gødningsprodukter!AI16=TRUE,Gødningsprodukter!S16,\"-\"),\"\")","v":""},null,{"$f":"IF(Gødningsprodukter!C16>1,IF(Gødningsprodukter!AJ16=TRUE,\"Ja\",\"Nej\"),\"\")","v":""},null,{"$f":"IF(Gødningsprodukter!C16>1,Gødningsprodukter!U16,\"\")","v":""}]
[{"$f":"IF(Gødningsprodukter!C17>1,VLOOKUP(Gødningsprodukter!C17,ProduktNavneTabel,2),\"\")","v":""},null,null,null,null,{"$f":"IF(Gødningsprodukter!C17>1,IF(Gødningsprodukter!AH17=TRUE,Gødningsprodukter!AE17,\"-\"),\"\")","v":""},null,{"$f":"IF(Gødningsprodukter!C17>1,IF(Gødningsprodukter!AH17=TRUE,Gødningsprodukter!P17,\"-\"),\"\")","v":""},null,{"$f":"IF(Gødningsprodukter!C17>1,IF(Gødningsprodukter!AH17=TRUE,Gødningsprodukter!Q17,\"-\"),\"\")","v":""},null,{"$f":"IF(Gødningsprodukter!C17>1,IF(Gødningsprodukter!AI17=TRUE,Gødningsprodukter!S17,\"-\"),\"\")","v":""},null,{"$f":"IF(Gødningsprodukter!C17>1,IF(Gødningsprodukter!AJ17=TRUE,\"Ja\",\"Nej\"),\"\")","v":""},null,{"$f":"IF(Gødningsprodukter!C17>1,Gødningsprodukter!U17,\"\")","v":""}]
[{"$f":"IF(Gødningsprodukter!C18>1,VLOOKUP(Gødningsprodukter!C18,ProduktNavneTabel,2),\"\")","v":""},null,null,null,null,{"$f":"IF(Gødningsprodukter!C18>1,IF(Gødningsprodukter!AH18=TRUE,Gødningsprodukter!AE18,\"-\"),\"\")","v":""},null,{"$f":"IF(Gødningsprodukter!C18>1,IF(Gødningsprodukter!AH18=TRUE,Gødningsprodukter!P18,\"-\"),\"\")","v":""},null,{"$f":"IF(Gødningsprodukter!C18>1,IF(Gødningsprodukter!AH18=TRUE,Gødningsprodukter!Q18,\"-\"),\"\")","v":""},null,{"$f":"IF(Gødningsprodukter!C18>1,IF(Gødningsprodukter!AI18=TRUE,Gødningsprodukter!S18,\"-\"),\"\")","v":""},null,{"$f":"IF(Gødningsprodukter!C18>1,IF(Gødningsprodukter!AJ18=TRUE,\"Ja\",\"Nej\"),\"\")","v":""},null,{"$f":"IF(Gødningsprodukter!C18>1,Gødningsprodukter!U18,\"\")","v":""}]
[{"$f":"IF(Gødningsprodukter!C19>1,VLOOKUP(Gødningsprodukter!C19,ProduktNavneTabel,2),\"\")","v":""},null,null,null,null,{"$f":"IF(Gødningsprodukter!C19>1,IF(Gødningsprodukter!AH19=TRUE,Gødningsprodukter!AE19,\"-\"),\"\")","v":""},null,{"$f":"IF(Gødningsprodukter!C19>1,IF(Gødningsprodukter!AH19=TRUE,Gødningsprodukter!P19,\"-\"),\"\")","v":""},null,{"$f":"IF(Gødningsprodukter!C19>1,IF(Gødningsprodukter!AH19=TRUE,Gødningsprodukter!Q19,\"-\"),\"\")","v":""},null,{"$f":"IF(Gødningsprodukter!C19>1,IF(Gødningsprodukter!AI19=TRUE,Gødningsprodukter!S19,\"-\"),\"\")","v":""},null,{"$f":"IF(Gødningsprodukter!C19>1,IF(Gødningsprodukter!AJ19=TRUE,\"Ja\",\"Nej\"),\"\")","v":""},null,{"$f":"IF(Gødningsprodukter!C19>1,Gødningsprodukter!U19,\"\")","v":""}]
[{"$f":"IF(Gødningsprodukter!C20>1,VLOOKUP(Gødningsprodukter!C20,ProduktNavneTabel,2),\"\")","v":""},null,null,null,null,{"$f":"IF(Gødningsprodukter!C20>1,IF(Gødningsprodukter!AH20=TRUE,Gødningsprodukter!AE20,\"-\"),\"\")","v":""},null,{"$f":"IF(Gødningsprodukter!C20>1,IF(Gødningsprodukter!AH20=TRUE,Gødningsprodukter!P20,\"-\"),\"\")","v":""},null,{"$f":"IF(Gødningsprodukter!C20>1,IF(Gødningsprodukter!AH20=TRUE,Gødningsprodukter!Q20,\"-\"),\"\")","v":""},null,{"$f":"IF(Gødningsprodukter!C20>1,IF(Gødningsprodukter!AI20=TRUE,Gødningsprodukter!S20,\"-\"),\"\")","v":""},null,{"$f":"IF(Gødningsprodukter!C20>1,IF(Gødningsprodukter!AJ20=TRUE,\"Ja\",\"Nej\"),\"\")","v":""},null,{"$f":"IF(Gødningsprodukter!C20>1,Gødningsprodukter!U20,\"\")","v":""}]
[]
[]
["Transportomkostninger"]
[null,null,null,null,null,null,null,null,null,null,null,"Læsse og",null,"Køre-"]
["Transportform",null,null,null,"Produktform",null,null,null,null,"Timepris,",null,"lodse,",null,"hastighed,",null,"Læsstr., "]
[null,null,null,null,null,null,null,null,null,"kr. pr. time",null,"min. pr. læs",null,"km/t",null,"ton pr. læs"]
["Lastbil",null,null,null,"Fast",null,null,null,null,{"$f":"Forudsætninger!D16","v":700},null,{"$f":"Forudsætninger!F16","v":10},null,{"$f":"Forudsætninger!G16","v":70},null,{"$f":"Forudsætninger!H16","v":20}]
[null,null,null,null,"Flydende",null,null,null,null,{"$f":"Forudsætninger!D17","v":700},null,{"$f":"Forudsætninger!F17","v":4},null,{"$f":"Forudsætninger!G17","v":70},null,{"$f":"Forudsætninger!H17","v":30}]
[null,null,null,null,"Granulat",null,null,null,null,{"$f":"Forudsætninger!D18","v":700},null,{"$f":"Forudsætninger!F18","v":20},null,{"$f":"Forudsætninger!G18","v":70},null,{"$f":"Forudsætninger!H18","v":20}]
["Traktor",null,null,null,"Fast",null,null,null,null,{"$f":"Forudsætninger!D19","v":900},null,{"$f":"Forudsætninger!F19","v":10},null,{"$f":"Forudsætninger!G19","v":20},null,{"$f":"Forudsætninger!H19","v":15}]
[null,null,null,null,"Flydende",null,null,null,null,{"$f":"Forudsætninger!D20","v":900},null,{"$f":"Forudsætninger!F20","v":3},null,{"$f":"Forudsætninger!G20","v":20},null,{"$f":"Forudsætninger!H20","v":25}]
[null,null,null,null,"Granulat",null,null,null,null,{"$f":"Forudsætninger!D21","v":900},null,{"$f":"Forudsætninger!F21","v":20},null,{"$f":"Forudsætninger!G21","v":20},null,{"$f":"Forudsætninger!H21","v":20}]
[]
[]
[]
[null,null,null,null,null,null,null,null,null,null,null,null,null,null,null,"Side 2"]

{"sheet":"Gødningsoversigt","index":6,"n_rows":90,"n_cols":33,"rows_kept":90,"cut":false,"hidden":false,"merged":[]}
[null,"Oversigt over typer og indhold af gødninger godkendt til økologisk brug"]
[]
[null,"Klik på navnet og få detaljeret information om den enkelte gødning"]
[null,"OBS: Alle priser er blot vejledende. Tilret derfor altid til lokale forhold."]
[]
[]
[null,null,null,null,"      Næringsstofindhold, kg pr. ton (vejledende)",null,null,null,null,null,"N-udn%","Produkt","Indkøb,","Lagring,","Udbring-",null,null,null,null,null,null,null,"      Næringsstofindhold, kg pr. ton (vejledende)",null,null,null,null,null,"N-udn%",null,"Indkøb,","Lagring,","Udbring-"]
[null,null,"Forhandler","Lokalitet","Total-N","NH4-N","Fosfor","Kalium","Svovl","Magne-sium","Forventet 1. års ","form","kr./ton vejl.","kr./ ton","ning, \nkr./ton",null,null,null,null,"Husdyrgødninger","Forhandler","Lokalitet","Total-N","NH4-N","Fosfor","Kalium","Svovl","Magne-sium","Forventet","Produkt-form","kr./ton","kr. pr. ton","ning, kr. pr. ton"]
[null,null,null,null,null,null,null,null,null,null,null,null,null,null,null,null,null,null,null,"Husdyrgødninger"]
[null,"Husdyrgødninger"]
[null,"Kvæggylle",null,"Lokalt",4.4000000000000004,2.6,0.7,3.2,null,null,55,"Flydende",null,12,20,null,null,null,null,"Kvæggylle",null,"Lokalt",4.4000000000000004,2.6,0.7,3.2,null,null,55,"Flydende",null,12,20]
[null,"Sogylle",null,"Lokalt",3.9,2.9,1,1.7,null,null,65,"Flydende",null,12,20,null,null,null,null,"Sogylle",null,"Lokalt",3.9,2.9,1,1.7,null,null,65,"Flydende",null,12,20]
[null,"Slagtesvinegylle",null,"Lokalt",4.5,3.4,1.2,2.6,null,null,65,"Flydende",null,12,20,null,null,null,null,"Slagtesvinegylle",null,"Lokalt",4.5,3.4,1.2,2.6,null,null,65,"Flydende",null,12,20]
[null,"Fast gødning, høns.",null,"Lokalt",18.5,6.5,6,9.6999999999999993,null,null,60,"Fast",null,20,30,null,null,null,null,"Fast gødning, høns.",null,"Lokalt",18.5,6.5,6,9.6999999999999993,null,null,60,"Fast",null,20,30]
[null,"Dybstrøelse, slagtekyll.",null,"Lokalt",26.6,8,8.4,17.399999999999999,null,null,60,"Fast",null,20,30,null,null,null,null,"Dybstrøelse, slagtekyll.",null,"Lokalt",26.6,8,8.4,17.399999999999999,null,null,60,"Fast",null,20,30]
[null,"Dybstøelse, kvæg",null,"Lokalt",7.5,1.5,1.1000000000000001,8,null,null,30,"Fast",null,20,30,null,null,null,null,"Dybstøelse, kvæg",null,"Lokalt",7.5,1.5,1.1000000000000001,8,null,null,30,"Fast",null,20,30]
[null,"Minkgylle",null,"Lokalt",8.6,3.8,3.2,1.7,null,null,65,"Flydende",null,12,20,null,null,null,null,"Minkgylle",null,"Lokalt",8.6,3.8,3.2,1.7,null,null,65,"Flydende",null,12,20]
[null,"Hestedybstrøelse",null,"Lokalt",7.7,1.9,1.6,13,null,null,30,"Fast",null,20,30,null,null,null,null,"Hestedybstrøelse",null,"Lokalt",7.7,1.9,1.6,13,null,null,30,"Fast",null,20,30]
[]
[]
[]
[null,"Andre gødninger med N",null,null,null,null,null,null,null,null,null,null,null,null,null,null,null,null,null,"Andre gødninger med N"]
[null,"Øgro 10-3-1","DAKA","Hele landet",100,null,26,10,5,2,70,"Fast",2500,0,50,null,null,null,null,"Øgro 10-3-1","DAKA","Hele landet",100,null,26,10,5,2,70,"Fast",2500,0,50]
[null,"Øgro 9-3-4 + 2S","DAKA","Hele landet",88,null,25,36,24,2,70,"Fast",3200,0,50,null,null,null,null,"Øgro 9-3-4 + 2S","DAKA","Hele landet",88,null,25,36,24,2,70,"Fast",3200,0,50]
[null,"Øgro 15N","DAKA","Hele landet",150,null,3,0.1,22,0.1,70,"Fast",4620,0,50,null,null,null,null,"Øgro 15N","DAKA","Hele landet",150,null,3,0.1,22,0.1,70,"Fast",4620,0,50]
[null,"Øgro Granulat 9-3-4 +2S","DAKA","Hele landet",88,null,25,36,24,2,70,"Fast",3700,0,50,null,null,null,null,"Øgro Granulat 9-3-4 +2S","DAKA","Hele landet",88,null,25,36,24,2,70,"Fast",3700,0,50]
[null,"Protamylasse","AKS, AKK","Jylland",15,null,3,36,6,2.9,70,"Flydende",210,12,20,null,null,null,null,"Protamylasse","AKS, AKK","Jylland",15,null,3,36,6,2.9,70,"Flydende",210,12,20]
[null,"K-2 (Protamylasse)","AKV, Langholt","Nordjylland",18,null,4,60,7,3,70,"Flydende",400,12,20,null,null,null,null,"K-2 (Protamylasse)","AKV, Langholt","Nordjylland",18,null,4,60,7,3,70,"Flydende",400,12,20]
[null,"Kartoffelfrugtsaft","AKM","Brande",1.05,null,0.27,3.6,1.49,0.16,70,"Flydende",0,12,20,null,null,null,null,"Kartoffelfrugtsaft","AKM","Brande",1.05,null,0.27,3.6,1.49,0.16,70,"Flydende",0,12,20]
[null,"kartoffekondensat","Miljøservice","Grindsted/Varde",1.1000000000000001,null,0.1,1.6,null,null,70,"Flydende",0,12,20,null,null,null,null,"kartoffekondensat","Miljøservice","Grindsted/Varde",1.1000000000000001,null,0.1,1.6,null,null,70,"Flydende",0,12,20]
[null,"Kaliumvinasse","DLG ","Hele landet",7,null,0,210,170,2,70,"Fast",1800,20,75,null,null,null,null,"Kaliumvinasse","DLG ","Hele landet",7,null,0,210,170,2,70,"Fast",1800,20,75]
[null,"Vinasse","Brdr. Thorsen","Jylland",35,null,null,70,null,null,70,"Flydende",600,20,75,null,null,null,null,"Vinasse","Brdr. Thorsen","Jylland",35,null,null,70,null,null,70,"Flydende",600,20,75]
[null,"Vinasse-kali","Brdr. Thorsen","Jyland",8,null,null,190,70,null,70,"Flydende",700,20,75,null,null,null,null,"Vinasse-kali","Brdr. Thorsen","Jyland",8,null,null,190,70,null,70,"Flydende",700,20,75]
[null,"Kaliumvinasse ekstrakt K25","DLG, Danish Agro, Vestjyllands Andel","Hele landet",3,null,3,250,123,0.2,70,"Fast",1930,20,75,null,null,null,null,"Kaliumvinasse ekstrakt K25","DLG, Danish Agro, Vestjyllands Andel","Hele landet",3,null,3,250,123,0.2,70,"Fast",1930,20,75]
[]
[]
[null,"Binadan 4-1-3","Fousol Production;","Hele landet",40,null,8,28,null,6.4,60,"Fast",1980,0,50,null,null,null,null,"Binadan 4-1-3","Fousol Production;","Hele landet",40,null,8,28,null,6.4,60,"Fast",1980,0,50]
[null,"DLG Kombigødning NPK 4-1-3","DLG","Hele landet",36,null,10,25,null,null,60,"Fast",1750,0,50,null,null,null,null,"DLG Kombigødning NPK 4-1-3","DLG","Hele landet",36,null,10,25,null,null,60,"Fast",1750,0,50]
[null,"Økogødning 6-1-1","Farmergødning","Hele landet",60,null,10,10,null,null,60,"Fast",7300,0,50,null,null,null,null,"Økogødning 6-1-1","Farmergødning","Hele landet",60,null,10,10,null,null,60,"Fast",7300,0,50]
[null,"Økogødning 5-1-1","Farmergødning","Hele landet",50,null,10,10,null,null,60,"Fast",6000,0,50,null,null,null,null,"Økogødning 5-1-1","Farmergødning","Hele landet",50,null,10,10,null,null,60,"Fast",6000,0,50]
[null,"Økohønsegødning 2-1-2","Farmergødning","Hele landet",20,null,10,20,null,null,25,"Fast",4150,0,50,null,null,null,null,"Økohønsegødning 2-1-2","Farmergødning","Hele landet",20,null,10,20,null,null,25,"Fast",4150,0,50]
[null,"Økohønsegødning 3-1-2","Farmergødning","Hele landet",30,null,10,20,null,null,60,"Fast",4600,0,50,null,null,null,null,"Økohønsegødning 3-1-2","Farmergødning","Hele landet",30,null,10,20,null,null,60,"Fast",4600,0,50]
[null,"Monterra 13","Borregaard Bioplant","Hele landet",130,null,null,4,null,1,70,"Fast",7500,0,50,null,null,null,null,"Monterra 13","Borregaard Bioplant","Hele landet",130,null,null,4,null,1,70,"Fast",7500,0,50]
[null,"Monterra-Malt","Borregaard Bioplant","Hele landet",40,null,10,50,null,null,70,"Fast",3500,0,50,null,null,null,null,"Monterra-Malt","Borregaard Bioplant","Hele landet",40,null,10,50,null,null,70,"Fast",3500,0,50]
[null,"PHC","Borregaard Bioplant","Hele landet",60,null,10,30,15,null,60,"Fast",13000,0,50,null,null,null,null,"PHC","Borregaard Bioplant","Hele landet",60,null,10,30,15,null,60,"Fast",13000,0,50]
[null,"Tang ","Miljøservice","Lokalt",53,null,3,null,null,null,10,"Fast",null,0,25,null,null,null,null,"Tang ","Miljøservice","Lokalt",53,null,3,null,null,null,10,"Fast",null,0,25]
[null,"Ågrøde ","Miljøservice","Lokalt",32,null,9,null,null,null,40,"Fast",null,0,25,null,null,null,null,"Ågrøde ","Miljøservice","Lokalt",32,null,9,null,null,null,40,"Fast",null,0,25]
[null,"Haveparkaffald","Affaldsselsk. Kommuner","Lokalt",6,null,1.1000000000000001,4,0.7,1.2,0,"Fast",0,0,25,null,null,null,null,"Haveparkaffald","Affaldsselsk. Kommuner","Lokalt",6,null,1.1000000000000001,4,0.7,1.2,0,"Fast",0,0,25]
[]
[]
[null,"Andre gødninger uden N",null,null,null,null,null,null,null,null,null,null,null,null,null,null,null,null,null,"Andre gødninger uden N"]
[null,"Patentkali","DLG, Danish Agro, Vestjyllands Andel","Hele landet",null,null,null,249,170,60,null,"Granulat",3200,0,40,null,null,null,null,"Patentkali","DLG, Danish Agro, Vestjyllands Andel","Hele landet",null,null,null,249,170,60,null,"Granulat",3200,0,40]
[null,"Kiserit 15","DLG, Danish Agro, Vestjyllands Andel","Hele landet",null,null,null,null,200,151,null,"Granulat",2200,0,40,null,null,null,null,"Kiserit 15","DLG, Danish Agro, Vestjyllands Andel","Hele landet",null,null,null,null,200,151,null,"Granulat",2200,0,40]
[null,"Magnesia kainit ","Danish Agro, Vestjysk Andel","Hele landet",null,null,null,91,40,30,null,"Granulat",1450,0,40,null,null,null,null,"Magnesia kainit ","Danish Agro, Vestjysk Andel","Hele landet",null,null,null,91,40,30,null,"Granulat",1450,0,40]
[null,"Kaliumsulfat 41","DLG, Danish Agro, Vestjysk Andel","Hele landet",null,null,null,415,180,null,null,"Granulat",4550,0,40,null,null,null,null,"Kaliumsulfat 41","DLG, Danish Agro, Vestjysk Andel","Hele landet",null,null,null,415,180,null,null,"Granulat",4550,0,40]
[null,"Træaske","Miljøservice","Lokalt",null,null,9.1,24,null,null,null,null,null,0,75,null,null,null,null,"Træaske","Miljøservice","Lokalt",null,null,9.1,24,null,null,null,null,null,0,75]
[]
[null,"Naturgips","DLG, Vestjysk Andel og Brdr. Ewers.","Hele landet",null,null,null,null,200,null,null,"Granulat",1050,0,40,null,null,null,null,"Naturgips","DLG, Vestjysk Andel og Brdr. Ewers.","Hele landet",null,null,null,null,200,null,null,"Granulat",1050,0,40]
[null,"Frit svovl","Hedegaard A/S","Hele landet",null,null,null,null,900,null,null,"Granulat",3400,0,40,null,null,null,null,"Frit svovl","Hedegaard A/S","Hele landet",null,null,null,null,900,null,null,"Granulat",3400,0,40]
[]
[null,"Mobil grøngødning",null,null,null,null,null,null,null,null,null,null,null,null,null,null,null,null,null,"Mobil grøngødning"]
[null,"Kommer i senere version",null,null,null,null,null,null,null,null,null,null,null,null,null,null,null,null,null,"Kommer i senere version"]
[]
[null,"Egne typer",null,null,null,null,null,null,null,null,null,null,null,null,null,null,null,null,null,"Egne typer"]
[null,"Egen type 1",null,null,null,null,null,null,null,null,null,null,null,null,null,null,null,null,null,"Egen type 1"]
[null,"Egen type 2",null,null,null,null,null,null,null,null,null,null,null,null,null,null,null,null,null,"Egen type 2"]
[null,"Egen type 3",null,null,null,null,null,null,null,null,null,null,null,null,null,null,null,null,null,"Egen type 3"]
[null,"Egen type 4",null,null,null,null,null,null,null,null,null,null,null,null,null,null,null,null,null,"Egen type 4"]
[]
[]
[]
[]
[]
[]
[]
[]
[]
[]
[null,null,null,null,null,null," "]
[]
[]
[]
[]
[]
[]
[]
[]
[null,null,null,"Flydende"]
[null,null,null,"Fast"]
[null,null,null,"Granulat"]

{"sheet":"Opslagstabeller","index":7,"n_rows":84,"n_cols":23,"rows_kept":84,"cut":false,"hidden":false,"merged":[[6,8,6,13]]}
[]
[null,null,null,null,null,"Økologiske gødningsprodukter"]
[]
[]
[]
[]
[null,null,null,null,null,null,null,null,"Næringsstofindhold, kg pr. ton",null,null,null,null,null,"N-udn.","N-udn.",null,"Indkøb,","Lagring,","Udbring-"]
[null,null,null,null,null,null,"Nr.","Oprindelse","Total-N","NH4-N","Fosfor","Kalium","Svovl","Magne-sium","krav, pct.","fagl., pct.","Produkt-form","kr./ton","kr. pr. ton","ning, kr. pr. ton"]
[null,null,null,null,null,1,2,3,4,5,6,7,8,9,10,11,12,13,14,15]
[null,null,null,null,null,"Vælg produkt",1,null,null,null,null,null,null,null,null,null,null,null,null,null,null,"Produktnavnetabel"]
[null,null,null,null,null,{"$f":"Gødningsoversigt!B11","v":"Kvæggylle"},2,null,{"$f":"Gødningsoversigt!E11","v":4.4000000000000004},{"$f":"Gødningsoversigt!F11","v":2.6},{"$f":"Gødningsoversigt!G11","v":0.7},{"$f":"Gødningsoversigt!H11","v":3.2},{"$f":"Gødningsoversigt!I11","v":0},{"$f":"Gødningsoversigt!J11","v":0},null,{"$f":"Gødningsoversigt!K11","v":55},{"$f":"Gødningsoversigt!L11","v":"Flydende"},{"$f":"Gødningsoversigt!M11","v":0},{"$f":"Gødningsoversigt!N11","v":12},{"$f":"Gødningsoversigt!O11","v":20},null,{"$f":"G11","v":2},{"$f":"F11","v":"Kvæggylle"}]
[null,null,null,null,null,{"$f":"Gødningsoversigt!B12","v":"Sogylle"},3,null,{"$f":"Gødningsoversigt!E12","v":3.9},{"$f":"Gødningsoversigt!F12","v":2.9},{"$f":"Gødningsoversigt!G12","v":1},{"$f":"Gødningsoversigt!H12","v":1.7},{"$f":"Gødningsoversigt!I12","v":0},{"$f":"Gødningsoversigt!J12","v":0},null,{"$f":"Gødningsoversigt!K12","v":65},{"$f":"Gødningsoversigt!L12","v":"Flydende"},{"$f":"Gødningsoversigt!M12","v":0},{"$f":"Gødningsoversigt!N12","v":12},{"$f":"Gødningsoversigt!O12","v":20},null,{"$f":"G12","v":3},{"$f":"F12","v":"Sogylle"}]
[null,null,null,null,null,{"$f":"Gødningsoversigt!B13","v":"Slagtesvinegylle"},4,null,{"$f":"Gødningsoversigt!E13","v":4.5},{"$f":"Gødningsoversigt!F13","v":3.4},{"$f":"Gødningsoversigt!G13","v":1.2},{"$f":"Gødningsoversigt!H13","v":2.6},{"$f":"Gødningsoversigt!I13","v":0},{"$f":"Gødningsoversigt!J13","v":0},null,{"$f":"Gødningsoversigt!K13","v":65},{"$f":"Gødningsoversigt!L13","v":"Flydende"},{"$f":"Gødningsoversigt!M13","v":0},{"$f":"Gødningsoversigt!N13","v":12},{"$f":"Gødningsoversigt!O13","v":20},null,4,"Slagtesvinegylle"]
[null,null,null,null,null,{"$f":"Gødningsoversigt!B14","v":"Fast gødning, høns."},5,null,{"$f":"Gødningsoversigt!E14","v":18.5},{"$f":"Gødningsoversigt!F14","v":6.5},{"$f":"Gødningsoversigt!G14","v":6},{"$f":"Gødningsoversigt!H14","v":9.6999999999999993},{"$f":"Gødningsoversigt!I14","v":0},{"$f":"Gødningsoversigt!J14","v":0},null,{"$f":"Gødningsoversigt!K14","v":60},{"$f":"Gødningsoversigt!L14","v":"Fast"},{"$f":"Gødningsoversigt!M14","v":0},{"$f":"Gødningsoversigt!N14","v":20},{"$f":"Gødningsoversigt!O14","v":30},null,5,"Fast gødning, høns."]
[null,null,null,null,null,{"$f":"Gødningsoversigt!B15","v":"Dybstrøelse, slagtekyll."},6,null,{"$f":"Gødningsoversigt!E15","v":26.6},{"$f":"Gødningsoversigt!F15","v":8},{"$f":"Gødningsoversigt!G15","v":8.4},{"$f":"Gødningsoversigt!H15","v":17.399999999999999},{"$f":"Gødningsoversigt!I15","v":0},{"$f":"Gødningsoversigt!J15","v":0},null,{"$f":"Gødningsoversigt!K15","v":60},{"$f":"Gødningsoversigt!L15","v":"Fast"},{"$f":"Gødningsoversigt!M15","v":0},{"$f":"Gødningsoversigt!N15","v":20},{"$f":"Gødningsoversigt!O15","v":30},null,6,"Dybstrøelse, slagtekyll."]
[null,null,null,null,null,{"$f":"Gødningsoversigt!B16","v":"Dybstøelse, kvæg"},7,null,{"$f":"Gødningsoversigt!E16","v":7.5},{"$f":"Gødningsoversigt!F16","v":1.5},{"$f":"Gødningsoversigt!G16","v":1.1000000000000001},{"$f":"Gødningsoversigt!H16","v":8},{"$f":"Gødningsoversigt!I16","v":0},{"$f":"Gødningsoversigt!J16","v":0},null,{"$f":"Gødningsoversigt!K16","v":30},{"$f":"Gødningsoversigt!L16","v":"Fast"},{"$f":"Gødningsoversigt!M16","v":0},{"$f":"Gødningsoversigt!N16","v":20},{"$f":"Gødningsoversigt!O16","v":30},null,7,"Dybstøelse, kvæg"]
[null,null,null,null,null,{"$f":"Gødningsoversigt!B17","v":"Minkgylle"},8,null,{"$f":"Gødningsoversigt!E17","v":8.6},{"$f":"Gødningsoversigt!F17","v":3.8},{"$f":"Gødningsoversigt!G17","v":3.2},{"$f":"Gødningsoversigt!H17","v":1.7},{"$f":"Gødningsoversigt!I17","v":0},{"$f":"Gødningsoversigt!J17","v":0},null,{"$f":"Gødningsoversigt!K17","v":65},{"$f":"Gødningsoversigt!L17","v":"Flydende"},{"$f":"Gødningsoversigt!M17","v":0},{"$f":"Gødningsoversigt!N17","v":12},{"$f":"Gødningsoversigt!O17","v":20},null,8,"Minkgylle"]
[null,null,null,null,null,{"$f":"Gødningsoversigt!B18","v":"Hestedybstrøelse"},9,null,{"$f":"Gødningsoversigt!E18","v":7.7},{"$f":"Gødningsoversigt!F18","v":1.9},{"$f":"Gødningsoversigt!G18","v":1.6},{"$f":"Gødningsoversigt!H18","v":13},{"$f":"Gødningsoversigt!I18","v":0},{"$f":"Gødningsoversigt!J18","v":0},null,{"$f":"Gødningsoversigt!K18","v":30},{"$f":"Gødningsoversigt!L18","v":"Fast"},{"$f":"Gødningsoversigt!M18","v":0},{"$f":"Gødningsoversigt!N18","v":20},{"$f":"Gødningsoversigt!O18","v":30},null,9,"Hestedybstrøelse"]
[null,null,null,null,null,{"$f":"Gødningsoversigt!B23","v":"Øgro 10-3-1"},10,null,{"$f":"Gødningsoversigt!E23","v":100},{"$f":"Gødningsoversigt!F23","v":0},{"$f":"Gødningsoversigt!G23","v":26},{"$f":"Gødningsoversigt!H23","v":10},{"$f":"Gødningsoversigt!I23","v":5},{"$f":"Gødningsoversigt!J23","v":2},null,{"$f":"Gødningsoversigt!K23","v":70},{"$f":"Gødningsoversigt!L23","v":"Fast"},{"$f":"Gødningsoversigt!M23","v":2500},{"$f":"Gødningsoversigt!N23","v":0},{"$f":"Gødningsoversigt!O23","v":50},null,10,"Øgro 10-3-1"]
[null,null,null,null,null,{"$f":"Gødningsoversigt!B24","v":"Øgro 9-3-4 + 2S"},11,null,{"$f":"Gødningsoversigt!E24","v":88},{"$f":"Gødningsoversigt!F24","v":0},{"$f":"Gødningsoversigt!G24","v":25},{"$f":"Gødningsoversigt!H24","v":36},{"$f":"Gødningsoversigt!I24","v":24},{"$f":"Gødningsoversigt!J24","v":2},null,{"$f":"Gødningsoversigt!K24","v":70},{"$f":"Gødningsoversigt!L24","v":"Fast"},{"$f":"Gødningsoversigt!M24","v":3200},{"$f":"Gødningsoversigt!N24","v":0},{"$f":"Gødningsoversigt!O24","v":50},null,11,"Øgro 9-3-4 + 2S"]
[null,null,null,null,null,{"$f":"Gødningsoversigt!B25","v":"Øgro 15N"},12,null,{"$f":"Gødningsoversigt!E25","v":150},{"$f":"Gødningsoversigt!F25","v":0},{"$f":"Gødningsoversigt!G25","v":3},{"$f":"Gødningsoversigt!H25","v":0.1},{"$f":"Gødningsoversigt!I25","v":22},{"$f":"Gødningsoversigt!J25","v":0.1},null,{"$f":"Gødningsoversigt!K25","v":70},{"$f":"Gødningsoversigt!L25","v":"Fast"},{"$f":"Gødningsoversigt!M25","v":4620},{"$f":"Gødningsoversigt!N25","v":0},{"$f":"Gødningsoversigt!O25","v":50},null,12,"Øgro 15N"]
[null,null,null,null,null,{"$f":"Gødningsoversigt!B27","v":"Protamylasse"},13,null,{"$f":"Gødningsoversigt!E27","v":15},{"$f":"Gødningsoversigt!F27","v":0},{"$f":"Gødningsoversigt!G27","v":3},{"$f":"Gødningsoversigt!H27","v":36},{"$f":"Gødningsoversigt!I27","v":6},{"$f":"Gødningsoversigt!J27","v":2.9},null,{"$f":"Gødningsoversigt!K27","v":70},{"$f":"Gødningsoversigt!L27","v":"Flydende"},{"$f":"Gødningsoversigt!M27","v":210},{"$f":"Gødningsoversigt!N27","v":12},{"$f":"Gødningsoversigt!O27","v":20},null,13,"Protamylasse"]
[null,null,null,null,null,{"$f":"Gødningsoversigt!B28","v":"K-2 (Protamylasse)"},14,null,{"$f":"Gødningsoversigt!E28","v":18},{"$f":"Gødningsoversigt!F28","v":0},{"$f":"Gødningsoversigt!G28","v":4},{"$f":"Gødningsoversigt!H28","v":60},{"$f":"Gødningsoversigt!I28","v":7},{"$f":"Gødningsoversigt!J28","v":3},null,{"$f":"Gødningsoversigt!K28","v":70},{"$f":"Gødningsoversigt!L28","v":"Flydende"},{"$f":"Gødningsoversigt!M28","v":400},{"$f":"Gødningsoversigt!N28","v":12},{"$f":"Gødningsoversigt!O28","v":20},null,14,"K-2 (Protamylasse)"]
[null,null,null,null,null,{"$f":"Gødningsoversigt!B29","v":"Kartoffelfrugtsaft"},15,null,{"$f":"Gødningsoversigt!E29","v":1.05},{"$f":"Gødningsoversigt!F29","v":0},{"$f":"Gødningsoversigt!G29","v":0.27},{"$f":"Gødningsoversigt!H29","v":3.6},{"$f":"Gødningsoversigt!I29","v":1.49},{"$f":"Gødningsoversigt!J29","v":0.16},null,{"$f":"Gødningsoversigt!K29","v":70},{"$f":"Gødningsoversigt!L29","v":"Flydende"},{"$f":"Gødningsoversigt!M29","v":0},{"$f":"Gødningsoversigt!N29","v":12},{"$f":"Gødningsoversigt!O29","v":20},null,15,"Kartoffelfrugtsaft"]
[null,null,null,null,null,{"$f":"Gødningsoversigt!B30","v":"kartoffekondensat"},16,null,{"$f":"Gødningsoversigt!E30","v":1.1000000000000001},{"$f":"Gødningsoversigt!F30","v":0},{"$f":"Gødningsoversigt!G30","v":0.1},{"$f":"Gødningsoversigt!H30","v":1.6},{"$f":"Gødningsoversigt!I30","v":0},{"$f":"Gødningsoversigt!J30","v":0},null,{"$f":"Gødningsoversigt!K30","v":70},{"$f":"Gødningsoversigt!L30","v":"Flydende"},{"$f":"Gødningsoversigt!M30","v":0},{"$f":"Gødningsoversigt!N30","v":12},{"$f":"Gødningsoversigt!O30","v":20},null,16,"kartoffekondensat"]
[null,null,null,null,null,{"$f":"Gødningsoversigt!B31","v":"Kaliumvinasse"},17,null,{"$f":"Gødningsoversigt!E31","v":7},{"$f":"Gødningsoversigt!F31","v":0},{"$f":"Gødningsoversigt!G31","v":0},{"$f":"Gødningsoversigt!H31","v":210},{"$f":"Gødningsoversigt!I31","v":170},{"$f":"Gødningsoversigt!J31","v":2},null,{"$f":"Gødningsoversigt!K31","v":70},{"$f":"Gødningsoversigt!L31","v":"Fast"},{"$f":"Gødningsoversigt!M31","v":1800},{"$f":"Gødningsoversigt!N31","v":20},{"$f":"Gødningsoversigt!O31","v":75},null,17,"Kaliumvinasse"]
[null,null,null,null,null,{"$f":"Gødningsoversigt!B32","v":"Vinasse"},18,null,{"$f":"Gødningsoversigt!E32","v":35},{"$f":"Gødningsoversigt!F32","v":0},{"$f":"Gødningsoversigt!G32","v":0},{"$f":"Gødningsoversigt!H32","v":70},{"$f":"Gødningsoversigt!I32","v":0},{"$f":"Gødningsoversigt!J32","v":0},null,{"$f":"Gødningsoversigt!K32","v":70},{"$f":"Gødningsoversigt!L32","v":"Flydende"},{"$f":"Gødningsoversigt!M32","v":600},{"$f":"Gødningsoversigt!N32","v":20},{"$f":"Gødningsoversigt!O32","v":75},null,18,"Vinasse"]
[null,null,null,null,null,{"$f":"Gødningsoversigt!B33","v":"Vinasse-kali"},19,null,{"$f":"Gødningsoversigt!E33","v":8},{"$f":"Gødningsoversigt!F33","v":0},{"$f":"Gødningsoversigt!G33","v":0},{"$f":"Gødningsoversigt!H33","v":190},{"$f":"Gødningsoversigt!I33","v":70},{"$f":"Gødningsoversigt!J33","v":0},null,{"$f":"Gødningsoversigt!K33","v":70},{"$f":"Gødningsoversigt!L33","v":"Flydende"},{"$f":"Gødningsoversigt!M33","v":700},{"$f":"Gødningsoversigt!N33","v":20},{"$f":"Gødningsoversigt!O33","v":75},null,19,"Vinasse-kali"]
[null,null,null,null,null,{"$f":"Gødningsoversigt!B34","v":"Kaliumvinasse ekstrakt K25"},20,null,{"$f":"Gødningsoversigt!E34","v":3},{"$f":"Gødningsoversigt!F34","v":0},{"$f":"Gødningsoversigt!G34","v":3},{"$f":"Gødningsoversigt!H34","v":250},{"$f":"Gødningsoversigt!I34","v":123},{"$f":"Gødningsoversigt!J34","v":0.2},null,{"$f":"Gødningsoversigt!K34","v":70},{"$f":"Gødningsoversigt!L34","v":"Fast"},{"$f":"Gødningsoversigt!M34","v":1930},{"$f":"Gødningsoversigt!N34","v":20},{"$f":"Gødningsoversigt!O34","v":75},null,20,"Kaliumvinasse ekstrakt K25"]
[null,null,null,null,null,{"$f":"Gødningsoversigt!B37","v":"Binadan 4-1-3"},21,null,{"$f":"Gødningsoversigt!E37","v":40},{"$f":"Gødningsoversigt!F37","v":0},{"$f":"Gødningsoversigt!G37","v":8},{"$f":"Gødningsoversigt!H37","v":28},{"$f":"Gødningsoversigt!I37","v":0},{"$f":"Gødningsoversigt!J37","v":6.4},null,{"$f":"Gødningsoversigt!K37","v":60},{"$f":"Gødningsoversigt!L37","v":"Fast"},{"$f":"Gødningsoversigt!M37","v":1980},{"$f":"Gødningsoversigt!N37","v":0},{"$f":"Gødningsoversigt!O37","v":50},null,21,"Binadan 4-1-3"]
[null,null,null,null,null,{"$f":"Gødningsoversigt!B38","v":"DLG Kombigødning NPK 4-1-3"},22,null,{"$f":"Gødningsoversigt!E38","v":36},{"$f":"Gødningsoversigt!F38","v":0},{"$f":"Gødningsoversigt!G38","v":10},{"$f":"Gødningsoversigt!H38","v":25},{"$f":"Gødningsoversigt!I38","v":0},{"$f":"Gødningsoversigt!J38","v":0},null,{"$f":"Gødningsoversigt!K38","v":60},{"$f":"Gødningsoversigt!L38","v":"Fast"},{"$f":"Gødningsoversigt!M38","v":1750},{"$f":"Gødningsoversigt!N38","v":0},{"$f":"Gødningsoversigt!O38","v":50},null,22,"DLG Kombigødning NPK 4-1-3"]
[null,null,null,null,null,{"$f":"Gødningsoversigt!B39","v":"Økogødning 6-1-1"},23,null,{"$f":"Gødningsoversigt!E39","v":60},{"$f":"Gødningsoversigt!F39","v":0},{"$f":"Gødningsoversigt!G39","v":10},{"$f":"Gødningsoversigt!H39","v":10},{"$f":"Gødningsoversigt!I39","v":0},{"$f":"Gødningsoversigt!J39","v":0},null,{"$f":"Gødningsoversigt!K39","v":60},{"$f":"Gødningsoversigt!L39","v":"Fast"},{"$f":"Gødningsoversigt!M39","v":7300},{"$f":"Gødningsoversigt!N39","v":0},{"$f":"Gødningsoversigt!O39","v":50},null,23,"Økogødning 6-1-1"]
[null,null,null,null,null,{"$f":"Gødningsoversigt!B40","v":"Økogødning 5-1-1"},24,null,{"$f":"Gødningsoversigt!E40","v":50},{"$f":"Gødningsoversigt!F40","v":0},{"$f":"Gødningsoversigt!G40","v":10},{"$f":"Gødningsoversigt!H40","v":10},{"$f":"Gødningsoversigt!I40","v":0},{"$f":"Gødningsoversigt!J40","v":0},null,{"$f":"Gødningsoversigt!K40","v":60},{"$f":"Gødningsoversigt!L40","v":"Fast"},{"$f":"Gødningsoversigt!M40","v":6000},{"$f":"Gødningsoversigt!N40","v":0},{"$f":"Gødningsoversigt!O40","v":50},null,24,"Økogødning 5-1-1"]
[null,null,null,null,null,{"$f":"Gødningsoversigt!B41","v":"Økohønsegødning 2-1-2"},25,null,{"$f":"Gødningsoversigt!E41","v":20},{"$f":"Gødningsoversigt!F41","v":0},{"$f":"Gødningsoversigt!G41","v":10},{"$f":"Gødningsoversigt!H41","v":20},{"$f":"Gødningsoversigt!I41","v":0},{"$f":"Gødningsoversigt!J41","v":0},null,{"$f":"Gødningsoversigt!K41","v":25},{"$f":"Gødningsoversigt!L41","v":"Fast"},{"$f":"Gødningsoversigt!M41","v":4150},{"$f":"Gødningsoversigt!N41","v":0},{"$f":"Gødningsoversigt!O41","v":50},null,25,"Økohønsegødning 2-1-2"]
[null,null,null,null,null,{"$f":"Gødningsoversigt!B42","v":"Økohønsegødning 3-1-2"},26,null,{"$f":"Gødningsoversigt!E42","v":30},{"$f":"Gødningsoversigt!F42","v":0},{"$f":"Gødningsoversigt!G42","v":10},{"$f":"Gødningsoversigt!H42","v":20},{"$f":"Gødningsoversigt!I42","v":0},{"$f":"Gødningsoversigt!J42","v":0},null,{"$f":"Gødningsoversigt!K42","v":60},{"$f":"Gødningsoversigt!L42","v":"Fast"},{"$f":"Gødningsoversigt!M42","v":4600},{"$f":"Gødningsoversigt!N42","v":0},{"$f":"Gødningsoversigt!O42","v":50},null,26,"Økohønsegødning 3-1-2"]
[null,null,null,null,null,{"$f":"Gødningsoversigt!B43","v":"Monterra 13"},27,null,{"$f":"Gødningsoversigt!E43","v":130},{"$f":"Gødningsoversigt!F43","v":0},{"$f":"Gødningsoversigt!G43","v":0},{"$f":"Gødningsoversigt!H43","v":4},{"$f":"Gødningsoversigt!I43","v":0},{"$f":"Gødningsoversigt!J43","v":1},null,{"$f":"Gødningsoversigt!K43","v":70},{"$f":"Gødningsoversigt!L43","v":"Fast"},{"$f":"Gødningsoversigt!M43","v":7500},{"$f":"Gødningsoversigt!N43","v":0},{"$f":"Gødningsoversigt!O43","v":50},null,27,"Monterra 13"]
[null,null,null,null,null,{"$f":"Gødningsoversigt!B44","v":"Monterra-Malt"},28,null,{"$f":"Gødningsoversigt!E44","v":40},{"$f":"Gødningsoversigt!F44","v":0},{"$f":"Gødningsoversigt!G44","v":10},{"$f":"Gødningsoversigt!H44","v":50},{"$f":"Gødningsoversigt!I44","v":0},{"$f":"Gødningsoversigt!J44","v":0},null,{"$f":"Gødningsoversigt!K44","v":70},{"$f":"Gødningsoversigt!L44","v":"Fast"},{"$f":"Gødningsoversigt!M44","v":3500},{"$f":"Gødningsoversigt!N44","v":0},{"$f":"Gødningsoversigt!O44","v":50},null,28,"Monterra-Malt"]
[null,null,null,null,null,{"$f":"Gødningsoversigt!B45","v":"PHC"},29,null,{"$f":"Gødningsoversigt!E45","v":60},{"$f":"Gødningsoversigt!F45","v":0},{"$f":"Gødningsoversigt!G45","v":10},{"$f":"Gødningsoversigt!H45","v":30},{"$f":"Gødningsoversigt!I45","v":15},{"$f":"Gødningsoversigt!J45","v":0},null,{"$f":"Gødningsoversigt!K45","v":60},{"$f":"Gødningsoversigt!L45","v":"Fast"},{"$f":"Gødningsoversigt!M45","v":13000},{"$f":"Gødningsoversigt!N45","v":0},{"$f":"Gødningsoversigt!O45","v":50},null,29,"PHC"]
[null,null,null,null,null,{"$f":"Gødningsoversigt!B46","v":"Tang "},30,null,{"$f":"Gødningsoversigt!E46","v":53},{"$f":"Gødningsoversigt!F46","v":0},{"$f":"Gødningsoversigt!G46","v":3},{"$f":"Gødningsoversigt!H46","v":0},{"$f":"Gødningsoversigt!I46","v":0},{"$f":"Gødningsoversigt!J46","v":0},null,{"$f":"Gødningsoversigt!K46","v":10},{"$f":"Gødningsoversigt!L46","v":"Fast"},{"$f":"Gødningsoversigt!M46","v":0},{"$f":"Gødningsoversigt!N46","v":0},{"$f":"Gødningsoversigt!O46","v":25},null,30,"Tang "]
[null,null,null,null,null,{"$f":"Gødningsoversigt!B47","v":"Ågrøde "},31,null,{"$f":"Gødningsoversigt!E47","v":32},{"$f":"Gødningsoversigt!F47","v":0},{"$f":"Gødningsoversigt!G47","v":9},{"$f":"Gødningsoversigt!H47","v":0},{"$f":"Gødningsoversigt!I47","v":0},{"$f":"Gødningsoversigt!J47","v":0},null,{"$f":"Gødningsoversigt!K47","v":40},{"$f":"Gødningsoversigt!L47","v":"Fast"},{"$f":"Gødningsoversigt!M47","v":0},{"$f":"Gødningsoversigt!N47","v":0},{"$f":"Gødningsoversigt!O47","v":25},null,31,"Ågrøde "]
[null,null,null,null,null,{"$f":"Gødningsoversigt!B48","v":"Haveparkaffald"},32,null,{"$f":"Gødningsoversigt!E48","v":6},{"$f":"Gødningsoversigt!F48","v":0},{"$f":"Gødningsoversigt!G48","v":1.1000000000000001},{"$f":"Gødningsoversigt!H48","v":4},{"$f":"Gødningsoversigt!I48","v":0.7},{"$f":"Gødningsoversigt!J48","v":1.2},null,{"$f":"Gødningsoversigt!K48","v":0},{"$f":"Gødningsoversigt!L48","v":"Fast"},{"$f":"Gødningsoversigt!M48","v":0},{"$f":"Gødningsoversigt!N48","v":0},{"$f":"Gødningsoversigt!O48","v":25},null,32,"Haveparkaffald"]
[null,null,null,null,null,{"$f":"Gødningsoversigt!B52","v":"Patentkali"},33,null,{"$f":"Gødningsoversigt!E52","v":0},{"$f":"Gødningsoversigt!F52","v":0},{"$f":"Gødningsoversigt!G52","v":0},{"$f":"Gødningsoversigt!H52","v":249},{"$f":"Gødningsoversigt!I52","v":170},{"$f":"Gødningsoversigt!J52","v":60},{"$f":"Gødningsoversigt!K52","v":0},{"$f":"Gødningsoversigt!K52","v":0},{"$f":"Gødningsoversigt!L52","v":"Granulat"},{"$f":"Gødningsoversigt!M52","v":3200},{"$f":"Gødningsoversigt!N52","v":0},{"$f":"Gødningsoversigt!O52","v":40},null,33,"Patentkali"]
[null,null,null,null,null,{"$f":"Gødningsoversigt!B53","v":"Kiserit 15"},34,null,{"$f":"Gødningsoversigt!E53","v":0},{"$f":"Gødningsoversigt!F53","v":0},{"$f":"Gødningsoversigt!G53","v":0},{"$f":"Gødningsoversigt!H53","v":0},{"$f":"Gødningsoversigt!I53","v":200},{"$f":"Gødningsoversigt!J53","v":151},{"$f":"Gødningsoversigt!K53","v":0},{"$f":"Gødningsoversigt!K53","v":0},{"$f":"Gødningsoversigt!L53","v":"Granulat"},{"$f":"Gødningsoversigt!M53","v":2200},{"$f":"Gødningsoversigt!N53","v":0},{"$f":"Gødningsoversigt!O53","v":40},null,34,"Kiserit 15"]
[null,null,null,null,null,{"$f":"Gødningsoversigt!B54","v":"Magnesia kainit "},35,null,{"$f":"Gødningsoversigt!E54","v":0},{"$f":"Gødningsoversigt!F54","v":0},{"$f":"Gødningsoversigt!H54","v":91},{"$f":"Gødningsoversigt!#REF!","v":{"$error":"#REF!"}},{"$f":"Gødningsoversigt!I54","v":40},{"$f":"Gødningsoversigt!J54","v":30},{"$f":"Gødningsoversigt!K54","v":0},{"$f":"Gødningsoversigt!K54","v":0},{"$f":"Gødningsoversigt!L54","v":"Granulat"},{"$f":"Gødningsoversigt!M54","v":1450},{"$f":"Gødningsoversigt!N54","v":0},{"$f":"Gødningsoversigt!O54","v":40},null,35,"Magnesia kainit "]
[null,null,null,null,null,{"$f":"Gødningsoversigt!B55","v":"Kaliumsulfat 41"},36,null,{"$f":"Gødningsoversigt!E55","v":0},{"$f":"Gødningsoversigt!F55","v":0},{"$f":"Gødningsoversigt!G55","v":0},{"$f":"Gødningsoversigt!H55","v":415},{"$f":"Gødningsoversigt!I55","v":180},{"$f":"Gødningsoversigt!J55","v":0},{"$f":"Gødningsoversigt!K55","v":0},{"$f":"Gødningsoversigt!K55","v":0},{"$f":"Gødningsoversigt!L55","v":"Granulat"},{"$f":"Gødningsoversigt!M55","v":4550},{"$f":"Gødningsoversigt!N55","v":0},{"$f":"Gødningsoversigt!O55","v":40},null,36,"Kaliumsulfat 41"]
[null,null,null,null,null,{"$f":"Gødningsoversigt!B56","v":"Træaske"},37,null,{"$f":"Gødningsoversigt!E56","v":0},{"$f":"Gødningsoversigt!F56","v":0},{"$f":"Gødningsoversigt!G56","v":9.1},{"$f":"Gødningsoversigt!H56","v":24},{"$f":"Gødningsoversigt!I56","v":0},{"$f":"Gødningsoversigt!J56","v":0},{"$f":"Gødningsoversigt!K56","v":0},{"$f":"Gødningsoversigt!K56","v":0},{"$f":"Gødningsoversigt!L56","v":0},{"$f":"Gødningsoversigt!M56","v":0},{"$f":"Gødningsoversigt!N56","v":0},{"$f":"Gødningsoversigt!O56","v":75},null,37,"Træaske"]
[null,null,null,null,null,{"$f":"Gødningsoversigt!B58","v":"Naturgips"},38,null,{"$f":"Gødningsoversigt!E58","v":0},{"$f":"Gødningsoversigt!F58","v":0},{"$f":"Gødningsoversigt!G58","v":0},{"$f":"Gødningsoversigt!H58","v":0},{"$f":"Gødningsoversigt!I58","v":200},{"$f":"Gødningsoversigt!J58","v":0},{"$f":"Gødningsoversigt!K58","v":0},{"$f":"Gødningsoversigt!K58","v":0},{"$f":"Gødningsoversigt!L58","v":"Granulat"},{"$f":"Gødningsoversigt!M58","v":1050},{"$f":"Gødningsoversigt!N58","v":0},{"$f":"Gødningsoversigt!O58","v":40},null,38,"Naturgips"]
[null,null,null,null,null,{"$f":"Gødningsoversigt!B59","v":"Frit svovl"},39,null,{"$f":"Gødningsoversigt!E59","v":0},{"$f":"Gødningsoversigt!F59","v":0},{"$f":"Gødningsoversigt!G59","v":0},{"$f":"Gødningsoversigt!H59","v":0},{"$f":"Gødningsoversigt!I59","v":900},{"$f":"Gødningsoversigt!J59","v":0},{"$f":"Gødningsoversigt!K59","v":0},{"$f":"Gødningsoversigt!K59","v":0},{"$f":"Gødningsoversigt!L59","v":"Granulat"},{"$f":"Gødningsoversigt!M59","v":3400},{"$f":"Gødningsoversigt!N59","v":0},{"$f":"Gødningsoversigt!O59","v":40},null,39,"Frit svovl"]
[null,null,null,null,null,{"$f":"Gødningsoversigt!B65","v":"Egen type 1"},40,null,{"$f":"Gødningsoversigt!E65","v":0},{"$f":"Gødningsoversigt!F65","v":0},{"$f":"Gødningsoversigt!G65","v":0},{"$f":"Gødningsoversigt!H65","v":0},{"$f":"Gødningsoversigt!I65","v":0},{"$f":"Gødningsoversigt!J65","v":0},{"$f":"Gødningsoversigt!K65","v":0},{"$f":"Gødningsoversigt!K65","v":0},{"$f":"Gødningsoversigt!L65","v":0},{"$f":"Gødningsoversigt!M65","v":0},{"$f":"Gødningsoversigt!N65","v":0},{"$f":"Gødningsoversigt!O65","v":0},null,40,"Egen type 1"]
[null,null,null,null,null,{"$f":"Gødningsoversigt!B66","v":"Egen type 2"},41,null,{"$f":"Gødningsoversigt!E66","v":0},{"$f":"Gødningsoversigt!F66","v":0},{"$f":"Gødningsoversigt!G66","v":0},{"$f":"Gødningsoversigt!H66","v":0},{"$f":"Gødningsoversigt!I66","v":0},{"$f":"Gødningsoversigt!J66","v":0},{"$f":"Gødningsoversigt!K66","v":0},{"$f":"Gødningsoversigt!K66","v":0},{"$f":"Gødningsoversigt!L66","v":0},{"$f":"Gødningsoversigt!M66","v":0},{"$f":"Gødningsoversigt!N66","v":0},{"$f":"Gødningsoversigt!O66","v":0},null,41,"Egen type 2"]
[null,null,null,null,null,{"$f":"Gødningsoversigt!B67","v":"Egen type 3"},42,null,{"$f":"Gødningsoversigt!E67","v":0},{"$f":"Gødningsoversigt!F67","v":0},{"$f":"Gødningsoversigt!G67","v":0},{"$f":"Gødningsoversigt!H67","v":0},{"$f":"Gødningsoversigt!I67","v":0},{"$f":"Gødningsoversigt!J67","v":0},{"$f":"Gødningsoversigt!K67","v":0},{"$f":"Gødningsoversigt!K67","v":0},{"$f":"Gødningsoversigt!L67","v":0},{"$f":"Gødningsoversigt!M67","v":0},{"$f":"Gødningsoversigt!N67","v":0},{"$f":"Gødningsoversigt!O67","v":0},null,42,"Egen type 3"]
[null,null,null,null,null,{"$f":"Gødningsoversigt!B68","v":"Egen type 4"},43,null,{"$f":"Gødningsoversigt!E68","v":0},{"$f":"Gødningsoversigt!F68","v":0},{"$f":"Gødningsoversigt!G68","v":0},{"$f":"Gødningsoversigt!H68","v":0},{"$f":"Gødningsoversigt!I68","v":0},{"$f":"Gødningsoversigt!J68","v":0},{"$f":"Gødningsoversigt!K68","v":0},{"$f":"Gødningsoversigt!K68","v":0},{"$f":"Gødningsoversigt!L68","v":0},{"$f":"Gødningsoversigt!M68","v":0},{"$f":"Gødningsoversigt!N68","v":0},{"$f":"Gødningsoversigt!O68","v":0},null,43,"Egen type 4"]
[]
[]
[]
[null,null,null,null,null,"Transportform"]
[null,null,null,null,null,1,2,3,4,5]
[]
[null,null,null,null,null,"Traktor","Traktor"]
[null,null,null,null,null,"Lastbil","Lastbil"]
[]
[]
[]
[null,null,null,null,null,"Transportomkostninger"]
[null,null,null,null,null,null,null,null,"Time-","Opstart, ","Læsse/losse","Hastighed","Læsstr., "]
[null,null,null,null,null,null,null,null,"pris","kr./time","min/læs","km/t","ton/læs"]
[null,null,null,null,null,null,null,1,2,3,4,5,6,7,8,9,10,11,12,13,14]
[null,null,null,null,null,"Lastbil","Fast",{"$f":"CONCATENATE(F68,G68)","v":"LastbilFast"},{"$f":"Forudsætninger!D16","v":700},{"$f":"Forudsætninger!E16","v":100},{"$f":"Forudsætninger!F16","v":10},{"$f":"Forudsætninger!G16","v":70},{"$f":"Forudsætninger!H16","v":20}]
[null,null,null,null,null,"Lastbil","Flydende","LastbilFlydende",{"$f":"Forudsætninger!D17","v":700},{"$f":"Forudsætninger!E17","v":100},{"$f":"Forudsætninger!F17","v":4},{"$f":"Forudsætninger!G17","v":70},{"$f":"Forudsætninger!H17","v":30}]
[null,null,null,null,null,"Lastbil","Granulat","LastbilGranulat",{"$f":"Forudsætninger!D18","v":700},{"$f":"Forudsætninger!E18","v":100},{"$f":"Forudsætninger!F18","v":20},{"$f":"Forudsætninger!G18","v":70},{"$f":"Forudsætninger!H18","v":20}]
[null,null,null,null,null,"Traktor","Fast","TraktorFast",{"$f":"Forudsætninger!D19","v":900},{"$f":"Forudsætninger!E19","v":0},{"$f":"Forudsætninger!F19","v":10},{"$f":"Forudsætninger!G19","v":20},{"$f":"Forudsætninger!H19","v":15}]
[null,null,null,null,null,"Traktor","Flydende","TraktorFlydende",{"$f":"Forudsætninger!D20","v":900},{"$f":"Forudsætninger!E20","v":0},{"$f":"Forudsætninger!F20","v":3},{"$f":"Forudsætninger!G20","v":20},{"$f":"Forudsætninger!H20","v":25}]
[null,null,null,null,null,"Traktor","Granulat","TraktorGranulat",{"$f":"Forudsætninger!D21","v":900},{"$f":"Forudsætninger!E21","v":0},{"$f":"Forudsætninger!F21","v":20},{"$f":"Forudsætninger!G21","v":20},{"$f":"Forudsætninger!H21","v":20}]
[]
[]
[null,null,null,null,null,"Tillæg for nedfældning"]
[null,null,null,null,null,"Tillæg",{"$f":"Forudsætninger!C26","v":5},"kr. pr. ton"]
[]
[]
[]
[]
[null,null,null,null,null,"Dokumentation:"]
[null,null,null,null,null,"N-udnyttelses%","Husdyrgødning følger normerne"]
[null,null,null,null,null,null,"Øvrige er ekspertskøn"]

{"sheet":"Forudsætninger","index":8,"n_rows":36,"n_cols":19,"rows_kept":36,"cut":false,"hidden":false,"merged":[[24,5,26,11]]}
[]
[null,"Transport, nedfældning og gødningsudnyttelse"]
[]
[null,"Næringsstofpriser",null,null,null,null,null,null,null,null,null,null,null,null,"SEGES-fastsatte defaultværdier"]
[null,null,"Pris, kr. pr. kg"]
[null,"Udnyttet kvælstof",8,null,null,null,null,null,null,null,null,null,null,null,8]
[null,"Fosfor",10,null,null,null,null,null,null,null,null,null,null,null,10]
[null,"Kalium",6,null,null,null,null,null,null,null,null,null,null,null,6]
[null,"Svovl",2,null,null,null,null,null,null,null,null,null,null,null,2]
[null,"Magnesium",4,null,null,null,null,null,null,null,null,null,null,null,4]
[]
[]
[null,"Forudsætninger for transportomkostninger"]
[null,null,null,"Time-","Startpris,","Læsse/lodse","Hastighed","Læsstørrelse"]
[null,"Transportform","Produktform","pris","kr.","minutter/læs","km/t","ton/læs"]
[null,"Lastbil","Fast",700,100,10,70,20,null,null,null,null,null,null,700,100,10,70,20]
[null,null,"Flydende",700,100,4,70,30,null,null,null,null,null,null,700,100,4,70,30]
[null,null,"Granulat",700,100,20,70,20,null,null,null,null,null,null,700,100,20,70,20]
[null,"Traktor","Fast",900,0,10,20,15,null,null,null,null,null,null,900,0,10,20,15]
[null,null,"Flydende",900,0,3,20,25,null,null,null,null,null,null,900,0,3,20,25]
[null,null,"Granulat",900,0,20,20,20,null,null,null,null,null,null,900,0,20,20,20]
[]
[]
[]
[null,"Tillæg for nedfældning"]
[null,"Tillæg",5,"kr. pr. ton",null,null,null,null,null,null,null,null,null,null,5]
[]
[]
[]
[null,"Udnyttelse af P og K i procent af total"]
[null,"Udnyttelse af fosfor",100,null,null,null,null,null,null,null,null,null,null,null,100]
[null,"Udnyttelse af kalium",100,null,null,null,null,null,null,null,null,null,null,null,100]
[null,"Udnyttelse af svovl",100,null,null,null,null,null,null,null,null,null,null,null,100]
[null,"Magnesium",100,null,null,null,null,null,null,null,null,null,null,null,100]
[]
[null,null,null,null,"Videre til"]

{"sheet":"Postnummer","index":9,"n_rows":597,"n_cols":3,"rows_kept":597,"cut":false,"hidden":false,"merged":[]}
[]
[]
[]
[null,2000,"Frederiksberg"]
[null,2100,"København Ø"]
[null,2200,"København N"]
[null,2300,"København S"]
[null,2400,"København NV"]
[null,2450,"København SV"]
[null,2500,"Valby"]
[null,2600,"Glostrup"]
[null,2605,"Brøndby"]
[null,2610,"Rødovre"]
[null,2620,"Albertslund"]
[null,2625,"Vallensbæk"]
[null,2630,"Taastrup"]
[null,2635,"Ishøj"]
[null,2640,"Hedehusene"]
[null,2650,"Hvidovre"]
[null,2660,"Brøndby Strand"]
[null,2665,"Vallensbæk Strand"]
[null,2670,"Greve"]
[null,2680,"Solrød"]
[null,2690,"Karlslunde"]
[null,2700,"Brønshøj"]
[null,2720,"Vanløse"]
[null,2730,"Herlev"]
[null,2740,"Skovlunde"]
[null,2750,"Ballerup"]
[null,2760,"Måløv"]
[null,2765,"Smørum"]
[null,2770,"Kastrup"]
[null,2791,"Dragør"]
[null,2800,"Kongens Lyngby"]
[null,2820,"Gentofte"]
[null,2830,"Virum"]
[null,2840,"Holte"]
[null,2850,"Nærum"]
[null,2860,"Søborg"]
[null,2870,"Dyssegård"]
[null,2880,"Bagsværd"]
[null,2900,"Hellerup"]
[null,2920,"Charlottenlund"]
[null,2930,"Klampenborg"]
[null,2942,"Skodsborg"]
[null,2950,"Vedbæk"]
[null,2960,"Rungsted Kyst"]
[null,2970,"Hørsholm"]
[null,2980,"Kokkedal"]
[null,2990,"Nivå"]
[null,3000,"Helsingør"]
[null,3050,"Humlebæk"]
[null,3050,"Humlebæk"]
[null,3060,"Espergærde"]
[null,3070,"Snekkersten"]
[null,3080,"Tikøb"]
[null,3100,"Hornbæk"]
[null,3120,"Dronningmølle"]
[null,3140,"Ålsgårde"]
[null,3150,"Hellebæk"]
[null,3200,"Helsinge"]
[null,3210,"Vejby"]
[null,3220,"Tisvildeleje"]
[null,3230,"Græsted"]
[null,3250,"Gilleleje"]
[null,3300,"Frederiksværk"]
[null,3310,"Ølsted"]
[null,3320,"Skævinge"]
[null,3330,"Gørløse"]
[null,3360,"Liseleje"]
[null,3370,"Melby"]
[null,3390,"Hundested"]
[null,3400,"Hillerød"]
[null,3450,"Allerød"]
[null,3460,"Birkerød"]
[null,3480,"Fredensborg"]
[null,3490,"Kvistgård"]
[null,3500,"Værløse"]
[null,3520,"Farum"]
[null,3540,"Lynge"]
[null,3550,"Slangerup"]
[null,3600,"Frederikssund"]
[null,3630,"Jægerspris"]
[null,3650,"Ølstykke"]
[null,3660,"Stenløse"]
[null,3670,"Veksø Sjælland"]
[null,3700,"Rønne"]
[null,3720,"Aakirkeby"]
[null,3730,"Neksø"]
[null,3740,"Svaneke"]
[null,3751,"Østermarie"]
[null,3760,"Gudhjem"]
[null,3770,"Allinge"]
[null,3782,"Klemensker"]
[null,3790,"Hasle"]
[null,4000,"Roskilde"]
[null,4030,"Tune"]
[null,4040,"Jyllinge"]
[null,4050,"Skibby"]
[null,4060,"Kirke Såby"]
[null,4070,"Kirke Hyllinge"]
[null,4100,"Ringsted"]
[null,4130,"Viby Sjælland"]
[null,4140,"Borup"]
[null,4160,"Herlufmagle"]
[null,4171,"Glumsø"]
[null,4173,"Fjenneslev"]
[null,4174,"Jystrup Midtsj"]
[null,4180,"Sorø"]
[null,4190,"Munke Bjergby"]
[null,4200,"Slagelse"]
[null,4220,"Korsør"]
[null,4230,"Skælskør"]
[null,4241,"Vemmelev"]
[null,4242,"Boeslunde"]
[null,4243,"Rude"]
[null,4250,"Fuglebjerg"]
[null,4261,"Dalmose"]
[null,4262,"Sandved"]
[null,4270,"Høng"]
[null,4281,"Gørlev"]
[null,4291,"Ruds Vedby"]
[null,4293,"Dianalund"]
[null,4295,"Stenlille"]
[null,4296,"Nyrup"]
[null,4300,"Holbæk"]
[null,4320,"Lejre"]
[null,4330,"Hvalsø"]
[null,4340,"Tølløse"]
[null,4340,"Tølløse"]
[null,4350,"Ugerløse"]
[null,4360,"Kirke Eskilstrup"]
[null,4370,"Store Merløse"]
[null,4390,"Vipperød"]
[null,4400,"Kalundborg"]
[null,4420,"Regstrup"]
[null,4440,"Mørkøv"]
[null,4450,"Jyderup"]
[null,4460,"Snertinge"]
[null,4470,"Svebølle"]
[null,4480,"Store Fuglede"]
[null,4490,"Jerslev Sjælland"]
[null,4500,"Nykøbing Sj"]
[null,4520,"Svinninge"]
[null,4532,"Gislinge"]
[null,4534,"Hørve"]
[null,4540,"Fårevejle"]
[null,4550,"Asnæs"]
[null,4560,"Vig"]
[null,4571,"Grevinge"]
[null,4572,"Nørre Asmindrup"]
[null,4573,"Højby"]
[null,4581,"Rørvig"]
[null,4583,"Sjællands Odde"]
[null,4591,"Føllenslev"]
[null,4592,"Sejerø"]
[null,4593,"Eskebjerg"]
[null,4600,"Køge"]
[null,4621,"Gadstrup"]
[null,4622,"Havdrup"]
[null,4623,"Lille Skensved"]
[null,4632,"Bjæverskov"]
[null,4640,"Faxe"]
[null,4652,"Hårlev"]
[null,4653,"Karise"]
[null,4654,"Faxe Ladeplads"]
[null,4660,"Store Heddinge"]
[null,4671,"Strøby"]
[null,4672,"Klippinge"]
[null,4673,"Rødvig Stevns"]
[null,4681,"Herfølge"]
[null,4682,"Tureby"]
[null,4683,"Rønnede"]
[null,4684,"Holmegaard"]
[null,4690,"Haslev"]
[null,4700,"Næstved"]
[null,4720,"Præstø"]
[null,4733,"Tappernøje"]
[null,4735,"Mern"]
[null,4736,"Karrebæksminde"]
[null,4750,"Lundby"]
[null,4760,"Vordingborg"]
[null,4771,"Kalvehave"]
[null,4772,"Langebæk"]
[null,4773,"Stensved"]
[null,4780,"Stege"]
[null,4791,"Borre"]
[null,4792,"Askeby"]
[null,4793,"Bogø By"]
[null,4800,"Nykøbing F"]
[null,4840,"Nørre Alslev"]
[null,4850,"Stubbekøbing"]
[null,4862,"Guldborg"]
[null,4863,"Eskilstrup"]
[null,4871,"Horbelev"]
[null,4872,"Idestrup"]
[null,4873,"Væggerløse"]
[null,4874,"Gedser"]
[null,4880,"Nysted"]
[null,4891,"Toreby L"]
[null,4892,"Kettinge"]
[null,4894,"Øster Ulslev"]
[null,4895,"Errindlev"]
[null,4900,"Nakskov"]
[null,4912,"Harpelunde"]
[null,4913,"Horslunde"]
[null,4920,"Søllested"]
[null,4930,"Maribo"]
[null,4930,"Maribo"]
[null,4941,"Bandholm"]
[null,4943,"Torrig L"]
[null,4943,"Torrig L"]
[null,4944,"Fejø"]
[null,4951,"Nørreballe"]
[null,4952,"Stokkemarke"]
[null,4953,"Vesterborg"]
[null,4960,"Holeby"]
[null,4970,"Rødby"]
[null,4983,"Dannemare"]
[null,4990,"Sakskøbing"]
[null,5000,"Odense C"]
[null,5200,"Odense V"]
[null,5210,"Odense NV"]
[null,5220,"Odense SØ"]
[null,5230,"Odense M"]
[null,5240,"Odense NØ"]
[null,5250,"Odense SV"]
[null,5260,"Odense S"]
[null,5270,"Odense N"]
[null,5290,"Marslev"]
[null,5300,"Kerteminde"]
[null,5320,"Agedrup"]
[null,5330,"Munkebo"]
[null,5350,"Rynkeby"]
[null,5370,"Mesinge"]
[null,5380,"Dalby"]
[null,5390,"Martofte"]
[null,5400,"Bogense"]
[null,5450,"Otterup"]
[null,5462,"Morud"]
[null,5463,"Harndrup"]
[null,5464,"Brenderup Fyn"]
[null,5466,"Asperup"]
[null,5471,"Søndersø"]
[null,5474,"Veflinge"]
[null,5485,"Skamby"]
[null,5491,"Blommenslyst"]
[null,5492,"Vissenbjerg"]
[null,5500,"Middelfart"]
[null,5540,"Ullerslev"]
[null,5550,"Langeskov"]
[null,5560,"Aarup"]
[null,5580,"Nørre Aaby"]
[null,5591,"Gelsted"]
[null,5592,"Ejby"]
[null,5600,"Faaborg"]
[null,5610,"Assens"]
[null,5620,"Glamsbjerg"]
[null,5631,"Ebberup"]
[null,5642,"Millinge"]
[null,5672,"Broby"]
[null,5683,"Haarby"]
[null,5690,"Tommerup"]
[null,5700,"Svendborg"]
[null,5750,"Ringe"]
[null,5762,"Vester Skerninge"]
[null,5771,"Stenstrup"]
[null,5772,"Kværndrup"]
[null,5792,"Årslev"]
[null,5800,"Nyborg"]
[null,5853,"Ørbæk"]
[null,5854,"Gislev"]
[null,5856,"Ryslinge"]
[null,5863,"Ferritslev Fyn"]
[null,5871,"Frørup"]
[null,5874,"Hesselager"]
[null,5881,"Skårup Fyn"]
[null,5882,"Vejstrup"]
[null,5883,"Oure"]
[null,5884,"Gudme"]
[null,5892,"Gudbjerg Sydfyn"]
[null,5900,"Rudkøbing"]
[null,5932,"Humble"]
[null,5935,"Bagenkop"]
[null,5953,"Tranekær"]
[null,5960,"Marstal"]
[null,5970,"Ærøskøbing"]
[null,5985,"Søby Ærø"]
[null,6000,"Kolding"]
[null,6040,"Egtved"]
[null,6051,"Almind"]
[null,6052,"Viuf"]
[null,6064,"Jordrup"]
[null,6070,"Christiansfeld"]
[null,6091,"Bjert"]
[null,6092,"Sønder Stenderup"]
[null,6093,"Sjølund"]
[null,6094,"Hejls"]
[null,6100,"Haderslev"]
[null,6200,"Aabenraa"]
[null,6230,"Rødekro"]
[null,6240,"Løgumkloster"]
[null,6261,"Bredebro"]
[null,6270,"Tønder"]
[null,6280,"Højer"]
[null,6300,"Gråsten"]
[null,6310,"Broager"]
[null,6320,"Egernsund"]
[null,6330,"Padborg"]
[null,6340,"Kruså"]
[null,6360,"Tinglev"]
[null,6372,"Bylderup-Bov"]
[null,6392,"Bolderslev"]
[null,6400,"Sønderborg"]
[null,6430,"Nordborg"]
[null,6440,"Augustenborg"]
[null,6470,"Sydals"]
[null,6500,"Vojens"]
[null,6510,"Gram"]
[null,6520,"Toftlund"]
[null,6534,"Agerskov"]
[null,6535,"Branderup J"]
[null,6541,"Bevtoft"]
[null,6560,"Sommersted"]
[null,6580,"Vamdrup"]
[null,6600,"Vejen"]
[null,6621,"Gesten"]
[null,6622,"Bække"]
[null,6623,"Vorbasse"]
[null,6630,"Rødding"]
[null,6640,"Lunderskov"]
[null,6650,"Brørup"]
[null,6660,"Lintrup"]
[null,6670,"Holsted"]
[null,6682,"Hovborg"]
[null,6683,"Føvling"]
[null,6690,"Gørding"]
[null,6700,"Esbjerg"]
[null,6705,"Esbjerg Ø"]
[null,6710,"Esbjerg V"]
[null,6715,"Esbjerg N"]
[null,6720,"Fanø"]
[null,6731,"Tjæreborg"]
[null,6740,"Bramming"]
[null,6752,"Glejbjerg"]
[null,6753,"Agerbæk"]
[null,6760,"Ribe"]
[null,6771,"Gredstedbro"]
[null,6780,"Skærbæk"]
[null,6792,"Rømø"]
[null,6800,"Varde"]
[null,6818,"Årre"]
[null,6823,"Ansager"]
[null,6830,"Nørre Nebel"]
[null,6840,"Oksbøl"]
[null,6851,"Janderup Vestj"]
[null,6852,"Billum"]
[null,6853,"Vejers Strand"]
[null,6854,"Henne"]
[null,6855,"Ovtrup"]
[null,6857,"Blåvand"]
[null,6862,"Tistrup"]
[null,6870,"Ølgod"]
[null,6880,"Tarm"]
[null,6893,"Hemmet"]
[null,6900,"Skjern"]
[null,6920,"Videbæk"]
[null,6933,"Kibæk"]
[null,6940,"Lem St"]
[null,6950,"Ringkøbing"]
[null,6960,"Hvide Sande"]
[null,6971,"Spjald"]
[null,6973,"Ørnhøj"]
[null,6980,"Tim"]
[null,6990,"Ulfborg"]
[null,7000,"Fredericia"]
[null,7080,"Børkop"]
[null,7100,"Vejle"]
[null,7120,"Vejle Øst"]
[null,7130,"Juelsminde"]
[null,7140,"Stouby"]
[null,7150,"Barrit"]
[null,7160,"Tørring"]
[null,7171,"Uldum"]
[null,7173,"Vonge"]
[null,7182,"Bredsten"]
[null,7183,"Randbøl"]
[null,7184,"Vandel"]
[null,7190,"Billund"]
[null,7200,"Grindsted"]
[null,7250,"Hejnsvig"]
[null,7260,"Sønder Omme"]
[null,7270,"Stakroge"]
[null,7280,"Sønder Felding"]
[null,7300,"Jelling"]
[null,7321,"Gadbjerg"]
[null,7323,"Give"]
[null,7330,"Brande"]
[null,7361,"Ejstrupholm"]
[null,7362,"Hampen"]
[null,7400,"Herning"]
[null,7430,"Ikast"]
[null,7441,"Bording"]
[null,7442,"Engesvang"]
[null,7451,"Sunds"]
[null,7451,"Sunds"]
[null,7470,"Karup J"]
[null,7480,"Vildbjerg"]
[null,7490,"Aulum"]
[null,7500,"Holstebro"]
[null,7540,"Haderup"]
[null,7550,"Sørvad"]
[null,7560,"Hjerm"]
[null,7570,"Vemb"]
[null,7600,"Struer"]
[null,7620,"Lemvig"]
[null,7650,"Bøvlingbjerg"]
[null,7660,"Bækmarksbro"]
[null,7673,"Harboøre"]
[null,7680,"Thyborøn"]
[null,7700,"Thisted"]
[null,7730,"Hanstholm"]
[null,7741,"Frøstrup"]
[null,7742,"Vesløs"]
[null,7752,"Snedsted"]
[null,7755,"Bedsted Thy"]
[null,7760,"Hurup Thy"]
[null,7770,"Vestervig"]
[null,7790,"Thyholm"]
[null,7800,"Skive"]
[null,7830,"Vinderup"]
[null,7840,"Højslev"]
[null,7850,"Stoholm Jyll"]
[null,7860,"Spøttrup"]
[null,7870,"Roslev"]
[null,7884,"Fur"]
[null,7900,"Nykøbing M"]
[null,7950,"Erslev"]
[null,7960,"Karby"]
[null,7970,"Redsted M"]
[null,7980,"Vils"]
[null,7990,"Øster Assels"]
[null,8000,"Århus C"]
[null,8200,"Århus N"]
[null,8210,"Århus V"]
[null,8220,"Brabrand"]
[null,8230,"Åbyhøj"]
[null,8240,"Risskov"]
[null,8250,"Egå"]
[null,8260,"Viby J"]
[null,8270,"Højbjerg"]
[null,8300,"Odder"]
[null,8305,"Samsø"]
[null,8310,"Tranbjerg J"]
[null,8320,"Mårslet"]
[null,8330,"Beder"]
[null,8340,"Malling"]
[null,8350,"Hundslund"]
[null,8355,"Solbjerg"]
[null,8361,"Hasselager"]
[null,8362,"Hørning"]
[null,8370,"Hadsten"]
[null,8380,"Trige"]
[null,8381,"Mundelstrup"]
[null,8382,"Hinnerup"]
[null,8400,"Ebeltoft"]
[null,8410,"Rønde"]
[null,8420,"Knebel"]
[null,8444,"Balle"]
[null,8450,"Hammel"]
[null,8462,"Harlev J"]
[null,8464,"Galten"]
[null,8471,"Sabro"]
[null,8472,"Sporup"]
[null,8500,"Grenaa"]
[null,8520,"Lystrup"]
[null,8530,"Hjortshøj"]
[null,8541,"Skødstrup"]
[null,8541,"Skødstrup"]
[null,8543,"Hornslet"]
[null,8544,"Mørke"]
[null,8550,"Ryomgård"]
[null,8560,"Kolind"]
[null,8570,"Trustrup"]
[null,8581,"Nimtofte"]
[null,8585,"Glesborg"]
[null,8586,"Ørum Djurs"]
[null,8592,"Anholt"]
[null,8600,"Silkeborg"]
[null,8620,"Kjellerup"]
[null,8632,"Lemming"]
[null,8641,"Sorring"]
[null,8643,"Ans By"]
[null,8653,"Them"]
[null,8654,"Bryrup"]
[null,8660,"Skanderborg"]
[null,8670,"Låsby"]
[null,8680,"Ry"]
[null,8700,"Horsens"]
[null,8721,"Daugård"]
[null,8722,"Hedensted"]
[null,8723,"Løsning"]
[null,8732,"Hovedgård"]
[null,8740,"Brædstrup"]
[null,8751,"Gedved"]
[null,8752,"Østbirk"]
[null,8762,"Flemming"]
[null,8763,"Rask Mølle"]
[null,8765,"Klovborg"]
[null,8766,"Nørre Snede"]
[null,8781,"Stenderup"]
[null,8783,"Hornsyld"]
[null,8800,"Viborg"]
[null,8830,"Tjele"]
[null,8831,"Løgstrup"]
[null,8832,"Skals"]
[null,8840,"Rødkærsbro"]
[null,8850,"Bjerringbro"]
[null,8860,"Ulstrup"]
[null,8870,"Langå"]
[null,8881,"Thorsø"]
[null,8882,"Fårvang"]
[null,8883,"Gjern"]
[null,8900,"Randers C"]
[null,8920,"Randers NV"]
[null,8930,"Randers NØ"]
[null,8940,"Randers SV"]
[null,8950,"Ørsted"]
[null,8960,"Randers SØ"]
[null,8961,"Allingåbro"]
[null,8963,"Auning"]
[null,8970,"Havndal"]
[null,8981,"Spentrup"]
[null,8983,"Gjerlev J"]
[null,8990,"Fårup"]
[null,9000,"Aalborg"]
[null,9200,"Aalborg SV"]
[null,9210,"Aalborg SØ"]
[null,9220,"Aalborg Øst"]
[null,9230,"Svenstrup J"]
[null,9240,"Nibe"]
[null,9260,"Gistrup"]
[null,9270,"Klarup"]
[null,9280,"Storvorde"]
[null,9293,"Kongerslev"]
[null,9300,"Sæby"]
[null,9310,"Vodskov"]
[null,9320,"Hjallerup"]
[null,9330,"Dronninglund"]
[null,9340,"Asaa"]
[null,9352,"Dybvad"]
[null,9362,"Gandrup"]
[null,9370,"Hals"]
[null,9380,"Vestbjerg"]
[null,9381,"Sulsted"]
[null,9382,"Tylstrup"]
[null,9400,"Nørresundby"]
[null,9430,"Vadum"]
[null,9440,"Aabybro"]
[null,9460,"Brovst"]
[null,9480,"Løkken"]
[null,9490,"Pandrup"]
[null,9492,"Blokhus"]
[null,9493,"Saltum"]
[null,9500,"Hobro"]
[null,9510,"Arden"]
[null,9520,"Skørping"]
[null,9530,"Støvring"]
[null,9541,"Suldrup"]
[null,9550,"Mariager"]
[null,9560,"Hadsund"]
[null,9574,"Bælum"]
[null,9575,"Terndrup"]
[null,9600,"Aars"]
[null,9610,"Nørager"]
[null,9620,"Aalestrup"]
[null,9631,"Gedsted"]
[null,9632,"Møldrup"]
[null,9640,"Farsø"]
[null,9670,"Løgstør"]
[null,9681,"Ranum"]
[null,9690,"Fjerritslev"]
[null,9700,"Brønderslev"]
[null,9740,"Jerslev J"]
[null,9750,"Øster"]
[null,9760,"Vrå"]
[null,9800,"Hjørring"]
[null,9830,"Tårs"]
[null,9850,"Hirtshals"]
[null,9870,"Sindal"]
[null,9881,"Bindslev"]
[null,9900,"Frederikshavn"]
[null,9940,"Læsø"]
[null,9970,"Strandby"]
[null,9981,"Jerup"]
[null,9982,"Ålbæk"]
[null,9990,"Skagen"]

{"sheet":"Services","index":10,"n_rows":25,"n_cols":5,"rows_kept":25,"cut":false,"hidden":false,"merged":[]}
[]
[null,"Faktaark og artikler"]
[null,"Vær opmærksom på at du forlader denne side når du aktivere de indsatte links."]
[]
[null,"K","Faktaark om kalium"]
[null,"P","Faktaark om fosfor"]
[null,"S","Gødninger med svovl til økologiske afgrøder"]
[]
[]
[null,"Omregning fra molekyler til atomer"]
[]
[null,"Udlandet angiver ofte procent indhold af næringsstoffer i gødninger som oxider."]
[null,"Du kan omregne her:"]
[]
[null,"Fra","Pct.(indsæt)","Til","Pct."]
[null,"K2O",0,"K",{"$f":"+C16*0.83","v":0}]
[null,"P2O5",0,"P",{"$f":"+C17*0.44","v":0}]
[null,"MgO",0,"Mg",{"$f":"+C18*0.6","v":0}]
[null,"SO3",0,"S",{"$f":"+C19*0.4","v":0}]
[]
[]
[null,"Konsulenterklæring"]
[null,"Flere af de tilladte gødninger forudsætter at der er udarbejdet en konsulenterklæring"]
[null,"Skemaet der skal anvendes findes på NaturErhvervs hjemmeside for skemaer og blanketter. Se under fane Planteavl:"]
[null,"http://naturerhverv.dk/tvaergaaende/oekologi/jordbrugsbedrifter/skemaer-og-blanketter/"]

{"sheet":"XRumvægt","index":11,"n_rows":27,"n_cols":2,"rows_kept":27,"cut":false,"hidden":false,"merged":[]}
[]
[null,"Rumvægt for græsensilage"]
[]
[]
[]
[]
[]
[]
[]
[]
[]
[]
[]
[]
[]
[]
[]
[]
[]
[]
[]
[]
[]
[]
[]
[]
[null,"Kilde: Håndbog i kvæghold"]

{"sheet":"Øgro 10-3-1","index":12,"n_rows":24,"n_cols":10,"rows_kept":24,"cut":false,"hidden":false,"merged":[]}
[]
[null,"Øgro 10-3-1"]
[null,"Oprindelse og form ","Øgro 10-3-1 (tidligere Biogrow) er et restprodukt af animalsk oprindelse i pilleform. Det består af dansk kød- og benmel, eksklusiv \"drøv tryggere\". Har et højt indhold og tilgængelighed af kvælstof og fosfor. Der er påvist god gødningseffekt i vårsæd, men data er dog begrænset i DK. Produktet har gennem mange år været anvendt og testet i Sverige. "]
[null,"Indhold","\nTotal-kvælstof: 10 %\nTotal-fosfor: 2,6 %\nKalium: 1,0 %\nMagnesium: 0,2%\nSvovl: 0,5%                                                                            "]
[null,"Udnyttelse, faglig vurdering ","Gødningsprodukt, hvor kvælstof kan forventes udnyttet med 50-80%, og øvrige næringsstoffer med 100% når der regnes over en længere årrække."]
[null,"Pris","2.350-2.890 kr./ton afhængig af ordre størrelse, lokalitet og købstidspunkt. "]
[null,"Radius for levering","Hele landet."]
[null,"Håndtering","Bør nedbringes for at opnå bedst nyttevirkning af kvælstof og undgå at evt. fugle spiser pillerne. Muligvis et mindre problem med fugle i opvoksede afgrøder."]
[null,"Bilag 1 i Vejledning om økologisk jordbrugsproduktion","Kategori: Produkter eller biprodukter af animalsk oprindelse, herunder kødmel og benmel.                                                                                                                        Logbog for planteavl: Noteres som gødning                                                                           Dokumentation af behov: Intet krav hvis alt ikke-økologisk gødning tilsammen giver 50 kg udnyttet N eller mindre pr. ha."]
[null,"Gødningsregnskab for kvælstof","Generelt ikke afklaret for organiske gødninger, men det forventes at udnyttelsesprocenten vil blive fastsat forholdsmæssigt ud fra indgangsmaterialerne primo 2017.  "]
[null,"Gødningsregnskab for fosfor","Der kommer en ny regulering for fosfor pr. 1. august 2017."]
[null,"Andre regler","Reguleret efter biproduktforordningen og OGJ bekendtgørelse (Organiske Gødningsstoffer og Jordforbedringsmidler): Således at anvendelse af Øgro på bedrifter med produktionsdyr skal registre dette under punkt \"OGJ\" i GHI -landbrugsindbretning parallelt med gødningsindberetning.                                                                                                                              Må ikke spredes på afgrøder senere end 21 dage før høst, og senest 21 dage før dyr får adgang til arealet.     "]
[null,"Leverandører","DAKA "]
[null,"OBS punkter","Det er ifølge Mejeriforeningens retningslinjer på nuværende tidspunkt ikke tilladt at anvende kødbenmel eller produkter produceret med input af kødbenmel når man er mælkeproducent. I 2017 er produktet tilsæt 5% synlig kalk jf. krav fra fødevarestyrelsen.\nVær opmærksom på at ikke alle grovvarervirksomheder, herunder DLG, vil modtage høst af afgrøder der er gødet med kød- og benmel. "]
[null,"Kilde","http://www.daka.dk/daka/ogro/oegro-10-3-1/?L=10"]
[null,"Sidst opdateret","Januar 2017"]
[]
[]
[]
[]
[]
[]
[]
[null,null,null,null,null,null,null,null,null,"½"]

{"sheet":"Øgro 9-3-4 +2S","index":13,"n_rows":23,"n_cols":10,"rows_kept":23,"cut":false,"hidden":false,"merged":[]}
[]
[null,"Øgro 9-3-4 + 2S"]
[null,"Oprindelse og form ","Øgro 9-3-4 + 2S er et restprodukt af animalsk og vegetabilsk oprindelse i 4 mm piller. Det består af dansk kød- og benmel, eksklusiv \"drøv tryggere\", og tilsat vinasse. Har et højt indhold af kvælstof, fosfor, kalium og svovl. Produktet har gennem mange år været anvendt og testet i Sverige.  "]
[null,"Indhold","Total-kvælstof: 8,8 %\nTotal-fosfor: 2,5 %\nKalium: 3,6 %\nMagnesium: 0,2%\nSvovl: 2,4%                                                                            "]
[null,"Udnyttelse, faglig vurdering ","Gødningsprodukt, hvor kvælstof kan forventes udnyttet med 50-80%, og øvrige næringsstoffer med 100%, når der regnes over en længere årrække."]
[null,"Pris","3.000-3.650 kr./ton afhængig af ordre størrelse, lokalitet og købs tidspunkt. "]
[null,"Radius for levering","Hele landet efter nærmere aftale"]
[null,"Håndtering","Bør nedbringes for at opnå bedst nyttevirkning af kvælstof og undgå at evt. fugle spiser pillerne. Muligvis et mindre problem med fugle i opvoksede afgrøder."]
[null,"Bilag 1 i Vejledning om økologisk jordbrugsproduktion","Kategori: Produkter eller biprodukter af animalsk oprindelse, herunder kødmel og benmel.                                                                                                                        Logbog for planteavl: Noteres som gødning                                                                           Dokumentation af behov: Intet krav hvis alt ikke-økologisk gødning tilsammen giver 50 kg udnyttet N eller mindre pr. ha."]
[null,"Gødningsregnskab for kvælstof","Generelt ikke afklaret for organiske gødninger, men det forventes at udnyttelsesprocenten vil blive fastsat forholdsmæssigt ud fra indgangsmaterialerne primo 2017.  "]
[null,"Gødningsregnskab for fosfor","Der kommer en ny regulering for fosfor pr. 1. august 2017."]
[null,"Andre regler","Reguleret efter biproduktforordningen og OGJ bekendtgørelse (Organiske Gødningsstoffer og Jordforbedringsmidler): Således at anvendelse af Øgro på bedrifter med produktionsdyr skal registre dette under punkt \"OGJ\" i GHI -landbrugsindbretning parallelt med gødningsindberetning.                                                                                                                              Må ikke spredes på afgrøder senere end 21 dage før høst, og senest 21 dage før dyr får adgang til arealet.     "]
[null,"Leverandører","DAKA "]
[null,"OBS punkter","Det er ifølge Mejeriforeningens retningslinjer på nuværende tidspunkt ikke tilladt at anvende kødbenmel eller produkter produceret med input af kødbenmel når man er mælkeproducent. I 2017 er produktet tilsæt 5% synlig kalk jf. krav fra fødevarestyrelsen.\nVær opmærksom på at ikke alle grovvarervirksomheder, herunder DLG, vil modtage høst af afgrøder der er gødet med kød- og benmel. "]
[null,"Kilde","http://www.daka.dk/daka/ogro/oegro-9-3-4-2s/?L=10"]
[null,"Sidst opdateret","Januar 2017"]
[]
[]
[]
[]
[]
[]
[null,null,null,null,null,null,null,null,null,"½"]

{"sheet":"Øgro N15","index":14,"n_rows":23,"n_cols":10,"rows_kept":23,"cut":false,"hidden":false,"merged":[]}
[]
[null,"Øgro N15"]
[null,"Oprindelse og form ","Øgro N15 består af 3 mm piller fremstillet af hydrolyserede svinebørster som er rige på let omsættelig kvælstof. Leveres i bigbags a 750 kg eller poser a 20 kg.                                                       "]
[null,"Indhold","Total-kvælstof: 15,0 %\nTotal-fosfor: 0,3 %\nKalium: 0,01%\nMagnesium: 0,01%\nSvovl: 2,2%                                                                            "]
[null,"Udnyttelse, faglig vurdering ","Gødningsprodukt, hvor kvælstof forventes udnyttet med 50-80%. Det mangler praktiske forsøg."]
[null,"Pris","I bigbag a 750 kg;  4.425 - 4.910  kr/ton afhængig af ordre størrelse, lokalitet og købstidspunkt. "]
[null,"Radius for levering","Hele landet efter nærmere aftale"]
[null,"Håndtering","Bør nedbringes for at opnå bedst nyttevirkning af kvælstof og undgå at evt. fugle spiser pillerne. Muligvis et mindre problem med fugle i opvoksede afgrøder."]
[null,"Bilag 1 i Vejledning om økologisk jordbrugsproduktion","Kategori: Produkter eller biprodukter af animalsk oprindelse, herunder hår og børster.                                                                                                                        Logbog for planteavl: Noteres som gødning                                                                           Dokumentation af behov: Intet krav hvis alt ikke-økologisk gødning tilsammen giver 50 kg udnyttet N eller mindre pr. ha."]
[null,"Gødningsregnskab for kvælstof","Generelt ikke afklaret for organiske gødninger, men det forventes at udnyttelsesprocenten vil blive fastsat forholdsmæssigt ud fra indgangsmaterialerne primo 2017.  "]
[null,"Gødningsregnskab for fosfor","Der kommer en ny regulering for fosfor pr. 1. august 2017."]
[null,"Andre regler","Reguleret efter biproduktforordningen og OGJ bekendtgørelse (Organiske Gødningsstoffer og Jordforbedringsmidler): Således at anvendelse af Øgro på bedrifter med produktionsdyr skal registre dette under punkt \"OGJ\" i GHI -landbrugsindbretning parallelt med gødningsindberetning.                                                                                                                              Må ikke spredes på afgrøder senere end 21 dage før høst, og senest 21 dage før dyr får adgang til arealet.     "]
[null,"Leverandører","DAKA "]
[null,"OBS punkter","Der findes ikke branche-bestemte begrænsninger på brugen af denne gødning."]
[null,"Kilde","http://www.daka.dk/daka/ogro/oegro-n15/?L=10"]
[null,"Sidst opdateret","Januar 2017"]
[]
[]
[]
[]
[]
[]
[null,null,null,null,null,null,null,null,null,"½"]

{"sheet":"Øgro granulat 9-3-4+2S","index":15,"n_rows":23,"n_cols":10,"rows_kept":23,"cut":false,"hidden":false,"merged":[]}
[]
[null,"Øgro granulat 9-3-4 + 2S"]
[null,"Oprindelse og form ","Øgro 9-3-4 + 2S er et restprodukt af animalsk og vegetabilsk oprindelse. Produktet er hårdt presset og efterfølgende knust til ca. 1 mm granulat. Det består af dansk kød- og benmel, eksklusiv \"drøv tryggere\", og tilsat vinasse. Har et højt indhold af kvælstof, fosfor, kalium og svovl. Produktet har gennem mange år været anvendt og testet i Sverige.  "]
[null,"Indhold","Total-kvælstof: 8,8 %\nTotal-fosfor: 2,5 %\nKalium: 3,6 %\nMagnesium: 0,2%\nSvovl: 2,4%                                                                            "]
[null,"Udnyttelse, faglig vurdering ","Gødningsprodukt, hvor kvælstof kan forventes udnyttet med 50-80%, og øvrige næringsstoffer med 100%, når der regnes over en længere årrække."]
[null,"Pris","3.540-3.990 kr./ton afhængig af ordre størrelse, lokalitet og købs tidspunkt. "]
[null,"Radius for levering","Hele landet efter nærmere aftale"]
[null,"Håndtering","På græsarealer, hvor nedfældning/tildækning af gødningen ikke er en mulighed, kan man med fordel anvende 9-3-4-2S i en granuleret form, da den lettere falder ned i bunden af afgrøden. "]
[null,"Bilag 1 i Vejledning om økologisk jordbrugsproduktion","Kategori: Produkter eller biprodukter af animalsk oprindelse, herunder kødmel og benmel.                                                                                                                        Logbog for planteavl: Noteres som gødning                                                                           Dokumentation af behov: Intet krav hvis alt ikke-økologisk gødning tilsammen giver 50 kg udnyttet N eller mindre pr. ha."]
[null,"Gødningsregnskab for kvælstof","Generelt ikke afklaret for organiske gødninger, men det forventes at udnyttelsesprocenten vil blive fastsat forholdsmæssigt ud fra indgangsmaterialerne primo 2017.  "]
[null,"Gødningsregnskab for fosfor","Der kommer en ny regulering for fosfor pr. 1. august 2017."]
[null,"Andre regler","Reguleret efter biproduktforordningen og OGJ bekendtgørelse (Organiske Gødningsstoffer og Jordforbedringsmidler): Således at anvendelse af Øgro på bedrifter med produktionsdyr skal registre dette under punkt \"OGJ\" i GHI -landbrugsindbretning parallelt med gødningsindberetning.                                                                                                                              Må ikke spredes på afgrøder senere end 21 dage før høst, og senest 21 dage før dyr får adgang til arealet.     "]
[null,"Leverandører","DAKA "]
[null,"OBS punkter","Det er ifølge Mejeriforeningens retningslinjer på nuværende tidspunkt ikke tilladt at anvende kødbenmel eller produkter produceret med input af kødbenmel når man er mælkeproducent. I 2017 er produktet tilsæt 5% synlig kalk jf. krav fra fødevarestyrelsen.\nVær opmærksom på at ikke alle grovvarervirksomheder, herunder DLG, vil modtage høst af afgrøder der er gødet med kød- og benmel. "]
[null,"Kilde","http://www.daka.dk/daka/ogro/oegro-granulat/?L=10"]
[null,"Sidst opdateret","Januar 2017"]
[]
[]
[]
[]
[]
[]
[null,null,null,null,null,null,null,null,null,"½"]

{"sheet":"Protamylasse","index":16,"n_rows":17,"n_cols":3,"rows_kept":17,"cut":false,"hidden":false,"merged":[[14,1,15,1]]}
[]
[null,"Protamylasse "]
[null,"Oprindelse og form ","Kartoffelprotamylasse er et inddampet biprodukt fra fremstillingen af kartoffelmel, hvor  kartoffelfrugtvand med omkring 3 % tørstof, opkoncentreres ca. 10 gange. Efter opkoncentrering er  protamylassen stadig i flydende og pumpebar form. Gødningen er klorfattig."]
[null,"Indhold  ","Tørstofindhold: 24-38%\nTotal-kvælstof: 12-18 kg/ton\nTotal-fosfor: 2-4 kg/ton\nKalium: 34-40 kg/ton\nMagnesium: 1,7-4 kg/ton\nSvovl: 4-9 kg/ton  "]
[null,"Udnyttelse, faglig vurdering "," 70 % af kvælstof, 100 % af fosfor, 100 % af kalium "]
[null,"Pris","Ca. 200-220 kr./ton ved afhentning på fabrik. Kontakt producent for nærmere aftale."]
[null,"Radius for levering","Primært Jylland "]
[null,"Håndtering","Protamylasse er velegnet til biogasanlæg og som koncentreret flydende gødning, udbragt direkte på marken, eller som opblanding i svinegylle for at opnå en bedre gødningsmæssig sammensætning. Ved iblanding og udbringning er det vigtigt med omrøring."]
[null,"Bilag 1 i Vejledning om økologisk jordbrugs-produktion","Kategori: Produkter eller biprodukter af vegetabilsk oprindelse til gødskning.                           Logbog for planteavl: Noteres som gødning                                                                           Dokumentation af behov: Noter hvorfor produktet er nødvendigt på din bedrift."]
[null,"Gødningsregnskab for kvælstof","Lovpligtig N-udnyttelse: 50%                                                                                                           "]
[null,"Gødningsregnskab for fosfor","Der kommer en ny regulering for fosfor pr. 1. august 2017."]
[null,"Andre regler","Protamylasse fra AKK og AKS er for nylig løftet ud af slambekendtgørelsen og reguleres nu alene under gødningsbekendtgørelsen. Det kan derfor anvendes uden forudgående tilladelse fra kommunen.\n\nReglerne for udbringning er pt. uafklarede men det vurderes at lukkeperioden (15. november til 1. februar) for husdyr- og handelsgødning gælder, når denne gødning alene er reguleret under gødningsbekendtgørelsen.  \n \n"]
[null,"Leverandører","Protamylasse forhandles af Kartoffelmelsfabrikkerne i Sønderjylland (AKS) og Karup (AKK). "]
[null,"OBS punkter","Produktionen af protamylasse varierer fra år til år, i såvel mængder som næringsstofindhold. Mængderne er begrænsede og andelshavere og gamle kunder har ofte første prioritet, men der er dog muligheder også for nye kunder. Velegnet til opblanding i gylle. \n"]
[null,"Kilde","AKS:  http://www.a-k-s.dk/biprodukter/protamylasse-2017/"]
[null,null,"AKK: http://www.kkmel.dk/biprodukter/protamylasse.aspx"]
[null,"Sidst opdateret","Januar 2017"]

{"sheet":"K-2","index":17,"n_rows":16,"n_cols":3,"rows_kept":16,"cut":false,"hidden":false,"merged":[]}
[]
[null,"K-2"]
[null,"Oprindelse og form ","K-2 (der er en protamylasse-gødning) er et inddampet biprodukt fra fremstillingen af kartoffelmel, hvor  kartoffelfrugtvand med 4 % tørstof, opkoncentreres ca. 10 gange. Efter opkoncentrering er  K-2 stadig i flydende og pumpebar form. Gødningen er klorfattig."]
[null,"Indhold  ","Tørstofindhold: ca. 40 %\nTotal-kvælstof: 18 kg/ton\nTotal-fosfor: 4 kg/ton\nKalium: 60 kg/ton\nMagnesium: 3 kg/ton\nSvovl: 7 kg/ton  "]
[null,"Udnyttelse, faglig vurdering ","70 % af kvælstof, øvrige næringsstoffer kan sættes til 100 % udnyttelse "]
[null,"Pris","400 kr./ton udbragt på marken og 345 kr./ton leveret til beholder."]
[null,"Radius for levering","Nordjylland (Himmerland og Vendsyssel)"]
[null,"Håndtering","Protamylasse er velegnet til biogasanlæg og som koncentreret flydende gødning, udbragt direkte på marken, eller som opblanding i svinegylle for at opnå en bedre gødningsmæssig sammensætning. Ved modtagelse til gyllebeholder skal man være opnærksom på at K-2 kan skumme når det blandes med gylle. Der skal derfor være en vis volumen til rådighed i beholderen. Udbragt direkte med gyllevogn fra Langholdt er den laveste dosering 1,5 ton/ha. Ved iblanding og udbringning er det vigtigt med omrøring"]
[null,"Bilag 1 i Vejledning om økologisk jordbrugs-produktion","Kategori: Produkter eller biprodukter af vegetabilsk oprindelse til gødskning.                           Logbog for planteavl: Noteres som gødning                                                                           Dokumentation af behov: Noter hvorfor produktet er nødvendigt på din bedrift."]
[null,"Gødningsregnskab for kvælstof","Lovpligtig N-udnyttelse: 50%                                                                                                           "]
[null,"Gødningsregnskab for fosfor","Der kommer en ny regulering for fosfor pr. 1. august 2017."]
[null,"Andre regler","K-2 er reguleret efter Slambekendtgørelsen. Det betyder at udbringningen skal anmeldelse til kommunen, hvis man modtager mere end 10 tons tørstof pr. år, og der max må udbringes 90 kg fosfor over 3 år og max 170 kg total-kvælstof pr. ha pr. år på markniveau (§22). Hvis gødningen blandes i gylle med op til 25 procent, kan det dog udbringes efter reglerne i Husdyrgødningsbekendtgørelsen uden begrænsning i fosformængden.\nHusdyrgødningsbekendtgørelsen: I perioden fra 1. sept. til 1. februar må der ikke udbringes protamylasse. Dog må der fra høst til 1. oktober tilføres max. 50 kg total-kvælstof pr. ha til overvintrende fodergræs og nyetableret vinterraps.\nAKV arbejder på at få K-2 løftet ud af Slambekendtgørelsen og over som en handelsgødning."]
[null,"Leverandører","K-2 forhandles af Andelskartoffelmelsfabrikken Vendsyssel (AKV) i Langholt. \nSpørgsmål samt bestilling af K-2 kan ske ved henvendelse til:\nAgrokonsulent Svend Bøgh Larsen\nDirekte: 96389433, Mobil: 40516234\nE-mail sbl@akv-langholt.dk\n"]
[null,"OBS punkter","Produktionen af K-2 varierer fra år til år, i såvel mængder som næringsstofindhold. Mængderne er begrænsede og andelshavere og gamle kunder har ofte første prioritet, men der er dog muligheder også for nye kunder. "]
[null,"Kilde","http://www.akv-langholt.dk/saft-2/"]
[null,"Sidst opdateret","Dec. 2016"]

{"sheet":"Kartoffelfrugtsaft","index":18,"n_rows":16,"n_cols":3,"rows_kept":16,"cut":false,"hidden":false,"merged":[]}
[]
[null,"Kartoffelfrugtvand"]
[null,"Oprindelse og form ","Kartoffelfrugtvand er et klorfattigt restprodukt fra produktion af kartoffelstivelse, -protein og- pulver. "]
[null,"Indhold","Tørstofindhold: 2,2% \nTotal-kvælstof: 1,1 kg/ton\nTotal-fosfor: 0,27 kg/ton\nKalium: 3,6 kg/ton\nMagnesium: 0,2 kg/ton\nSvovl: 1,5 kg/ton"]
[null,"Udnyttelse, faglig vurdering "," 70 % af kvælstof, 100 % af fosfor, 100 % af kalium "]
[null,"Pris","Bemærk at prisen er stærkt afhængig af udbringningsmetode og afstande.\nSe priser på: http://www.akm.dk/media/161017/akm_frugtvandsmodt_priser2016.pdf\n"]
[null,"Radius for levering","Kartoffelfrugtvand leveres til modtagers gylletank inden for en radius af 30 km fra Borupvej 11, 7330 Brande"]
[null,"Håndtering","Kartoffelfrugtvand kan enten leveres til modtagers gylletank, hvor modtager selv varetager udbringning eller udbringes direkte på mark.   "]
[null,"Bilag 1 i Vejledning om økologisk jordbrugsproduktion","Kategori: Produkter eller biprodukter af vegetabilsk oprindelse til gødskning.\nLogbog for planteavl: Noteres som gødning                                                                           Dokumentation af behov: Noter hvorfor produktet er nødvendigt på din bedrift."]
[null,"Gødningsregnskab for kvælstof","Lovpligtig N-udnyttelse: 50%                                                                                                           "]
[null,"Gødningsregnskab for fosfor","Der kommer en ny regulering for fosfor pr. 1. august 2017."]
[null,"Andre regler","Ikast-Brande Kommune har i 2016 omklassificeret kartoffelfrugtsaft fra AKM fra affald til biprodukt. Indtil kartoffelfrugtsaften evt. bliver omfattet af generelle udbringningsregler anbefaler kommunen at de tidligere regler for udbringning følges:\n-at den samlede tilførsel af næringsstoffer fra kartoffelfrugtvand og husdyrgødning ikke må overstige 170 kg totalkvælstof og 30 kg totalfosfor pr. ha pr. år (fosfordoseringen kan beregnes som et gennemsnit over 3 år),\n-at der med kartoffelfrugtvand ikke må tilføres jorden mere end 7 tons tørstof pr. år (beregnet som et gennemsnit over 10 år),\n-at der i perioden fra høst til 1.oktober maksimalt må tilføres 50 kg totalkvælstof og 122 kg. kali pr. ha med kartoffelfrugtvand på arealer med vinterraps eller overvintrende græs. Græsarealerne skal afgræsses/høstes inden 31. december.\n-at der i perioden 1.oktober til 1.februar ikke må udbringes kartoffelfrugtvand på landbrugsjord.\n-at de maksimale mængder pr. ha pr. år for totalkvælstof, totalfosfor, tørstof og kubikmeter frugtvand skal overholdes inden for enhver 12-måneders periode (hvor mængderne kan beregnes som et gennemsnit over 3 eller 10 år, skal kravene være opfyldt for enhver 36- hhv. 120-måneders periode).\n"]
[null,"Leverandører","AKM - Andels-Kartoffelmelsfarbrikken Midtjylland A.m.b.a. Ved spørgsmål i forbindelse med udbringing af kartoffelfrugtvand kontakt Jens Studsgaard, tlf. +45 20 92 81 33, +45 87 18 08 88"]
[null,"OBS punkter","Økologer må kun anvende kartoffelfrugtvand om efteråret i perioden efter høst til 1. oktober (og her kun til vinterraps eller overvintrende græs). Herefter tilsættes frugtsaften nemlig et konserveringsmiddel (svovlsyre) som udelukker økologisk brug."]
[null,"Kilde","http://www.akm.dk/biprodukter/frugtvand.aspx"]
[null,"Sidst opdateret","Dec. 2016"]

{"sheet":"Kartoffelkondensat","index":19,"n_rows":19,"n_cols":3,"rows_kept":19,"cut":false,"hidden":false,"merged":[]}
[]
[null,"Kartoffelkondensat"]
[null,"Oprindelse og form ","Fremkommer ved damp-trykkogning af afvaskede kartofler hvorved der dannes et kondensat som kan udtages fra bunden af trykbeholderen. "]
[null,"Indhold","Tørstofindhold: 4,6%\nTotal-kvælstof: 1,1 kg/ton\nTotal-fosfor: 0,1 kg/ton\nKalium: 1,6 kg/ton\n"]
[null,"Udnyttelse, faglig vurdering ","Klorfattigt  gødningsprodukt, hvor kvælstof kan forventes udnyttet med 70 %, og øvrige næringsstoffer med 100 %"]
[null,"Pris","Leveres frit til tank + 10 kr./ton til udbringning"]
[null,"Radius for levering","I lokalområdet omkring Grinsted og Varde"]
[null,"Håndtering","Kan blandes med gylle eller køres ud separat. Det er meget tyndt, og kan derfor ifølge Miljøservice med fordel bruges til at \"tynde\" møg med. Skal køres ud i store mængder pga. lille næringsværdi."]
[null,"Bilag 1 i Vejledning om økologisk jordbrugsproduktion","Kategori: Produktet er omfattet af kategorien \"vinasse og vinasseekstrakt\".\nLogbog for planteavl: Noteres som gødning                                                                           Dokumentation af behov: Noter hvorfor produktet er nødvendigt på din bedrift."]
[null,"Gødningsregnskab","Lovpligtig N-udnyttelse: 50%                                                                                                           "]
[null,"Gødningsregnskab for fosfor","Der kommer en ny regulering for fosfor pr. 1. august 2017."]
[null,"Andre regler","Slambekendtgørelsen: Udbringningen skal anmeldelse til kommunen, hvis man modtager mere end 10 tons tørstof pr. år. Der må max udbringes 90 kg fosfor over 3 år og max 170 kg total-kvælstof pr. ha pr. år på markniveau. Hvis kartoffelkondensatet blandes i gylle med max 25 procent, kan det dog udbringes efter reglerne i Husdyrgødningsbekendtgørelsen uden begrænsning i fosformængden.  Udbringningen skal dog fortsat anmeldes til kommunen."]
[null,"Leverandører","Miljøservice"]
[null,"OBS punkter"]
[null,"Kilde","Direktør og projektleder Mogens K. Jensen\nmogens@miljoeservice.dk\n2067 7045"]
[null,"Sidst opdateret","jan. 2017"]
[]
[]
[null,null," "]

{"sheet":"Kalium vinasse","index":20,"n_rows":15,"n_cols":3,"rows_kept":15,"cut":false,"hidden":false,"merged":[[12,1,13,1]]}
[null,"Kaliumvinasse"]
[null,"Oprindelse og form ","Efter sukkerudvinding fra sukkerroer findes melassen som indeholder 40-50% sukker foruden mineralet og proteiner.Denne melasse anvendes til fremstilling af alkohol, citronsyre og protein. I disse processer frigøres flydende vinasse. Ved tilsætning af gips udfældes vinassen som får en kalklignende konsistens. "]
[null,"Indhold","Tørstofindhold: 91 % \nTotal-kvælstof: under 0,8%\nKalium: 21 %\nSvovl: 17 %\n"]
[null,"Udnyttelse, faglig vurdering ","Kvælstof kan forventes udnyttet med 50%, og øvrige næringsstoffer med\n100%"]
[null,"Pris","ca. 1.800 kr. pr. ton"]
[null,"Radius for levering","Hele landet"]
[null,"Håndtering","Kaliumvinasse er i fast pulverform og kan udbringes med kalkspreder. "]
[null,"Bilag 1 i Vejledning om økologisk jordbrugsproduktion","Kategori: Produkter eller biprodukter af vegetabilsk oprindelse til gødskning.                           Logbog for planteavl: Noteres som gødning                                                                           Dokumentation af behov: Noter hvorfor produktet er nødvendigt på din bedrift."]
[null,"Gødningsregnskab for kvælstof","Medtages ikke i gødningsregnskabet, da indholdet ligger under de gældende grænseværdier."]
[null,"Andre regler","Slambekendtgørelsen: Udbringningen skal anmeldelse til kommunen, hvis man modtager mere end 10 tons tørstof pr. år. Der må max udbringes 90 kg fosfor over 3 år og max 170 kg total-kvælstof pr. ha pr. år på markniveau. Hvis gødningen blandes i gylle med max 25 procent, kan det dog udbringes efter reglerne i Husdyrgødningsbekendtgørelsen uden begrænsning i fosformængden.  Udbringningen skal dog fortsat anmeldes til kommunen."]
[null,"Leverandører","DLG                                                       "]
[null,"OBS punkter","Indhold af kvælstof er meget lavt, og indeholder ikke fosfor. Resterende indhold kan variere en anelse. "]
[null,"Kilde","DLG A.m.b.a., Tlf. +45 33 68 30 00 . Link til hjemmeside: https://www.dlg.dk/Landmand/Økologi/Marken%20økologi"]
[]
[null,"Sidst opdateret","Januar 2016"]

{"sheet":"Vinasse","index":21,"n_rows":15,"n_cols":3,"rows_kept":15,"cut":false,"hidden":false,"merged":[]}
[]
[null,"Vinasse"]
[null,"Oprindelse og form ","Vinasse er et biprodukt fra produktion af gær -og spritfremstilling med roemelasse, hvorfra sukker udvindes Tilbage er en tynd opløsning med et typisk tørstofindhold på 8-10 %. Denne opløsning opkoncentreres ved inddampning.  "]
[null,"Indhold","Vinasse fra De Danske Gærfabrikker:                                                                                   Tørstofindhold: 65,5 %\nTotal-kvælstof: 3,5 %\nKalium: 7,0 %\n                       "]
[null,"Udnyttelse, faglig vurdering ","Kvælstof kan forventes udnyttet med 70%, og øvrige næringsstoffer med 100 %      "]
[null,"Pris","Vinasse kan købes ved De Danske Gærfabrikker og Brdr. Thorsen. Brdr. Thorsen leverer i Østjylland for 600 kr./ton leveret til gylletank. Pris ved levering over større afstande aftales individuelt. "]
[null,"Radius for levering","Hovedsageligt Jylland"]
[null,"Håndtering","Vinassen har en holdbarhed på 2 år og opbevares i tanke af beton eller stål. Kan med fordel omrøres da vinassen kan bundfælde. "]
[null,"Bilag 1 i Vejledning om økologisk jordbrugsproduktion","Kategori: Produkter eller biprodukter af vegetabilsk oprindelse til gødskning.                           Logbog for planteavl: Noteres som gødning                                                                           Dokumentation af behov: Noter hvorfor produktet er nødvendigt på din bedrift."]
[null,"Gødningsregnskab for kvælstof","Generelt ikke afklaret for organiske gødninger, men det forventes at udnyttelsesprocenten vil blive fastsat forholdsmæssigt ud fra udgangsmaterialerne primo 2017.  "]
[null,"Andre regler","Norddjurs Kommune træf i 2015 afgørelse om at stofferne vinasse og vinassekali fra De Danske Gærfabrikker, Grenaa ikke er affald, men biprodukter. Derfor skal gødningerne håndteres iflg. gældende gødningsregler."]
[null,"Leverandører","Brdr. Thorsen I/S leverer primært i Østjylland. Ved levering over større afstande kontakt for nærmere aftale. "]
[null,"OBS punkter","Vinasse kan ikke udbringes uopblandet med almindelig maskinel, og det er derfor nødvendigt at betale Brdr. Thorsen I/S for at udbringe gødningen på marken - medmindre det opblandes med gylle. Der produceres stadig store mængder vinasse, som ligger på lager - klar til afhentning."]
[null,"Kilde","Brdr. Thorsen I/S, Nimtofte Maskinstation, Svenstrupvej 8, 8581 Nimtofte. Tlf. +45 86 39 86 00. E-mail: nimtofte@brdr-thorsen.dk "]
[null,"Sidst opdateret","Jan. 2017"]

{"sheet":"Vinasse-kali","index":22,"n_rows":15,"n_cols":3,"rows_kept":15,"cut":false,"hidden":false,"merged":[]}
[]
[null,"VinasseKali"]
[null,"Oprindelse og form ","Ved gærfremstilling forbruges roemelassens sukker, og tilbage bliver en tynd opløsning indeholdende 8-10 % tørstof, denne opløsning opkoncentreres ved inddampning. I forbindelse med denne proces udfældes der nogle krystaller, der fradekanteres og opslemmes i vand. Denne blanding er vinassekali.  "]
[null,"Indhold","Vinassekali fra De Danske Gærfabrikker: \nTørstofindhold:ca. 57 % \nTotal-kvælstof: 0,8 %\nKalium: 19 % +/- 3%\nSvovl: 7% +/- 0,5"]
[null,"Udnyttelse, faglig vurdering ","Kvælstof kan forventes udnyttet med 70%, og øvrige næringsstoffer med 100 %"]
[null,"Pris","Brdr. Thorsen: leveret i hele træk (a 30 tons) til gylletank.                                                                                                       Østjylland 650 dkk/ton + moms                                                                                                                                 Midtjylland 700 dkk/ton + moms                                                                                                                  Nord/Sønderjylland 750 dkk/ton + moms"]
[null,"Radius for levering","Jylland"]
[null,"Håndtering","VinasseKali leveres som bulk via tankbil, og udspredes normalt sammen med gyllen.\nKan ved kraftig oprøring og tilsat ca. 50% vand udspredes med spreder til flydende gødning."]
[null,"Bilag 1 i Vejledning om økologisk jordbrugsproduktion","Kategori: Produktet kategoriseres som et vinasseekstrakt.\nLogbog for planteavl: Noteres som gødning                                                                                        Dokumentation af behov: Noter hvorfor produktet er nødvendigt på din bedrift."]
[null,"Gødningsregnskab for kvælstof","Medtages ikke i gødningsregnskabet, da indholdet ligger under de gældende grænseværdier."]
[null,"Andre regler","Norddjurs Kommune træf i 2015 afgørelse om at stofferne vinasse og vinassekali fra De Danske Gærfabrikker, Grenaa ikke er affald, men biprodukter. Derfor skal gødningerne håndteres iflg. gældende gødningsregler."]
[null,"Leverandører","Brdr. Thorsen                                                           "]
[null,"OBS punkter","Indhold af kvælstof er meget lavt, og indeholder ikke fosfor. Resterende indhold kan variere en anelse. "]
[null,"Kilde","Brdr. Thorsen I/S, Nimtofte Maskinstation, Svenstrupvej 8, 8581 Nimtofte. Tlf. +45 86 39 86 00. E-mail: nimtofte@brdr-thorsen.dk . Link til hjemmeside: http://www.brdr-thorsen.dk/services/maskinstation/"]
[null,"Sidst opdateret","Jan. 2017"]

{"sheet":"Kaliumvinasse ekstrakt K25","index":23,"n_rows":18,"n_cols":3,"rows_kept":18,"cut":false,"hidden":false,"merged":[[13,1,16,1]]}
[null,"Kaliumvinasse ekstrakt K25"]
[null,"Oprindelse og form ","Kaliumvinasse ekstrakt er et biprodukt fra bioethanol produktion fra melasse. Produktet opkoncentreres ved inddampning. "]
[null,"Indhold","Tørstofindhold: 95 % \nTotal-kvælstof: 0,3%                                                                                                                                                 \nFosfor: under 0,44%                                                                                                                                               Kalium: 25,2 %\nSvovl: 12,3%"]
[null,"Udnyttelse, faglig vurdering ","Kvælstof kan forventes udnyttet med 50 %, og øvrige næringsstoffer med 100%"]
[null,"Pris","ca. 1.900 kr. /ton"]
[null,"Radius for levering","Hele landet"]
[null,"Håndtering","Kaliumvinasse er i fast pulverform og kan udbringes med kalkspreder. "]
[null,"Bilag 1 i Vejledning om økologisk jordbrugsproduktion","Kategori: Produktet kategoriseres som et vinasseekstrakt.\nLogbog for planteavl: Noteres som gødning                                                                                        Dokumentation af behov: Noter hvorfor produktet er nødvendigt på din bedrift."]
[null,"Gødningsregnskab for kvælstof","Medtages ikke i gødningsregnskabet, da indholdet ligger under de gældende grænseværdier."]
[null,"Gødningsregnskab for fosfor","Der kommer en ny regulering for fosfor pr. 1. august 2017."]
[null,"Andre regler","Slambekendtgørelsen: Udbringningen skal anmeldelse til kommunen, hvis man modtager mere end 10 tons tørstof pr. år. Der må max udbringes 90 kg fosfor over 3 år og max 170 kg total-kvælstof pr. ha pr. år på markniveau. Hvis gødningen blandes i gylle med max 25 procent, kan det dog udbringes efter reglerne i Husdyrgødningsbekendtgørelsen uden begrænsning i fosformængden.  Udbringningen skal dog fortsat anmeldes til kommunen."]
[null,"Leverandører","DLG, Danish Agro, Vestjyllands Andel.                                                        "]
[null,"OBS punkter","Indhold af kvælstof er meget lavt, og indeholder ikke fosfor. Resterende indhold kan variere en anelse. "]
[null,"Kilde"]
[null,null,"DLG A.m.b.a., Tlf. +45 33 68 30 00 . Link til hjemmeside: https://www.dlg.dk/Landmand/Økologi/Marken%20økologi"]
[null,null,"Danish Agro, kontakt vedr. produkter inden for økologisk planteavl Tlf. +45 72 15 80 00. Link til hjemmeside: http://www.danishagro.dk/oekologi/oekologisk-planteavl/organisk-goedning"]
[null,null,"Vestjyllands Andel, Økologi: http://www.vja.dk/Oekologi-1"]
[null,"Sidst opdateret","Januar 2017"]

{"sheet":"Binadan 4-1-3","index":24,"n_rows":16,"n_cols":3,"rows_kept":16,"cut":false,"hidden":false,"merged":[]}
[]
[null,"Binadan 4-1-3"]
[null,"Oprindelse og form ","Gødning baseret på ren kyllingemøg og presset i 3 mm piller"]
[null,"Indhold","Total-kvælstof: 4 %\nTotal-fosfor: 0,8 %\nKalium: 2,8 %\nMagnesium: 0,64 %                                                                                                                                     "]
[null,"Udnyttelse, faglig vurdering ","Kvælstof kan forventes udnyttet med 60-70 %, og øvrige næringsstoffer med 100%, når der regnes over en længere årrække."]
[null,"Pris","1584,00 kr. (ekskl. fragt og moms) for Bigbag a 800 kg.\nEkstra afgift på 160,00 kr. hvis ikke der føres gødningsregnskab "]
[null,"Radius for levering","Leveres i hele landet (mod betaling)"]
[null,"Håndtering","Leveres med 48 sække a 15 kg på europaller."]
[null,"Bilag 1 i Vejledning om økologisk jordbrugsproduktion","Kategori: Tørret fast husdyrgødning, herunder tørret fjerkrægødning.                                                                                                                        Logbog for planteavl: Noteres som gødning                                                                           Dokumentation af behov: Intet krav hvis alt ikke-økologisk gødning tilsammen giver 50 kg udnyttet N eller mindre pr. ha."]
[null,"Gødningsregnskab for kvælstof","Lovpligtig N-udnyttelse: 65% (fra kategorien fast gødning)                                                                                                          "]
[null,"Gødningsregnskab for fosfor","Der kommer en ny regulering for fosfor pr. 1. august 2017."]
[null,"Andre regler","Gødningerne er tilladt som ikke-økologisk gødningsmiddel i økologisk jordbrug, og må udbringes med op til 50 kg udnyttet N pr. ha."]
[null,"Leverandører","Fausol Productions A/S - Metalvej 7 - 4000 Roskilde, Tlf: +45 70 27 29 50 , E-mail: salg@fausol.dk"]
[null,"OBS punkter"]
[null,"Kilde","http://www.fausolproductions.com/binadan-natur-goedning/"]
[null,"Sidst opdateret","Januar 2017"]

{"sheet":"DLG Kombigødning 4-1-3","index":25,"n_rows":16,"n_cols":3,"rows_kept":16,"cut":false,"hidden":false,"merged":[]}
[]
[null,"DLG Kombigødning NPK 4-1-3"]
[null,"Oprindelse og form ","Kombigødningen består af pelleteret hønsegødning. "]
[null,"Indhold","Total-kvælstof: 3,6 %\nTotal-fosfor: 1,0 %\nKalium: 2,5 %                                                                                                       "]
[null,"Udnyttelse, faglig vurdering ","Kvælstof kan forventes udnyttet med 60-70 %, og øvrige næringsstoffer med 100%, når der regnes over en længere årrække."]
[null,"Pris","1.750 kr./ton"]
[null,"Radius for levering","Hele landet"]
[null,"Håndtering"]
[null,"Bilag 1 i Vejledning om økologisk jordbrugsproduktion","Kategori: Tørret fast husdyrgødning herunder tørret fjerkrægødning                                                                                                                        Logbog for planteavl: Noteres som gødning                                                                           Dokumentation af behov: Intet krav hvis alt ikke-økologisk gødning tilsammen giver 50 kg udnyttet N eller mindre pr. ha."]
[null,"Gødningsregnskab","Lovpligtig N-udnyttelse: 65% (fra kategorien fast gødning)                                                                                                          "]
[null,"Gødningsregnskab for fosfor","Der kommer en ny regulering for fosfor pr. 1. august 2017."]
[null,"Andre regler","Gødningerne er tilladt som ikke-økologisk gødningsmiddel i økologisk jordbrug, og må udbringes med op til 50 kg udnyttet N pr. ha."]
[null,"Leverandører","DLG"]
[null,"OBS punkter"]
[null,"Kilde"]
[null,"Sidst opdateret","14. juni 2016"]

{"sheet":"Økogødning 6-1-1","index":26,"n_rows":16,"n_cols":3,"rows_kept":16,"cut":false,"hidden":false,"merged":[]}
[]
[null,"Økogødning 6-1-1"]
[null,"Oprindelse og form ","Økogødning 6-1-1 er baseret på økologisk lupin og hestebønner.  "]
[null,"Indhold","Total-kvælstof: 6,0 %\nTotal-fosfor: 1,0 %\nKalium: 1,0 %"]
[null,"Udnyttelse, faglig vurdering "," 60 % af kvælstof, 100 % af fosfor og kalium "]
[null,"Pris","Ved hele paller af 100 stk. pris pr. 10 kg 73,00 kr."]
[null,"Radius for levering","Hele landet"]
[null,"Håndtering","Formalet gødning (pulverform). Primært til væksthuse og grønsagsproduktion."]
[null,"Bilag 1 i Vejledning om økologisk jordbrugsproduktion","Da gødningen er økologisk indgår den ikke på bilag 1."]
[null,"Gødningsregnskab for kvælstof","Indregnes med 40% effekt under gruppen \"Andre typer af organisk gødning\"."]
[null,"Gødningsregnskab for fosfor","Der kommer en ny regulering for fosfor pr. 1. august 2017."]
[null,"Andre regler","Der må anvendes op til i alt 170 kg total-kvælstof pr. ha, hvis alt gødning er økologisk."]
[null,"Leverandører","Farmergødning I/S, Toruphøjevej 56, Fjelsø Mark\n9620Aalestrup\nTlf. +45 98 64 71 22\nE-mail: erik@farmergoedning.dk"]
[null,"OBS punkter","Gødningerne er for dyre til almindelige markafgrøder som korn og græsafgrøder. Men relevante til væksthuse og gartnerier. "]
[null,"Kilde","Link til hjemmeside: http://www.farmergodning.dk/ "]
[null,"Sidst opdateret","Januar 2017"]

{"sheet":"Økogødning 5-1-1","index":27,"n_rows":16,"n_cols":3,"rows_kept":16,"cut":false,"hidden":false,"merged":[]}
[]
[null,"Økogødning 5-1-1"]
[null,"Oprindelse og form ","Økogødning 5-1-1 er baseret på økologisk lupin og hestebønner.  "]
[null,"Indhold","Total-kvælstof: 5,0 %\nTotal-fosfor: 1,0 %\nKalium: 1,0 %"]
[null,"Udnyttelse, faglig vurdering "," 60 % af kvælstof, 100 % af fosfor og kalium "]
[null,"Pris","Ved hele paller af 100 stk. pris pr. 10 kg 60,00 kr. "]
[null,"Radius for levering","Hele landet"]
[null,"Håndtering","Pilleform - til almindelig udbringing på landbrugsjord."]
[null,"Bilag 1 i Vejledning om økologisk jordbrugsproduktion","Da gødningen er økologisk indgår den ikke på bilag 1."]
[null,"Gødningsregnskab for kvælstof","Lovpligtig N-udnyttelse: 40% (kategori \"Anden type af organisk gødning\")                                                                                                          "]
[null,"Gødningsregnskab for fosfor","Der kommer en ny regulering for fosfor pr. 1. august 2017."]
[null,"Andre regler","Der må anvendes op til i alt 170 kg total-kvælstof pr. ha, hvis alt gødning er økologisk."]
[null,"Leverandører","Farmergødning I/S, Toruphøjevej 56, Fjelsø Mark\n9620Aalestrup\nTlf. +45 98 64 71 22\nE-mail: erik@farmergoedning.dk"]
[null,"OBS punkter","Gødningerne er for dyre til almindelige markafgrøder som korn og græsafgrøder. Men relevante til væksthuse og gartnerier. "]
[null,"Kilde","Link til hjemmeside: http://www.farmergodning.dk/ "]
[null,"Sidst opdateret","Januar 2017"]

{"sheet":"Økohønsegødning 2-1-2","index":28,"n_rows":16,"n_cols":3,"rows_kept":16,"cut":false,"hidden":false,"merged":[]}
[]
[null,"Økohønsegødning 2-1-2"]
[null,"Oprindelse og form ","Økohønsegødning 2-1-2 er komposteret gødning fra økologisk fjerkræ.  "]
[null,"Indhold","Total-kvælstof: 2,0 %\nTotal-fosfor: 1,0 %\nKalium: 2,0 %"]
[null,"Udnyttelse, faglig vurdering ","Kvælstof kan forventes udnyttet med 25%, og øvrige næringsstoffer med 100%, når der regnes over en længere årrække."]
[null,"Pris","Ved hele paller af 100 stk. pris pr. 10 kg 41,5 kr. "]
[null,"Radius for levering","Hele landet"]
[null,"Håndtering","Komposteret materiale. Helt omsat (komposteret i 2-3 år)."]
[null,"Bilag 1 i Vejledning om økologisk jordbrugsproduktion","Da gødningen er økologisk indgår den ikke på bilag 1."]
[null,"Gødningsregnskab for kvælstof","Lovpligtig N-udnyttelse: 45% (kategori \"Dybstrøelse\")                                                                                                          "]
[null,"Gødningsregnskab for fosfor","Der kommer en ny regulering for fosfor pr. 1. august 2017."]
[null,"Andre regler","Der må anvendes op til i alt 170 kg total-kvælstof pr. ha, hvis alt gødning er økologisk."]
[null,"Leverandører","Farmergødning I/S, Toruphøjevej 56, Fjelsø Mark\n9620Aalestrup\nTlf. +45 98 64 71 22\nE-mail: erik@farmergoedning.dk"]
[null,"OBS punkter","Gødningerne er for dyre til almindelige markafgrøder som korn og græsafgrøder. Men relevante til væksthuse og gartnerier. "]
[null,"Kilde","Link til hjemmeside: http://www.farmergodning.dk/ "]
[null,"Sidst opdateret","14. juni 2016"]

{"sheet":"Økohønsegødning 3-1-2","index":29,"n_rows":17,"n_cols":3,"rows_kept":17,"cut":false,"hidden":false,"merged":[]}
[]
[null,"Økohønsegødning 3-1-2"]
[null,"Oprindelse og form ","Økohønsegødning 3-1-2 er pelleteret gødning fra økologisk fjerkræ.  "]
[null,"Indhold","Total-kvælstof: 3,0 %\nTotal-fosfor: 1,0 %\nKalium: 2,0 %"]
[null,"Udnyttelse, faglig vurdering ","Kvælstof kan forventes udnyttet med 60%, og øvrige næringsstoffer med 100%, når der regnes over en længere årrække."]
[null,"Pris","Ved hele paller af 100 stk. pris pr. 10 kg 41,5 kr. "]
[null,"Pris","Ved hele paller af 100 stk. pris pr. 10 kg 46,00 kr. "]
[null,"Radius for levering","Hele landet"]
[null,"Håndtering","Pilleform - til almindelig udbringing på landbrugsjord."]
[null,"Bilag 1 i Vejledning om økologisk jordbrugsproduktion","Da gødningen er økologisk indgår den ikke på bilag 1."]
[null,"Gødningsregnskab for kvælstof","Lovpligtig N-udnyttelse: 65% (kategori \"Fast gødning\")                                                                                                          "]
[null,"Gødningsregnskab for fosfor","Der kommer en ny regulering for fosfor pr. 1. august 2017."]
[null,"Andre regler","Der må anvendes op til i alt 170 kg total-kvælstof pr. ha, hvis alt gødning er økologisk."]
[null,"Leverandører","Farmergødning I/S, Toruphøjevej 56, Fjelsø Mark\n9620Aalestrup\nTlf. +45 98 64 71 22\nE-mail: erik@farmergoedning.dk"]
[null,"OBS punkter","Gødningerne er for dyre til almindelige markafgrøder som korn og græsafgrøder. Men relevante til væksthuse og gartnerier. "]
[null,"Kilde","Link til hjemmeside: http://www.farmergodning.dk/ "]
[null,"Sidst opdateret","14. juni 2016"]

{"sheet":"Monterra 13","index":30,"n_rows":16,"n_cols":3,"rows_kept":16,"cut":false,"hidden":false,"merged":[]}
[]
[null,"Monterra 13"]
[null,"Oprindelse og form ","Monterra 13 består af restprodukter (fjermel, grisehår mm.) fra fremstilling af levnedsmidler."]
[null,"Indhold","Tørstof: 90 %\nTotal-kvælstof:13 %\nKalium: 0,4 %\nMagnesium: 0,1 %                                                                    "]
[null,"Udnyttelse, faglig vurdering ","Kvælstof kan forventes udnyttet med 70%, og øvrige næringsstoffer med 100%."]
[null,"Pris","Ca. 7500 kr./tons (pris variere med indkøbsmængde)."]
[null,"Radius for levering","Leveres til hele landet."]
[null,"Håndtering","Monterra 13 er formuleret i 4-5 mm piller. Den er pH neutral, og har et meget lavt indhold af klor.\nPakkes i 25 kg og 1000 kg."]
[null,"Bilag 1 i Vejledning om økologisk jordbrugsproduktion","Kategori: Produkter eller biprodukter af animalsk oprindelse, herunder kødmel og benmel.                                                                                                                        Logbog for planteavl: Noteres som gødning                                                                           Dokumentation af behov: Intet krav hvis alt ikke-økologisk gødning tilsammen giver 50 kg udnyttet N eller mindre pr. ha."]
[null,"Gødningsregnskab for kvælstof","Generelt ikke afklaret for organiske gødninger, men det forventes at udnyttelsesprocenten vil blive fastsat forholdsmæssigt ud fra indgangsmaterialerne primo 2017.  "]
[null,"Gødningsregnskab for fosfor","Der kommer en ny regulering for fosfor pr. 1. august 2017."]
[null,"Andre regler"]
[null,"Leverandører","Borregaard Bioplant ApS, Helsingforsgade 27B, 8200 Aarhus N. Tlf. +45 86 78 69 88. E-mail: borregaard@bioplant.dk"]
[null,"OBS punkter","Bruges primært til produktion i væksthuse."]
[null,"Kilde","Link til hjemmeside med beskrivelser og produktblade: http://www.bioplant.dk/produkter/goedninger.aspx"]
[null,"Sidst opdateret","15. juni 2016"]

{"sheet":"Monterra-Malt","index":31,"n_rows":16,"n_cols":3,"rows_kept":16,"cut":false,"hidden":false,"merged":[]}
[]
[null,"Monterra Malt 4-1-5"]
[null,"Oprindelse og form ","Monterra-Malt består af rent vegetabilske bestanddele domineret af maltspirer fra ølproduktionen"]
[null,"Indhold","Tørstof: 90 %\nTotal-kvælstof:4 %\nFosfor: 1%\nKalium: 5 %                                                                        "]
[null,"Udnyttelse, faglig vurdering ","Kvælstof kan forventes udnyttet med 70%, og øvrige næringsstoffer med 100%."]
[null,"Pris","Ca. 3500 kr/tons (pris variere med indkøbsmængde)."]
[null,"Radius for levering","Leveres til hele landet."]
[null,"Håndtering","Monterraprodukterne er formuleret i 4-5 mm piller.\nGødningsbehovet afhænger af afgrøden, jordtypen og jordens aktuelle gødningsstatus. Normalt gives 1.000-3.000 kg/ha. Gødning er fri for sygdomskim og ukrudtsfrø. Den er pH neutral og har et meget lavt indhold af klor.\nPakkes i 25 kg og 1000 kg."]
[null,"Bilag 1 i Vejledning om økologisk jordbrugsproduktion","Kategori: Produkter eller biprodukter af vegetabilsk oprindelse til gødskning.                           Logbog for planteavl: Noteres som gødning                                                                           Dokumentation af behov: Noter hvorfor produktet er nødvendigt på din bedrift."]
[null,"Gødningsregnskab","Produktet står ikke opført i NAERs gødningsfortegnelse. Under afklaring om hvordan gødningen skal indgå i gødningsregnskabet."]
[null,"Gødningsregnskab for fosfor","Der kommer en ny regulering for fosfor pr. 1. august 2017."]
[null,"Andre regler"]
[null,"Leverandører","Borregaard Bioplant ApS, Helsingforsgade 27B, 8200 Aarhus N. Tlf. +45 86 78 69 88. E-mail: borregaard@bioplant.dk"]
[null,"OBS punkter","Organisk materiale forbedre jordstrukturen, og næringsstoffer frigives i takt med plantevækst. Bruges primært til produktion i væksthuse."]
[null,"Kilde","Link til hjemmeside med beskrivelser og produktblade: http://www.bioplant.dk/produkter/goedninger.aspx"]
[null,"Sidst opdateret","15. juni 2016"]

{"sheet":"PHC","index":32,"n_rows":16,"n_cols":3,"rows_kept":16,"cut":false,"hidden":false,"merged":[]}
[]
[null,"PHC"]
[null,"Oprindelse og form ","PHC er organiske gødninger af vegetabilsk oprindelse. "]
[null,"Indhold","Tørstof: 57-59 %\nTotal-kvælstof: 4,8-7,3 %\nTotal-fosfor: 0,87-1,22 %\nKalium: 1,83-4,56 %\nSvovl: 1,3-1,7 %                                                                                          "]
[null,"Udnyttelse, faglig vurdering ","Kvælstof kan forventes udnyttet med 60%, og øvrige næringsstoffer med 100%."]
[null,"Pris","Ca. 13.000 kr/tons (pris variere med indkøbsmængde)."]
[null,"Radius for levering","Leveres til hele landet."]
[null,"Håndtering","PHC produkterne er flydende og næringsstofferne hurtigt tilgængelige. Pakkes som 20 liter og 1000 liter."]
[null,"Bilag 1 i Vejledning om økologisk jordbrugsproduktion","Kategori: Produkter eller biprodukter af vegetabilsk oprindelse til gødskning.\nLogbog for planteavl: Noteres som gødning                                                                           Dokumentation af behov: Noter hvorfor produktet er nødvendigt på din bedrift."]
[null,"Gødningsregnskab for kvælstof","Produktet står ikke opført i NAERs gødningsfortegnelse. Under afklaring om hvordan gødningen skal indgå i gødningsregnskabet."]
[null,"Gødningsregnskab for fosfor","Der kommer en ny regulering for fosfor pr. 1. august 2017."]
[null,"Andre regler"]
[null,"Leverandører","Borregaard Bioplant ApS, Helsingforsgade 27B, 8200 Aarhus N. Tlf. +45 86 78 69 88. E-mail: borregaard@bioplant.dk"]
[null,"OBS punkter","Gødningsstofferne i PHC er hurtigt tilgængelige og kan anvendes ved akut mangel. Overdosering kan give svidninger. Bruges primært til produktion i væksthuse."]
[null,"Kilde","Link til hjemmeside med beskrivelser og produktblade: http://www.bioplant.dk/produkter/goedninger.aspx"]
[null,"Sidst opdateret","15. juni 2016"]

{"sheet":"Tang","index":33,"n_rows":16,"n_cols":3,"rows_kept":16,"cut":false,"hidden":false,"merged":[]}
[]
[null,"Tang fra Miljøservice"]
[null,"Oprindelse og form ","Tang er opsamlet på de danske badestrande i løbet af badesæsonen. Kan anvendes som gødnings- eller jordforbedrende materiale. "]
[null,"Indhold","Eks: Analyse af tang fra Ærø:\nTørstof: 26,5 %                                                                                                                                                                                                                     Total-kvælstof: 5,3 %\nFosfor: 0,3%\nKalium: ? %                                                                        "]
[null,"Udnyttelse, faglig vurdering ","Gødningsprodukt, hvor kvælstof kan forventes udnyttet med 5-15%, og øvrige næringsstoffer med 100% når der regnes over en længere årrække."]
[null,"Pris","Leveres på mark uden omkostninger"]
[null,"Radius for levering","Området omkring Oddsherred kommune"]
[null,"Håndtering"]
[null,"Bilag 1 i Vejledning om økologisk jordbrugsproduktion","Kategori: Alger og algeprodukter                                                                                                                        Logbog for planteavl: Noteres som gødning                                                                            Dokumentation af behov: Noter hvorfor produktet er nødvendigt på din bedrift "]
[null,"Gødningsregnskab for kvælstof","Kan variere fra kommune til kommune"]
[null,"Gødningsregnskab for fosfor","Der kommer en ny regulering for fosfor pr. 1. august 2017."]
[null,"Andre regler","Det er den enkelte kommune der giver en §19 tilladelse til at anvende tang på markerne."]
[null,"Leverandører","Kontakt de enkelte kommuner med kyststrækninger                                                             eller Miljøservice A/S, Ådalen 13A, 6600 Vejen.                    "]
[null,"OBS punkter","Mængden af tang til gødskningsformål er beskeden. Og kvaliteten kan være varierende.  Tang kan indeholde store mængder sand og der er risiko for indhold af klor i tang. Ligeledes kan indholdet af cadmium variere."]
[null,"Kilde","Direktør og projektleder Mogens K. Jensen\nmogens@miljoeservice.dk\n2067 7045"]
[null,"Sidst opdateret","Jan. 2017"]

{"sheet":"Ågrøde","index":34,"n_rows":16,"n_cols":3,"rows_kept":16,"cut":false,"hidden":false,"merged":[]}
[]
[null,"Ågrøde fra Miljøservice"]
[null,"Oprindelse og form ","Miljøservice modtager afskårne ågrøder fra kommuner. Produktet kan anvendes som gødnings- og jordforbedrende materiale. Fremstillingsmåde i Viborg kommune: Efter grødeskæring i vandløb opsamles materialet på grødepladser nær vandløbet. Her ligger det maksimalt 2 dage og afvander.\nDer kan findes aftaler vedr. årgøde i andre kommuner også. "]
[null,"Indhold","Analyse fra Viborg kommune\nTørstof: 14,5 %                                                                                                                                                                                                                         Total-kvælstof: 3,2 kg/ton                                                                                                              Fosfor: 0,9 kg/ton                                                                                                                      Kalium: ingen analyse"]
[null,"Udnyttelse, faglig vurdering "," 40 % af kvælstof, 100 % af fosfor, 100 % af kalium "]
[null,"Pris","Leveres på mark uden omkostninger"]
[null,"Radius for levering","Primært i Viborg kommune og også til dels i Skive kommune"]
[null,"Håndtering"]
[null,"Bilag 1 i Vejledning om økologisk jordbrugsproduktion","Kategori: Komposteret eller forgæret blanding af vegetabilsk materiale\nLogbog for planteavl: Gødning\nDokumentation af behov: Noter hvorfor produktet er nødvendigt på din bedrift."]
[null,"Gødningsregnskab for kvælstof","40% jfr slambekendtgørelsen."]
[null,"Gødningsregnskab for fosfor","Der kommer en ny regulering for fosfor pr. 1. august 2017."]
[null,"Andre regler","Viborg kommune: Ågrøden opbevares i markstak ovenpå en 50 cm halmmåtte ved udspredningsarealet, i henhold til tilladelse fra Viborg kommune af 11/5-2011.\nGenanvendelse af ågrøde på landbrugsjord er reguleret i Miljøbeskyttelsesloven. Viborg kommune har givet tilladelse til udspredning i henhold til slambekendtgørelsen"]
[null,"Leverandører","Miljøservice A/S, Ådalen 13A, 6600 Vejen og evt. kommuner.                   "]
[null,"OBS punkter","Mængden af ågrøde til gødskningsformål er beskeden. Kontakt Miljøservice vedr. tilgængelighed og leveringsbetingelser. "]
[null,"Kilde","Direktør og projektleder Mogens K. Jensen\nmogens@miljoeservice.dk\n2067 7045"]
[null,"Sidst opdateret","jan. 2017"]

{"sheet":"Have - parkaffald","index":35,"n_rows":15,"n_cols":3,"rows_kept":15,"cut":false,"hidden":false,"merged":[]}
[]
[null,"Have - parkaffald"]
[null,"Oprindelse og form ","Have - parkaffaldet komposteres i varierende grad, hvoraf noget afsættes direkte efter neddeling og sortering og andet færdigkomposteret under kontrollerede forhold. Velegnet som jordforbedrende middel og samtidig forsyning med næringsstoffer."]
[null,"Indhold ","Gennemsnitsdata: \nTørstofindhold: 64,0 %\nTotal-kvælstof: 6,0 kg/ton\nTotal-fosfor: 1,1 kg/ton\nKalium: 4,0 kg/ton\nMagnesium: 1,2 kg/ton\nSvovl: 0,7 kg/ton \n\nAnalyser laves oftest på \"borger kompost\", som er den mest omsatte del af komposten - der forventes mindre afvigelser i forhold til grovere, mindre omsatte fraktioner, som oftest er dem landmændene får.\n"]
[null,"Udnyttelse, faglig vurdering "," 0 % af kvælstof (kan varierer fra negativ til svagt positiv førsteårs effekt), 100 % af fosfor og 80-90% af kalium ved gentagen brug. "]
[null,"Pris","Meget varierende fra kommune til kommune. Kan oftest hentes gratis (landmanden betaler transport). Der findes eksempler på at landmænd betaler op til 30 kr./ton, mens nogle udbydere betaler landmænd for at aftage grundet kapacitetsproblemer."]
[null,"Radius for levering","Håndteres lokalt"]
[null,"Håndtering","Der tilføres typisk med 20-30 ton pr. ha pr. år."]
[null,"Bilag 1 i Vejledning om økologisk jordbrugsproduktion","Kategori: Komposteret eller forgæret blanding af vegetabilsk oprindelse.                                      Logbog for planteavl: Noteres som jordforbedringsmiddel uanset N-indhold                                                     Dokumentation af behov: Noter hvorfor produktet er nødvendigt på din bedrift."]
[null,"Gødningsregnskab","Medtages ikke i gødningsregnskabet"]
[null,"Andre regler","Ingen specifikke regler for håndtering af ren haveparkaffald."]
[null,"Leverandører","Kontakt nærmeste genbrugsstation eller affaldscenter for yderligere information. <\nListe over de største udbydere (dem der hånterer have-parkaffald i flest kommuner): \nGemidan A/S samarbejder med 60 kommuner landet over om håndtering af bl.a. have-parkaffald (http://gemidan.dk). \nRGS90 A/S samarbejder med en række kommuner i Østjylland samt Københavns kommune og Vestforbrændings ejerkommuner (19 kommuner i og omkring Storkøbenhavn). \n(http://rgs90.dk/) \nNomi4S står for håndtering i Struer, Skive, Holstebro, Lemvig. \n(http://nomi4s.dk/) \nAFLD A/S: Ringkøbing-Skjern, Varde, Herning, Ikast-Brande, Billund, Hedensted. \n(http://esoe.dk/)\nI/S AffaldPlus: Faxe, Ringsted, Slagelse, Sorø, Vordingborg. \n(http://affaldplus.dk/) \nI/S Reno-Nord: Jammerbugt, Brønderslev, Rebild, Mariagerfjord og Aalborg. \n(http://renonord.dk/) \nNORFORS: Allerød, Hørsholm, Rudersdal, Helsingør. \n(http://norfors.dk/)"]
[null,"OBS punkter","Næringsstofindholdet varierer afhængigt af behandling og årstid for indlevering af affaldet. Der findes store forskelle i kvaliteten af komposten og generelt findes ikke analyser på indhold af næringsstoffer og ukrudtsfrø i den fraktion der betegnes råkompost. Der kan forekomme spiredygtige ukrudtsfrø i have - parkaffald, der ikke har gennemgået en kontrolleret kompostering. Herudover kan der i varierende grad findes fysiske urenheder som metal og plastik. Ofte er den kompost som landmanden kun lidt omsat. Efterkompostering kan derfor være nødvendig, ikke mindst for at eliminere mængden af spiredygtige ukrudtsfrø og æg fra dræbersnegle."]
[null,"Kilde","Kontakt til alle landets kommuner samt analysekampagne hos landmænd der anvender have-parkaffald. Links til kommende artikler og faktaark."]
[null,"Sidst opdateret","Januar 2017"]

{"sheet":"Patentkali","index":36,"n_rows":20,"n_cols":3,"rows_kept":20,"cut":false,"hidden":false,"merged":[]}
[]
[null,"Patentkali"]
[null,"Oprindelse og form ","Mineralsk gødning fremstillet af kaliumråsalt ved en fysisk udvindingsproces."]
[null,"Indhold","Kalium:  24,9%\nSvovl: 17%\nMagnesium: 6%\n\n\n                                                                                                                                     "]
[null,"Udnyttelse, faglig vurdering ","80-100 % udnyttelse"]
[null,"Pris","3.600-3.700 kr."]
[null,"Radius for levering","Hele landet"]
[null,"Håndtering","Spredes med alm. gødningsspreder."]
[null,"Bilag 1 i Vejledning om økologisk jordbrugsproduktion","Kategori: Kaliumsulfat der muligvis indeholder magnesiumsalt                     \nLogbog for planteavl: Noteres som gødning                                                                           Dokumentation af behov: Der må gødes op til et kalital på 8.\n\nJordbundsanalyser fra indeværende vækstsæson accepteres som dokumentation for behovet og skal opbevares på bedriften. Patentkali er letopløseligt, derfor er der strammere krav til brugen end til kaliumråsalte."]
[null,"Gødningsregnskab","Skal ikke medtages"]
[null,"Andre regler","Ingen"]
[null,"Leverandører","De fleste grovvarefirmaer"]
[null,"OBS punkter","Ingen"]
[null,"Kilde"]
[null,"Sidst opdateret","15. juni 2016"]
[]
[]
[]
[]
[null,null," "]

{"sheet":"Kiserit","index":37,"n_rows":15,"n_cols":3,"rows_kept":15,"cut":false,"hidden":false,"merged":[]}
[]
[null,"Kiserit"]
[null,"Oprindelse og form ","Produceret fra naturlige saltaflejringer i Europa, dannet ved inddampning af hav for mange millioner år siden."]
[null,"Indhold","Magnesium: 15,1%\nSvovl: 20% "]
[null,"Udnyttelse, faglig vurdering ","Der kan regnes med 80-100% udnyttelse af både magnesium og svovl"]
[null,"Pris","Ca. 2.200 kr pr ton"]
[null,"Radius for levering","Hele landet"]
[null,"Håndtering","Spredes med gødningsspreder."]
[null,"Bilag 1 i Vejledning om økologisk jordbrugsproduktion","Kategori: Magnesiumsufat (kiserit), kun naturligt forekommende                                                                                                                Logbog for planteavl: Noteres som gødning                                                                           Dokumentation af behov: Jordanalyse: Magnesiumtal under 6, som der må gødes op til på den enkelte mark."]
[null,"Gødningsregnskab","Skal ikke medtages"]
[null,"Andre regler","Ingen"]
[null,"Leverandører","De fleste grovvarefirmaer"]
[null,"OBS punkter"]
[null,"Kilde","http://www.kali-gmbh.com/uken/fertiliser/products/kieserite_gran.html?display=ShortText"]
[null,"Sidst opdateret","15. juni 2016"]

{"sheet":"Magnesia-kainit","index":38,"n_rows":15,"n_cols":3,"rows_kept":15,"cut":false,"hidden":false,"merged":[]}
[]
[null,"Magnesia-kainit"]
[null,"Oprindelse og form ","Råsalt "]
[null,"Indhold","Kalium: 9,1%\nMagnesium: 3%\nNatrium: 20%\nSvovl:  4%"]
[null,"Udnyttelse, faglig vurdering ","Der kan regnes med 80-100% udnyttelse af både kalium, magnesium og svovl"]
[null,"Pris","ca. 1.450 kr/ton"]
[null,"Radius for levering","Hele landet"]
[null,"Håndtering","Produktet er meget vandsugende og bør derfor være godt beskyttet mod fugt. Leverandøren anbefalet minimum 0,2 mm plastdække."]
[null,"Bilag 1 i Vejledning om økologisk jordbrugsproduktion","Kategori: Kaliumsulfat der muligvis indeholder magnesiumsalt                                                                                                    Logbog for planteavl: Noteres som gødning                                                                           Dokumentation af behov: Jordanalyse: Kalital under 8, som der må gødes op til på den enkelte mark."]
[null,"Gødningsregnskab","Skal ikke medtages"]
[null,"Andre regler","Ingen"]
[null,"Leverandører","Vestjyllands Andel, Danish Agro"]
[null,"OBS punkter","Velegnet til græs og roer og ikke til afgrøder følsomme overfor salt."]
[null,"Kilde","Link til hjemmeside: http://www.vja.dk/index.dsp?area=1"]
[null,"Sidst opdateret","15. juni 2016"]

{"sheet":"Kaliumsulfat 41","index":39,"n_rows":15,"n_cols":3,"rows_kept":15,"cut":false,"hidden":false,"merged":[]}
[]
[null,"Kaliumsulfat 41"]
[null,"Oprindelse og form ","Fremstillet ud fra et kalium råsalt ved en fysisk udvindingsproces."]
[null,"Indhold","Kalium: 41,5%\nSvovl: 18% "]
[null,"Udnyttelse, faglig vurdering ","Der kan regnes med 80-100% udnyttelse af både kalium og svovl"]
[null,"Pris","ca. 4.550 kr /ton"]
[null,"Radius for levering","Hele landet"]
[null,"Håndtering"]
[null,"Bilag 1 i Vejledning om økologisk jordbrugsproduktion","Kategori: Kaliumsulfat der muligvis indeholder magnesiumsalt                                                                                                    Logbog for planteavl: Noteres som gødning                                                                           Dokumentation af behov: Jordanalyse: Kalital under 8, som der må gødes op til på den enkelte mark."]
[null,"Gødningsregnskab"]
[null,"Andre regler"]
[null,"Leverandører","De fleste grovvarefirmaer"]
[null,"OBS punkter"]
[null,"Kilde"]
[null,"Sidst opdateret","15. juni 2016"]

{"sheet":"Træaske","index":40,"n_rows":16,"n_cols":3,"rows_kept":16,"cut":false,"hidden":false,"merged":[]}
[]
[null,"Træaske fra Miljøservice"]
[null,"Oprindelse og form ","Træaske er bundaske fra afbrænding af flis/råtræ. "]
[null,"Indhold","Analyse fra Hammel Fjernvarme\nTørstof: 96 %                                                                                                                                                                                                                                      Fosfor: 9,1 kg/ton\nKalium: 24 kg/ton                                                                "]
[null,"Udnyttelse, faglig vurdering ","80-100 % udnyttelse over en længere årrække."]
[null,"Pris","Leveres på mark uden omkostning"]
[null,"Radius for levering","Østjylland (primært Favrskov kommune og Aarhus kommune)"]
[null,"Håndtering","Doseringen med træaske er begrænset af askens indhold af cadmium (Cd). Asken fra Hammel Fjernvarme må doseres med max 1,8 ton/ha pr. fem år (svarer til en tilførsel på i alt 4 g cadmium/ha)."]
[null,"Bilag 1 i Vejledning om økologisk jordbrugsproduktion","Kategori: Træaske, kun fra træ der ikke er kemisk behandlet efter fældning                                                                                                                 Logbog for planteavl: Noteres som gødning                                                                           Dokumentation af behov: Noter hvorfor produktet er nødvendigt på din bedrift."]
[null,"Gødningsregnskab for kvælstof","Der er ikke indhold af kvælstof i produktet"]
[null,"Gødningsregnskab for fosfor","Der kommer en ny regulering for fosfor pr. 1. august 2017."]
[null,"Andre regler","Bioaskebekendtgørelsen: \nVed anvendelse af bioaske til landbrug må den samlede tilførsel af cadmium ikke overstige 0,8 g Cd pr. ha pr. år eller 4 gram pr. ha pr. 5 år. Der må maksimalt tilføres 5 tons tørstof pr. ha. pr. fem år på landbrugsjord. Den samlede tilførsel af næringsstoffer i form af fosfor må ikke overstige 30 kg pr. ha pr. år. Fosfordoseringen kan beregnes som et gennemsnit over tre år. På arealer, hvor der tilføres bioaske, som ikke nedbringes umiddelbart efter udspredning, må der indtil et halvt år efter tilførsel kun dyrkes korn- eller frøafgrøder til modenhed samt afgrøder, der ikke fortæres i rå tilstand af dyr eller mennesker."]
[null,"Leverandører","Miljøservice A/S, Ådalen 13A, 6600 Vejen. Tlf. +45 75 38 39 99                   "]
[null,"OBS punkter","Der må ikke iblandes aske fra afbrænding af konventional halm.\nIndholdet af cadmium sætter en grænse for de mængder der kan tilføres landbrugjord. Mængden af træaske til gødskningsformål er beskeden. Kontakt Miljøservice vedr. tilgængelighed og leveringsbetingelser. "]
[null,"Kilde","Direktør og projektleder Mogens K. Jensen\nmogens@miljoeservice.dk\n2067 7045"]
[null,"Sidst opdateret","14. juni 2016"]

{"sheet":"Naturgips","index":41,"n_rows":15,"n_cols":3,"rows_kept":15,"cut":false,"hidden":false,"merged":[]}
[]
[null,"Naturgips"]
[null,"Oprindelse og form ","Naturligt stof der udvindes mange steder. Granuleres til en svovlgødning af Bodenkalk i Østrig"]
[null,"Indhold","min. 15 % svovl\n"]
[null,"Udnyttelse, faglig vurdering ","Der kan forventes en udnyttelse af svovlen på 80%"]
[null,"Pris","Omkring 1.050 kr. pr. ton"]
[null,"Radius for levering","Hele landet."]
[null,"Håndtering","Granuleret form - speredes med almindelig gødningspreder"]
[null,"Bilag 1 i Vejledning om økologisk jordbrugsproduktion","Kategori: Calsiumsulfat (gips)                                                                                                                        Logbog for planteavl: Noteres som gødning                                                                           Dokumentation af behov: Konsulenterklæring"]
[null,"Gødningsregnskab","Skal ikke medtages"]
[null,"Andre regler","Ingen"]
[null,"Leverandører","DLG, Vestjyllands Andel og Brdr. Ewers. "]
[null,"OBS punkter"]
[null,"Kilde","www.bodenkalk.at "]
[null,"Sidst opdateret","Jan. 2017"]

{"sheet":"Frit svovl","index":42,"n_rows":15,"n_cols":3,"rows_kept":15,"cut":false,"hidden":false,"merged":[]}
[]
[null,"Frit svovl"]
[null,"Oprindelse og form ","Polsk produkt med titlen \"Wigor S\" sælges af Hedegaard A/S. "]
[null,"Indhold","90 % naturligt forekommende elementært svovl iblandet 10 % bentonit der er en lerart."]
[null,"Udnyttelse, faglig vurdering ","Frit svovl skal først omsættes til sulfationer, men er grundet lille partikelstørrelse forventes det hurtigt tilgængeligt for planterne."]
[null,"Pris","3400 kr./ton + fragt (meget billigere end tidligere kendte priser)"]
[null,"Radius for levering","Tilgængeligt på lager i Løgum Kloster - transporteres derfra (evt. med merpris)"]
[null,"Håndtering","Granuleret produkt. Kan udbringes med almindelig gødningsspreder. "]
[null,"Bilag 1 i Vejledning om økologisk jordbrugsproduktion","Kategori: Frit svovl                   \nLogbog for planteavl: Noteres som gødning                                                                           Dokumentation af behov: Der skal foreligge en konsulenterklæring"]
[null,"Gødningsregnskab","Skal ikke medtages"]
[null,"Andre regler","Ingen"]
[null,"Leverandører","Hedegaard A/S\nAfdelingsleder Henrik Refshøj\n87 24 24 75, +45 42 13 49 13\nhre@hedegaard-as.dk"]
[null,"OBS punkter"]
[null,"Kilde","http://www.hedegaard-as.dk/oekologi/oekologisk-planteavl"]
[null,"Sidst opdateret","Jan. 2017"]

{"sheet":"Grøngødning","index":43,"n_rows":44,"n_cols":13,"rows_kept":44,"cut":false,"hidden":false,"merged":[]}
[null,"Omkostning ved produktion af grøngødning"]
[]
[null,"Udbytte"]
[null,"Opmåling af stak",30,"m3 ensilage"]
[]
[null,"Høstet på ",1,"ha grøngødningsmark"]
[]
[null,"Analyse","Tørstof","C","N"]
[null,null,"% i ensilage","% af tørstof","% af tørstof"]
[null,null,30,42,3.3]
[]
[null,"Kg tørstof pr. m3",225]
[]
[null,"Total ","Tons ensilage","kg total-N pr. ton","C/N-forhold"]
[null,null,{"$f":"+C4*C12/C10*100/1000","v":22.5},{"$f":"+C10*E10/10","v":9.9},{"$f":"+D10/E10","v":12.727272727272728}]
[]
[null,"Omkostninger"]
[null,"Høst og ensilering"]
[null,"Behandling","Antal gange","Kr. pr. ha pr. gang","Kr. pr. ha i alt",null,null,null,null,"Behandling","antal gange","á kr pr. ha"]
[null,"Skårlægning",4,275,{"$f":"+C20*D20","v":1100},null,null,null,null,"Skårlægning",4,275,{"$f":"+K20*L20","v":1100}]
[null,"Sammenrivning",4,130,520,null,null,null,null,"Sammenrivning",4,130,{"$f":"+K21*L21","v":520}]
[null,"Snitning, hjemkørsel og indlægning i markstak",4,550,{"$f":"+C22*D22","v":2200},null,null,null,null,"Snitning, hjemkørsel og indlægning i markstak",4,550,{"$f":"+K22*L22","v":2200}]
[null,"Plastik",null,548,{"$f":"+D23","v":548},null,null,null,null,"Plastik",null,548,{"$f":"+L23","v":548}]
[null,"Sum",null,null,{"$f":"SUM(E20:E23)","v":4368}]
[]
[null,"Stakken er indhøstet fra ",1,"ha",{"$f":"+E24*C26","v":4368}]
[null,"kr. pr. tons",null,null,{"$f":"IF(C15>0,E26/C15,0)","v":194.13333333333333}]
[]
[null,"Udbringning af ensilage med møgspreder"]
[null,null,"Kr pr. time","Tons pr. time","Kr. pr tons",null,null,null,null,null,"á kr pr. time","tons pr. time"]
[null,"Læsning",625,60,{"$f":"+C31/D31","v":10.416666666666666},null,null,null,null,"Læsning",625,60,{"$f":"+K31/L31","v":10.416666666666666}]
[null,"Spredning",825,40,{"$f":"+C32/D32","v":20.625},null,null,null,null,"Spredning",825,40,{"$f":"+K32/L32","v":20.625}]
[null,"I alt",null,null,{"$f":"SUM(E31:E32)","v":31.041666666666664}]
[]
[null,"I alt kr. pr. ton",null,null,{"$f":"+E27+E33","v":225.17499999999998}]
[]
[null,"N-udnyttelse",{"$f":"Gødningsoversigt!$K$62","v":0},"pct.",null,null,null,null,null,"N-udnyttelse",{"$f":"Gødningsoversigt!$K$62","v":0}]
[]
[null,null,null,null,"kr. pr. kg udnyttet N"]
[null,"Pris pr. kg udnyttet N i mobil grøngødning udbragt i marken",null,null,{"$f":"IF(C4>0,(E27+E33)/(D15*C37/100),\"\")","v":{"$error":"#DIV/0!"}}]
[]
[]
[null,"P og K?"]
[null,"med eller uden omkostyninger til udbringning her!"]